Department,Entity,Transaction Date,Expense Type,Expense Area,Supplier,Transaction No.,Amount
"Department for Business, Energy and Industrial Strategy",The Coal Authority,30/09/2016,Fares - Rail,Application Management,Redfern Travel Ltd,6008,27.5
"Department for Business, Energy and Industrial Strategy",The Coal Authority,19/10/2016,Fuel (Vehicle),Application Management,Allstar Business Solutions Ltd,6321,79.05
"Department for Business, Energy and Industrial Strategy",The Coal Authority,30/09/2016,Business Meetings,Board,The RSE Scotland Foundation,5863,1007.2
"Department for Business, Energy and Industrial Strategy",The Coal Authority,30/09/2016,Fares - Air,Board,Redfern Travel Ltd,6008,175.08
"Department for Business, Energy and Industrial Strategy",The Coal Authority,05/10/2016,Fares - Public Transport,Board,5775 - Ace of Mansfield,6586,75.6
"Department for Business, Energy and Industrial Strategy",The Coal Authority,12/10/2016,Fares - Public Transport,Board,Staff Expenses Control,6079,8
"Department for Business, Energy and Industrial Strategy",The Coal Authority,24/10/2016,Fares - Public Transport,Board,Staff Expenses Control,6379,11
"Department for Business, Energy and Industrial Strategy",The Coal Authority,12/10/2016,Fares - Rail,Board,Staff Expenses Control,6079,178
"Department for Business, Energy and Industrial Strategy",The Coal Authority,24/10/2016,Fares - Rail,Board,Staff Expenses Control,6379,312.6
"Department for Business, Energy and Industrial Strategy",The Coal Authority,30/09/2016,Hotel & Accommodation,Board,Redfern Travel Ltd,6008,408
"Department for Business, Energy and Industrial Strategy",The Coal Authority,12/10/2016,Incidentals,Board,Staff Expenses Control,6079,36
"Department for Business, Energy and Industrial Strategy",The Coal Authority,12/10/2016,Mileage Payments,Board,Staff Expenses Control,6079,107.1
"Department for Business, Energy and Industrial Strategy",The Coal Authority,05/10/2016,Stationery,Board,5775 - Ace of Mansfield,6586,-75.6
"Department for Business, Energy and Industrial Strategy",The Coal Authority,30/09/2016,Stationery,Board,Ace Of Mansfield Ltd,5775,75.6
"Department for Business, Energy and Industrial Strategy",The Coal Authority,12/10/2016,Subsistence Allowances,Board,Staff Expenses Control,6079,14.62
"Department for Business, Energy and Industrial Strategy",The Coal Authority,30/09/2016,Applications Consultancy,BOSS Programme,Sapphire Systems Plc,6050,303.1
"Department for Business, Energy and Industrial Strategy",The Coal Authority,03/09/2016,Business Meetings,BOSS Programme,RBS GPC Aug 2016,6526,283.25
"Department for Business, Energy and Industrial Strategy",The Coal Authority,03/09/2016,Business Meetings,BOSS Programme,RBS GPC Aug 2016,6526,857.5
"Department for Business, Energy and Industrial Strategy",The Coal Authority,30/09/2016,Central Training,BOSS Programme,Sapphire Systems Plc,6050,1942.5
"Department for Business, Energy and Industrial Strategy",The Coal Authority,31/07/2016,CY - Intangible IT - Additions,BOSS Programme,Sapphire Systems Plc,5659,973
"Department for Business, Energy and Industrial Strategy",The Coal Authority,30/09/2016,CY - Intangible IT - Additions,BOSS Programme,Sapphire Systems Plc,6031,925
"Department for Business, Energy and Industrial Strategy",The Coal Authority,30/09/2016,CY - Intangible IT - Additions,BOSS Programme,Sapphire Systems Plc,6050,5920
"Department for Business, Energy and Industrial Strategy",The Coal Authority,30/09/2016,Fares - Rail,BOSS Programme,Redfern Travel Ltd,6008,139.5
"Department for Business, Energy and Industrial Strategy",The Coal Authority,30/09/2016,Hotel & Accommodation,BOSS Programme,Redfern Travel Ltd,6008,1
"Department for Business, Energy and Industrial Strategy",The Coal Authority,06/10/2016,Software Licenses - On Premise,BOSS Programme,Sapphire Systems Plc,6032,4425
"Department for Business, Energy and Industrial Strategy",The Coal Authority,06/10/2016,Software Support & Maintenance - On Premise,BOSS Programme,Sapphire Systems Plc,6032,722.55
"Department for Business, Energy and Industrial Strategy",The Coal Authority,20/10/2016,Subsistence Allowances,BOSS Programme,Staff Expenses Control,6296,22.39
"Department for Business, Energy and Industrial Strategy",The Coal Authority,04/10/2016,Temporary Contractors,BOSS Programme,Hays,6055,1950
"Department for Business, Energy and Industrial Strategy",The Coal Authority,12/10/2016,Temporary Contractors,BOSS Programme,Hays,6374,1950
"Department for Business, Energy and Industrial Strategy",The Coal Authority,24/10/2016,Temporary Contractors,BOSS Programme,Hays,6510,1755
"Department for Business, Energy and Industrial Strategy",The Coal Authority,26/10/2016,Temporary Contractors,BOSS Programme,Hays,6511,1950
"Department for Business, Energy and Industrial Strategy",The Coal Authority,28/09/2016,Temporary Contractors,BOSS Programme,S F Recruitment Limited,5661,1000
"Department for Business, Energy and Industrial Strategy",The Coal Authority,05/10/2016,Temporary Contractors,BOSS Programme,S F Recruitment Limited,6026,1000
"Department for Business, Energy and Industrial Strategy",The Coal Authority,12/10/2016,Temporary Contractors,BOSS Programme,S F Recruitment Limited,6202,1000
"Department for Business, Energy and Industrial Strategy",The Coal Authority,26/10/2016,Temporary Contractors,BOSS Programme,S F Recruitment Limited,6364,1000
"Department for Business, Energy and Industrial Strategy",The Coal Authority,05/10/2016,Applications Consultancy,Business Analysis,6152 - Scisys,6644,-7364.47
"Department for Business, Energy and Industrial Strategy",The Coal Authority,05/10/2016,Applications Consultancy,Business Analysis,6152 - Scisys,6645,-748.2
"Department for Business, Energy and Industrial Strategy",The Coal Authority,05/10/2016,Applications Consultancy,Business Analysis,6336 - Scisys,6644,-13105.27
"Department for Business, Energy and Industrial Strategy",The Coal Authority,09/09/2016,Applications Consultancy,Business Analysis,Scisys Uk Ltd,5760,7364.47
"Department for Business, Energy and Industrial Strategy",The Coal Authority,06/10/2016,Applications Consultancy,Business Analysis,Scisys Uk Ltd,6152,748.2
"Department for Business, Energy and Industrial Strategy",The Coal Authority,06/10/2016,Applications Consultancy,Business Analysis,Scisys Uk Ltd,6336,13105.27
"Department for Business, Energy and Industrial Strategy",The Coal Authority,05/10/2016,Infrastructure Consultancy,Business Analysis,6152 - Scisys,6644,7364.47
"Department for Business, Energy and Industrial Strategy",The Coal Authority,05/10/2016,Infrastructure Consultancy,Business Analysis,6152 - Scisys,6645,748.2
"Department for Business, Energy and Industrial Strategy",The Coal Authority,05/10/2016,Infrastructure Consultancy,Business Analysis,6336 - Scisys,6644,13105.27
"Department for Business, Energy and Industrial Strategy",The Coal Authority,09/09/2016,Infrastructure Consultancy,Business Analysis,Scisys Uk Ltd,5711,12009.5
"Department for Business, Energy and Industrial Strategy",The Coal Authority,06/10/2016,Infrastructure Consultancy,Business Analysis,Scisys Uk Ltd,6153,15312.5
"Department for Business, Energy and Industrial Strategy",The Coal Authority,03/09/2016,Business Meetings,Business Development,RBS GPC Aug 2016,6526,4.06
"Department for Business, Energy and Industrial Strategy",The Coal Authority,30/09/2016,Fares - Rail,Business Development,Redfern Travel Ltd,6008,395.5
"Department for Business, Energy and Industrial Strategy",The Coal Authority,21/10/2016,Mileage Payments,Business Development,Staff Expenses Control,6346,55.8
"Department for Business, Energy and Industrial Strategy",The Coal Authority,03/09/2016,Subsistence Allowances,Business Development,RBS GPC Aug 2016,6526,43.67
"Department for Business, Energy and Industrial Strategy",The Coal Authority,19/10/2016,Training & Education,Business Development,Faversham House Ltd,6342,415
"Department for Business, Energy and Industrial Strategy",The Coal Authority,03/09/2016,Training & Education,Business Development,RBS GPC Aug 2016,6526,19.99
"Department for Business, Energy and Industrial Strategy",The Coal Authority,28/09/2016,Training & Education,Business Development,The Waterfront Conference Company Ltd,5858,299
"Department for Business, Energy and Industrial Strategy",The Coal Authority,12/10/2016,Fuel (Vehicle),Communications & Brand,Staff Expenses Control,6063,90.24
"Department for Business, Energy and Industrial Strategy",The Coal Authority,03/09/2016,Hardware Equipment & Support,Communications & Brand,RBS GPC Aug 2016,6526,1188.28
"Department for Business, Energy and Industrial Strategy",The Coal Authority,30/09/2016,Hotel & Accommodation,Communications & Brand,Redfern Travel Ltd,6008,348.4
"Department for Business, Energy and Industrial Strategy",The Coal Authority,12/10/2016,Incidentals,Communications & Brand,Staff Expenses Control,6063,2.1
"Department for Business, Energy and Industrial Strategy",The Coal Authority,12/10/2016,Incidentals,Communications & Brand,Staff Expenses Control,6063,14.5
"Department for Business, Energy and Industrial Strategy",The Coal Authority,12/10/2016,Mileage Payments,Communications & Brand,Staff Expenses Control,6063,51.75
"Department for Business, Energy and Industrial Strategy",The Coal Authority,30/09/2016,Public Relations,Communications & Brand,Gorkana Group Ltd,6477,370.58
"Department for Business, Energy and Industrial Strategy",The Coal Authority,30/09/2016,Public Relations,Communications & Brand,Gorkana Group Ltd,6478,208.95
"Department for Business, Energy and Industrial Strategy",The Coal Authority,30/09/2016,Public Relations,Communications & Brand,Sharpe Pritchard,6474,425
"Department for Business, Energy and Industrial Strategy",The Coal Authority,03/09/2016,Software Licenses - SaaS,Communications & Brand,RBS GPC Aug 2016,6526,9.99
"Department for Business, Energy and Industrial Strategy",The Coal Authority,03/09/2016,Subsistence Allowances,Communications & Brand,RBS GPC Aug 2016,6526,6.25
"Department for Business, Energy and Industrial Strategy",The Coal Authority,12/10/2016,Subsistence Allowances,Communications & Brand,Staff Expenses Control,6076,41.37
"Department for Business, Energy and Industrial Strategy",The Coal Authority,23/09/2016,Postage & Couriers,Customer Services,Tnt Uk Limited,6028,22.74
"Department for Business, Energy and Industrial Strategy",The Coal Authority,30/09/2016,Postage & Couriers,Customer Services,Tnt Uk Limited,6027,20.04
"Department for Business, Energy and Industrial Strategy",The Coal Authority,30/09/2016,Stationery,Customer Services,Banner Business Solutions,5868,672.19
"Department for Business, Energy and Industrial Strategy",The Coal Authority,09/09/2016,Applications Consultancy,Data Solutions,Scisys Uk Ltd,5760,1756.94
"Department for Business, Energy and Industrial Strategy",The Coal Authority,09/09/2016,Applications Consultancy,Data Solutions,Scisys Uk Ltd,5760,240.32
"Department for Business, Energy and Industrial Strategy",The Coal Authority,09/09/2016,Applications Consultancy,Data Solutions,Scisys Uk Ltd,5760,509.34
"Department for Business, Energy and Industrial Strategy",The Coal Authority,06/10/2016,Applications Consultancy,Data Solutions,Scisys Uk Ltd,6336,2377.54
"Department for Business, Energy and Industrial Strategy",The Coal Authority,06/10/2016,Applications Consultancy,Data Solutions,Scisys Uk Ltd,6336,280.5
"Department for Business, Energy and Industrial Strategy",The Coal Authority,06/10/2016,Applications Consultancy,Data Solutions,Scisys Uk Ltd,6336,1060.8
"Department for Business, Energy and Industrial Strategy",The Coal Authority,09/09/2016,CY - Intangible IT - Additions,Data Solutions,Scisys Uk Ltd,5760,2391.98
"Department for Business, Energy and Industrial Strategy",The Coal Authority,06/10/2016,CY - Intangible IT - Additions,Data Solutions,Scisys Uk Ltd,6336,11924.13
"Department for Business, Energy and Industrial Strategy",The Coal Authority,16/09/2016,CY - Tangible IT - Additions,Data Solutions,Atos It Services Uk Ltd,5759,12220.55
"Department for Business, Energy and Industrial Strategy",The Coal Authority,07/10/2016,Legal - General,Data Solutions,Dla Piper Uk Llp,5999,1378
"Department for Business, Energy and Industrial Strategy",The Coal Authority,04/11/2016,Ordance Survey Map Charges,Data Solutions,6476 - Ordnance Survey,6693,33148
"Department for Business, Energy and Industrial Strategy",The Coal Authority,04/11/2016,Ordance Survey Map Charges,Data Solutions,6476 - Ordnance Survey - VAT,6693,6629.6
"Department for Business, Energy and Industrial Strategy",The Coal Authority,04/11/2016,Ordance Survey Map Charges,Data Solutions,6476 - Ordnance Survey - VAT,6700,-6629.6
"Department for Business, Energy and Industrial Strategy",The Coal Authority,09/09/2016,Requests For Change,Data Solutions,Scisys Uk Ltd,5760,694.38
"Department for Business, Energy and Industrial Strategy",The Coal Authority,09/09/2016,Requests For Change,Data Solutions,Scisys Uk Ltd,5760,1099.43
"Department for Business, Energy and Industrial Strategy",The Coal Authority,06/10/2016,Requests For Change,Data Solutions,Scisys Uk Ltd,6336,307.35
"Department for Business, Energy and Industrial Strategy",The Coal Authority,06/10/2016,Requests For Change,Data Solutions,Scisys Uk Ltd,6336,498.54
"Department for Business, Energy and Industrial Strategy",The Coal Authority,29/09/2016,Software Support & Maintenance - On Premise,Data Solutions,1Spatial Group Ltd,5710,2925
"Department for Business, Energy and Industrial Strategy",The Coal Authority,09/09/2016,Software Support & Maintenance - On Premise,Data Solutions,Scisys Uk Ltd,5760,5554.43
"Department for Business, Energy and Industrial Strategy",The Coal Authority,06/10/2016,Software Support & Maintenance - On Premise,Data Solutions,Scisys Uk Ltd,6336,5753.9
"Department for Business, Energy and Industrial Strategy",The Coal Authority,03/09/2016,Contract Hire Vehicles,Development - Development Management,RBS GPC Aug 2016,6526,261.38
"Department for Business, Energy and Industrial Strategy",The Coal Authority,30/09/2016,Hotel & Accommodation,Development - Development Management,Redfern Travel Ltd,6008,157.5
"Department for Business, Energy and Industrial Strategy",The Coal Authority,11/10/2016,Property Rates Payable,Development - Historic Property Liabilities,British Gas Business,6407,7.7
"Department for Business, Energy and Industrial Strategy",The Coal Authority,11/10/2016,Property Rates Payable,Development - Historic Property Liabilities,British Gas Business,6407,365.42
"Department for Business, Energy and Industrial Strategy",The Coal Authority,11/10/2016,Property Rates Payable,Development - Historic Property Liabilities,British Gas Business,6407,160.74
"Department for Business, Energy and Industrial Strategy",The Coal Authority,02/11/2016,Property Site Maintenance,Development - Historic Property Liabilities,5848 Severn Trent Serv Ops Uk Ltd,6629,63.25
"Department for Business, Energy and Industrial Strategy",The Coal Authority,30/09/2016,Fares - Rail,Development - Legal,Redfern Travel Ltd,6008,248.5
"Department for Business, Energy and Industrial Strategy",The Coal Authority,30/09/2016,Hotel & Accommodation,Development - Legal,Redfern Travel Ltd,6008,90.94
"Department for Business, Energy and Industrial Strategy",The Coal Authority,03/10/2016,Legal - Property Title Search,Development - Legal,Mda Searchflow Ltd,5672,156.48
"Department for Business, Energy and Industrial Strategy",The Coal Authority,06/10/2016,Training & Education,Development - Legal,Central Law Training,6089,375
"Department for Business, Energy and Industrial Strategy",The Coal Authority,14/09/2016,Legal - General,Development - Licensing,Anderson Strathern,5708,25
"Department for Business, Energy and Industrial Strategy",The Coal Authority,01/10/2016,eCommerce Commission Charges,Development � Permissions,Worldpay,6056,605.11
"Department for Business, Energy and Industrial Strategy",The Coal Authority,04/10/2016,eCommerce Commission Charges,Development � Permissions,Worldpay Limited,5765,30.16
"Department for Business, Energy and Industrial Strategy",The Coal Authority,30/09/2016,Temporary Contractors,Development � Permissions,Key Personnel Solutions Ltd,5668,1339.88
"Department for Business, Energy and Industrial Strategy",The Coal Authority,30/09/2016,Temporary Contractors,Development � Permissions,Key Personnel Solutions Ltd,5668,1377.9
"Department for Business, Energy and Industrial Strategy",The Coal Authority,07/10/2016,Temporary Contractors,Development � Permissions,Key Personnel Solutions Ltd,6034,1339.88
"Department for Business, Energy and Industrial Strategy",The Coal Authority,07/10/2016,Temporary Contractors,Development � Permissions,Key Personnel Solutions Ltd,6034,1377.9
"Department for Business, Energy and Industrial Strategy",The Coal Authority,14/10/2016,Temporary Contractors,Development � Permissions,Key Personnel Solutions Ltd,6208,893.25
"Department for Business, Energy and Industrial Strategy",The Coal Authority,14/10/2016,Temporary Contractors,Development � Permissions,Key Personnel Solutions Ltd,6208,1377.9
"Department for Business, Energy and Industrial Strategy",The Coal Authority,21/10/2016,Temporary Contractors,Development � Permissions,Key Personnel Solutions Ltd,6480,1377.9
"Department for Business, Energy and Industrial Strategy",The Coal Authority,09/09/2016,Applications Consultancy,Development - Planning & Local Authority Liaison,Scisys Uk Ltd,5760,127.33
"Department for Business, Energy and Industrial Strategy",The Coal Authority,09/09/2016,Applications Consultancy,Development - Planning & Local Authority Liaison,Scisys Uk Ltd,5760,439.24
"Department for Business, Energy and Industrial Strategy",The Coal Authority,09/09/2016,Applications Consultancy,Development - Planning & Local Authority Liaison,Scisys Uk Ltd,5760,60.08
"Department for Business, Energy and Industrial Strategy",The Coal Authority,06/10/2016,Applications Consultancy,Development - Planning & Local Authority Liaison,Scisys Uk Ltd,6336,265.2
"Department for Business, Energy and Industrial Strategy",The Coal Authority,06/10/2016,Applications Consultancy,Development - Planning & Local Authority Liaison,Scisys Uk Ltd,6336,594.39
"Department for Business, Energy and Industrial Strategy",The Coal Authority,06/10/2016,Applications Consultancy,Development - Planning & Local Authority Liaison,Scisys Uk Ltd,6336,70.13
"Department for Business, Energy and Industrial Strategy",The Coal Authority,09/09/2016,CY - Intangible IT - Additions,Development - Planning & Local Authority Liaison,Scisys Uk Ltd,5760,598
"Department for Business, Energy and Industrial Strategy",The Coal Authority,06/10/2016,CY - Intangible IT - Additions,Development - Planning & Local Authority Liaison,Scisys Uk Ltd,6336,2981.03
"Department for Business, Energy and Industrial Strategy",The Coal Authority,16/09/2016,CY - Tangible IT - Additions,Development - Planning & Local Authority Liaison,Atos It Services Uk Ltd,5759,3055.14
"Department for Business, Energy and Industrial Strategy",The Coal Authority,30/09/2016,Fares - Rail,Development - Planning & Local Authority Liaison,Redfern Travel Ltd,6008,116
"Department for Business, Energy and Industrial Strategy",The Coal Authority,09/09/2016,Requests For Change,Development - Planning & Local Authority Liaison,Scisys Uk Ltd,5760,173.6
"Department for Business, Energy and Industrial Strategy",The Coal Authority,09/09/2016,Requests For Change,Development - Planning & Local Authority Liaison,Scisys Uk Ltd,5760,274.86
"Department for Business, Energy and Industrial Strategy",The Coal Authority,06/10/2016,Requests For Change,Development - Planning & Local Authority Liaison,Scisys Uk Ltd,6336,124.64
"Department for Business, Energy and Industrial Strategy",The Coal Authority,06/10/2016,Requests For Change,Development - Planning & Local Authority Liaison,Scisys Uk Ltd,6336,76.84
"Department for Business, Energy and Industrial Strategy",The Coal Authority,09/09/2016,Software Support & Maintenance - On Premise,Development - Planning & Local Authority Liaison,Scisys Uk Ltd,5760,1388.61
"Department for Business, Energy and Industrial Strategy",The Coal Authority,06/10/2016,Software Support & Maintenance - On Premise,Development - Planning & Local Authority Liaison,Scisys Uk Ltd,6336,1438.48
"Department for Business, Energy and Industrial Strategy",The Coal Authority,09/09/2016,Applications Consultancy,Development - Property Management,Scisys Uk Ltd,5760,60.08
"Department for Business, Energy and Industrial Strategy",The Coal Authority,09/09/2016,Applications Consultancy,Development - Property Management,Scisys Uk Ltd,5760,439.24
"Department for Business, Energy and Industrial Strategy",The Coal Authority,09/09/2016,Applications Consultancy,Development - Property Management,Scisys Uk Ltd,5760,127.33
"Department for Business, Energy and Industrial Strategy",The Coal Authority,06/10/2016,Applications Consultancy,Development - Property Management,Scisys Uk Ltd,6336,70.13
"Department for Business, Energy and Industrial Strategy",The Coal Authority,06/10/2016,Applications Consultancy,Development - Property Management,Scisys Uk Ltd,6336,594.39
"Department for Business, Energy and Industrial Strategy",The Coal Authority,06/10/2016,Applications Consultancy,Development - Property Management,Scisys Uk Ltd,6336,265.2
"Department for Business, Energy and Industrial Strategy",The Coal Authority,30/09/2016,Closed Colliery Site Restoration,Development - Property Management,Crimefighter Alarms Ltd,5656,1471.2
"Department for Business, Energy and Industrial Strategy",The Coal Authority,27/09/2016,Closed Colliery Site Restoration,Development - Property Management,M T S Cleansing Services Ltd,6049,381.69
"Department for Business, Energy and Industrial Strategy",The Coal Authority,30/09/2016,Closed Colliery Site Restoration,Development - Property Management,Ovenden Plant Hire Limited,6046,30.86
"Department for Business, Energy and Industrial Strategy",The Coal Authority,02/10/2016,Closed Colliery Site Restoration,Development - Property Management,Ovenden Plant Hire Limited,6091,223.96
"Department for Business, Energy and Industrial Strategy",The Coal Authority,02/10/2016,Closed Colliery Site Restoration,Development - Property Management,Ovenden Plant Hire Limited,6119,408.79
"Department for Business, Energy and Industrial Strategy",The Coal Authority,24/10/2016,Consultancy - Property Management,Development - Property Management,Cooke & Arkwright,6518,319.95
"Department for Business, Energy and Industrial Strategy",The Coal Authority,09/09/2016,CY - Intangible IT - Additions,Development - Property Management,Scisys Uk Ltd,5760,598
"Department for Business, Energy and Industrial Strategy",The Coal Authority,06/10/2016,CY - Intangible IT - Additions,Development - Property Management,Scisys Uk Ltd,6336,2981.03
"Department for Business, Energy and Industrial Strategy",The Coal Authority,16/09/2016,CY - Tangible IT - Additions,Development - Property Management,Atos It Services Uk Ltd,5759,3055.15
"Department for Business, Energy and Industrial Strategy",The Coal Authority,30/09/2016,Fares - Rail,Development - Property Management,Redfern Travel Ltd,6008,424.4
"Department for Business, Energy and Industrial Strategy",The Coal Authority,30/09/2016,Hotel & Accommodation,Development - Property Management,Redfern Travel Ltd,6008,171.44
"Department for Business, Energy and Industrial Strategy",The Coal Authority,03/09/2016,Incidentals,Development - Property Management,RBS GPC Aug 2016,6526,22.37
"Department for Business, Energy and Industrial Strategy",The Coal Authority,14/09/2016,Legal - General,Development - Property Management,Anderson Strathern,5708,150
"Department for Business, Energy and Industrial Strategy",The Coal Authority,30/08/2016,Legal - General,Development - Property Management,Walker Morris,6327,462.9
"Department for Business, Energy and Industrial Strategy",The Coal Authority,06/10/2016,Legal - Property Title Search,Development - Property Management,Land Registry,5845,66
"Department for Business, Energy and Industrial Strategy",The Coal Authority,14/10/2016,Legal - Property Title Search,Development - Property Management,Land Registry,6493,12
"Department for Business, Energy and Industrial Strategy",The Coal Authority,21/10/2016,Legal - Property Title Search,Development - Property Management,Land Registry,6494,39
"Department for Business, Energy and Industrial Strategy",The Coal Authority,25/10/2016,Legal - Property Title Search,Development - Property Management,Land Registry,6492,120
"Department for Business, Energy and Industrial Strategy",The Coal Authority,30/09/2016,Other Contractor Costs,Development - Property Management,Jmc Engineering Uk Ltd,5824,24.6
"Department for Business, Energy and Industrial Strategy",The Coal Authority,04/11/2016,Other Contractor Costs,Development - Property Management,JMC Inv 061-17 Recode,6679,2688.15
"Department for Business, Energy and Industrial Strategy",The Coal Authority,04/11/2016,Other Contractor Costs,Development - Property Management,JMC Inv 061-17 Recode,6683,-2688.15
"Department for Business, Energy and Industrial Strategy",The Coal Authority,04/11/2016,Other Contractor Costs,Development - Property Management,JMC Inv 061-17 Recode,6705,2688.15
"Department for Business, Energy and Industrial Strategy",The Coal Authority,04/11/2016,Other Contractor Costs,Development - Property Management,JMC Inv 074-17 Recode,6709,1610.9
"Department for Business, Energy and Industrial Strategy",The Coal Authority,04/11/2016,Other Contractor Costs,Development - Property Management,JMC Inv 083-17 Recode,6709,77.5
"Department for Business, Energy and Industrial Strategy",The Coal Authority,04/11/2016,Other Contractor Costs,Development - Property Management,JMC Inv 091-17 Recode,6709,2499.67
"Department for Business, Energy and Industrial Strategy",The Coal Authority,05/10/2016,Other Hosting / IaaS,Development - Property Management,5760 - Scisys,6649,-274.86
"Department for Business, Energy and Industrial Strategy",The Coal Authority,09/09/2016,Other Hosting / IaaS,Development - Property Management,Scisys Uk Ltd,5760,274.86
"Department for Business, Energy and Industrial Strategy",The Coal Authority,05/10/2016,Property Rates Payable,Development - Property Management,British Gas Business,6052,34.03
"Department for Business, Energy and Industrial Strategy",The Coal Authority,19/10/2016,Property Site Maintenance,Development - Property Management,Alliance Contracting Solutions Ltd,6276,755.98
"Department for Business, Energy and Industrial Strategy",The Coal Authority,05/10/2016,Requests For Change,Development - Property Management,5760 - Scisys,6649,274.86
"Department for Business, Energy and Industrial Strategy",The Coal Authority,09/09/2016,Requests For Change,Development - Property Management,Scisys Uk Ltd,5760,173.6
"Department for Business, Energy and Industrial Strategy",The Coal Authority,06/10/2016,Requests For Change,Development - Property Management,Scisys Uk Ltd,6336,76.84
"Department for Business, Energy and Industrial Strategy",The Coal Authority,06/10/2016,Requests For Change,Development - Property Management,Scisys Uk Ltd,6336,124.64
"Department for Business, Energy and Industrial Strategy",The Coal Authority,30/09/2016,Short Term Vehicle Hire,Development - Property Management,Jmc Engineering Uk Ltd,5823,2499.67
"Department for Business, Energy and Industrial Strategy",The Coal Authority,04/11/2016,Short Term Vehicle Hire,Development - Property Management,JMC Inv 061-17 Recode,6679,-2688.15
"Department for Business, Energy and Industrial Strategy",The Coal Authority,04/11/2016,Short Term Vehicle Hire,Development - Property Management,JMC Inv 061-17 Recode,6683,2688.15
"Department for Business, Energy and Industrial Strategy",The Coal Authority,04/11/2016,Short Term Vehicle Hire,Development - Property Management,JMC Inv 061-17 Recode,6705,-2688.15
"Department for Business, Energy and Industrial Strategy",The Coal Authority,04/11/2016,Short Term Vehicle Hire,Development - Property Management,JMC Inv 074-17 Recode,6709,-1610.9
"Department for Business, Energy and Industrial Strategy",The Coal Authority,04/11/2016,Short Term Vehicle Hire,Development - Property Management,JMC Inv 083-17 Recode,6709,-77.5
"Department for Business, Energy and Industrial Strategy",The Coal Authority,04/11/2016,Short Term Vehicle Hire,Development - Property Management,JMC Inv 091-17 Recode,6709,-2499.67
"Department for Business, Energy and Industrial Strategy",The Coal Authority,09/09/2016,Software Support & Maintenance - On Premise,Development - Property Management,Scisys Uk Ltd,5760,1388.61
"Department for Business, Energy and Industrial Strategy",The Coal Authority,06/10/2016,Software Support & Maintenance - On Premise,Development - Property Management,Scisys Uk Ltd,6336,1438.48
"Department for Business, Energy and Industrial Strategy",The Coal Authority,03/09/2016,Subsistence Allowances,Development - Property Management,RBS GPC Aug 2016,6526,46.13
"Department for Business, Energy and Industrial Strategy",The Coal Authority,04/09/2016,CY - Minewater Scheme - Additions,Environment - Coal Mine Build,J N Bentley Limited,5697,46796.78
"Department for Business, Energy and Industrial Strategy",The Coal Authority,04/09/2016,CY - Minewater Scheme - Additions,Environment - Coal Mine Build,J N Bentley Limited,5700,176437.4
"Department for Business, Energy and Industrial Strategy",The Coal Authority,04/09/2016,CY - Minewater Scheme - Additions,Environment - Coal Mine Build,J N Bentley Limited,5856,173692.18
"Department for Business, Energy and Industrial Strategy",The Coal Authority,02/10/2016,CY - Minewater Scheme - Additions,Environment - Coal Mine Build,J N Bentley Limited,6411,101639.18
"Department for Business, Energy and Industrial Strategy",The Coal Authority,02/10/2016,CY - Minewater Scheme - Additions,Environment - Coal Mine Build,J N Bentley Limited,6413,101907.09
"Department for Business, Energy and Industrial Strategy",The Coal Authority,02/10/2016,CY - Minewater Scheme - Additions,Environment - Coal Mine Build,J N Bentley Limited,6416,10979.59
"Department for Business, Energy and Industrial Strategy",The Coal Authority,24/10/2016,CY - Minewater Scheme - Additions,Environment - Coal Mine Build,Mott Macdonald Ltd,6419,1956
"Department for Business, Energy and Industrial Strategy",The Coal Authority,10/10/2016,CY - Minewater Scheme - Additions,Environment - Coal Mine Build,Wyg Env Planning Transport Ltd,6100,3657.77
"Department for Business, Energy and Industrial Strategy",The Coal Authority,10/10/2016,CY - Minewater Scheme - Additions,Environment - Coal Mine Build,Wyg Env Planning Transport Ltd,6101,3657.77
"Department for Business, Energy and Industrial Strategy",The Coal Authority,02/10/2016,CY - Non-coal Minewater - Additions,Environment - Coal Mine Build,J N Bentley Limited,6415,17283.78
"Department for Business, Energy and Industrial Strategy",The Coal Authority,30/09/2016,Hotel & Accommodation,Environment - Coal Mine Build,Redfern Travel Ltd,6008,80.94
"Department for Business, Energy and Industrial Strategy",The Coal Authority,14/09/2016,Legal - General,Environment - Coal Mine Build,Anderson Strathern,5708,380
"Department for Business, Energy and Industrial Strategy",The Coal Authority,09/09/2016,Legal - General,Environment - Coal Mine Build,Dla Piper Uk Llp,5681,3804.37
"Department for Business, Energy and Industrial Strategy",The Coal Authority,07/10/2016,Legal - General,Environment - Coal Mine Build,Dla Piper Uk Llp,5999,3021
"Department for Business, Energy and Industrial Strategy",The Coal Authority,30/08/2016,Legal - General,Environment - Coal Mine Build,Walker Morris,6327,1589.7
"Department for Business, Energy and Industrial Strategy",The Coal Authority,07/10/2016,Legal - General,Environment - Coal Mine Build,Walker Morris,6328,634.3
"Department for Business, Energy and Industrial Strategy",The Coal Authority,27/10/2016,Minewater Land Agents (Acquisitions),Environment - Coal Mine Build,Compensation Payment,6454,100
"Department for Business, Energy and Industrial Strategy",The Coal Authority,30/09/2016,Minewater Land Agents (Acquisitions),Environment - Coal Mine Build,Mark N Carey Limited,5814,169
"Department for Business, Energy and Industrial Strategy",The Coal Authority,04/09/2016,Minewater Pumping Tests,Environment - Coal Mine Build,J N Bentley Limited,5701,1681.87
"Department for Business, Energy and Industrial Strategy",The Coal Authority,02/10/2016,Minewater Pumping Tests,Environment - Coal Mine Build,J N Bentley Limited,6412,-7939.17
"Department for Business, Energy and Industrial Strategy",The Coal Authority,26/10/2016,Minewater Site Investigations,Environment - Coal Mine Build,Pmc Surveys,6458,2544.54
"Department for Business, Energy and Industrial Strategy",The Coal Authority,03/09/2016,Site Repairs & Maintenance,Environment - Coal Mine Build,RBS GPC Aug 2016,6526,149
"Department for Business, Energy and Industrial Strategy",The Coal Authority,03/09/2016,Staff Events,Environment - Coal Mine Build,RBS GPC Aug 2016,6526,736.2
"Department for Business, Energy and Industrial Strategy",The Coal Authority,10/10/2016,Temporary Contractors,Environment - Coal Mine Build,Conrad Consulting,6094,2133.85
"Department for Business, Energy and Industrial Strategy",The Coal Authority,25/10/2016,Temporary Contractors,Environment - Coal Mine Build,Conrad Consulting,6483,2115.54
"Department for Business, Energy and Industrial Strategy",The Coal Authority,25/10/2016,Temporary Contractors,Environment - Coal Mine Build,Conrad Consulting,6484,1840
"Department for Business, Energy and Industrial Strategy",The Coal Authority,30/09/2016,Temporary Contractors,Environment - Coal Mine Build,Key Personnel Solutions Ltd,5668,2063.24
"Department for Business, Energy and Industrial Strategy",The Coal Authority,30/09/2016,Temporary Contractors,Environment - Coal Mine Build,Key Personnel Solutions Ltd,5669,176.61
"Department for Business, Energy and Industrial Strategy",The Coal Authority,07/10/2016,Temporary Contractors,Environment - Coal Mine Build,Key Personnel Solutions Ltd,6034,2063.25
"Department for Business, Energy and Industrial Strategy",The Coal Authority,07/10/2016,Temporary Contractors,Environment - Coal Mine Build,Key Personnel Solutions Ltd,6035,65.79
"Department for Business, Energy and Industrial Strategy",The Coal Authority,14/10/2016,Temporary Contractors,Environment - Coal Mine Build,Key Personnel Solutions Ltd,6208,2063.25
"Department for Business, Energy and Industrial Strategy",The Coal Authority,21/10/2016,Temporary Contractors,Environment - Coal Mine Build,Key Personnel Solutions Ltd,6480,2063.25
"Department for Business, Energy and Industrial Strategy",The Coal Authority,19/10/2016,Training & Education,Environment - Coal Mine Build,Faversham House Ltd,6342,415
"Department for Business, Energy and Industrial Strategy",The Coal Authority,03/09/2016,Training & Education,Environment - Coal Mine Build,RBS GPC Aug 2016,6526,159
"Department for Business, Energy and Industrial Strategy",The Coal Authority,01/10/2016,eCommerce Commission Charges,Environment - Commercial,Worldpay,6056,2.5
"Department for Business, Energy and Industrial Strategy",The Coal Authority,02/11/2016,CY - Minewater Scheme - Additions,Environment - Contract Management,5848 Severn Trent Serv Ops Uk Ltd,6629,36599.25
"Department for Business, Energy and Industrial Strategy",The Coal Authority,02/11/2016,CY - Minewater Scheme - Additions,Environment - Contract Management,5848 Severn Trent Serv Ops Uk Ltd,6629,25680.46
"Department for Business, Energy and Industrial Strategy",The Coal Authority,02/11/2016,CY - Minewater Scheme - Additions,Environment - Contract Management,5848 Severn Trent Serv Ops Uk Ltd,6629,14885.71
"Department for Business, Energy and Industrial Strategy",The Coal Authority,02/11/2016,CY - Minewater Scheme - Additions,Environment - Contract Management,5848 Severn Trent Serv Ops Uk Ltd,6629,11818.24
"Department for Business, Energy and Industrial Strategy",The Coal Authority,02/11/2016,CY - Minewater Scheme - Additions,Environment - Contract Management,5848 Severn Trent Serv Ops Uk Ltd,6629,10960.9
"Department for Business, Energy and Industrial Strategy",The Coal Authority,02/11/2016,CY - Minewater Scheme - Additions,Environment - Contract Management,5848 Severn Trent Serv Ops Uk Ltd,6629,6.89
"Department for Business, Energy and Industrial Strategy",The Coal Authority,02/11/2016,CY - Minewater Scheme - Additions,Environment - Contract Management,5848 Severn Trent Serv Ops Uk Ltd,6629,5.97
"Department for Business, Energy and Industrial Strategy",The Coal Authority,02/10/2016,CY - Minewater Scheme - Additions,Environment - Contract Management,J N Bentley Limited,6418,9690.37
"Department for Business, Energy and Industrial Strategy",The Coal Authority,05/10/2016,CY - Minewater Scheme - Additions,Environment - Contract Management,Nal Plant Limited,5979,21381.84
"Department for Business, Energy and Industrial Strategy",The Coal Authority,04/09/2016,CY - Subsidence Pumping - Additions,Environment - Contract Management,J N Bentley Limited,5692,5160.93
"Department for Business, Energy and Industrial Strategy",The Coal Authority,02/10/2016,CY - Subsidence Pumping - Additions,Environment - Contract Management,J N Bentley Limited,6428,19873.02
"Department for Business, Energy and Industrial Strategy",The Coal Authority,30/09/2016,Fares - Rail,Environment - Contract Management,Redfern Travel Ltd,6008,805.69
"Department for Business, Energy and Industrial Strategy",The Coal Authority,12/10/2016,Fuel (Vehicle),Environment - Contract Management,Allstar Business Solutions Ltd,6227,143.38
"Department for Business, Energy and Industrial Strategy",The Coal Authority,19/10/2016,Fuel (Vehicle),Environment - Contract Management,Allstar Business Solutions Ltd,6320,68.63
"Department for Business, Energy and Industrial Strategy",The Coal Authority,30/09/2016,Hotel & Accommodation,Environment - Contract Management,Redfern Travel Ltd,6008,355.34
"Department for Business, Energy and Industrial Strategy",The Coal Authority,02/11/2016,Minewater Consultancy - Operational Sites,Environment - Contract Management,5848 Severn Trent Serv Ops Uk Ltd,6629,601.81
"Department for Business, Energy and Industrial Strategy",The Coal Authority,02/11/2016,Minewater Consultancy - Operational Sites,Environment - Contract Management,5848 Severn Trent Serv Ops Uk Ltd,6629,666.13
"Department for Business, Energy and Industrial Strategy",The Coal Authority,02/11/2016,Minewater Consultancy - Operational Sites,Environment - Contract Management,5848 Severn Trent Serv Ops Uk Ltd,6629,3271.8
"Department for Business, Energy and Industrial Strategy",The Coal Authority,02/11/2016,Minewater Consultancy - Operational Sites,Environment - Contract Management,5848 Severn Trent Serv Ops Uk Ltd,6629,21334.54
"Department for Business, Energy and Industrial Strategy",The Coal Authority,02/11/2016,Minewater Consultancy - Operational Sites,Environment - Contract Management,5848 Severn Trent Serv Ops Uk Ltd,6629,2407.26
"Department for Business, Energy and Industrial Strategy",The Coal Authority,02/11/2016,Minewater Consultancy - Operational Sites,Environment - Contract Management,5848 Severn Trent Serv Ops Uk Ltd,6629,5397.95
"Department for Business, Energy and Industrial Strategy",The Coal Authority,02/11/2016,Minewater Consultancy - Operational Sites,Environment - Contract Management,5848 Severn Trent Serv Ops Uk Ltd,6629,488.11
"Department for Business, Energy and Industrial Strategy",The Coal Authority,30/09/2016,Minewater Consultancy - Operational Sites,Environment - Contract Management,Mott Macdonald Ltd,5866,2429.55
"Department for Business, Energy and Industrial Strategy",The Coal Authority,30/09/2016,Minewater Consultancy - Operational Sites,Environment - Contract Management,Mott Macdonald Ltd,5867,1429.99
"Department for Business, Energy and Industrial Strategy",The Coal Authority,18/10/2016,Minewater Consultancy - Operational Sites,Environment - Contract Management,Mott Macdonald Ltd,6427,1152.64
"Department for Business, Energy and Industrial Strategy",The Coal Authority,19/10/2016,Minewater Consultancy - Operational Sites,Environment - Contract Management,Mott Macdonald Ltd,6420,1300.82
"Department for Business, Energy and Industrial Strategy",The Coal Authority,02/11/2016,Minewater Contractor Add. Task Order - Ops Site,Environment - Contract Management,5848 Severn Trent Serv Ops Uk Ltd,6629,21297.76
"Department for Business, Energy and Industrial Strategy",The Coal Authority,02/11/2016,Minewater Contractor Add. Task Order - Ops Site,Environment - Contract Management,5848 Severn Trent Serv Ops Uk Ltd,6629,1104.72
"Department for Business, Energy and Industrial Strategy",The Coal Authority,02/11/2016,Minewater Contractor Add. Task Order - Ops Site,Environment - Contract Management,5848 Severn Trent Serv Ops Uk Ltd,6629,266.69
"Department for Business, Energy and Industrial Strategy",The Coal Authority,02/11/2016,Minewater Contractor Add. Task Order - Ops Site,Environment - Contract Management,5848 Severn Trent Serv Ops Uk Ltd,6629,754.01
"Department for Business, Energy and Industrial Strategy",The Coal Authority,02/11/2016,Minewater Contractor Add. Task Order - Ops Site,Environment - Contract Management,5848 Severn Trent Serv Ops Uk Ltd,6629,13.04
"Department for Business, Energy and Industrial Strategy",The Coal Authority,02/11/2016,Minewater Contractor Add. Task Order - Ops Site,Environment - Contract Management,5848 Severn Trent Serv Ops Uk Ltd,6629,1007.74
"Department for Business, Energy and Industrial Strategy",The Coal Authority,02/11/2016,Minewater Contractor Add. Task Order - Ops Site,Environment - Contract Management,5848 Severn Trent Serv Ops Uk Ltd,6629,333.36
"Department for Business, Energy and Industrial Strategy",The Coal Authority,02/11/2016,Minewater Contractor Add. Task Order - Ops Site,Environment - Contract Management,5848 Severn Trent Serv Ops Uk Ltd,6629,133.34
"Department for Business, Energy and Industrial Strategy",The Coal Authority,02/11/2016,Minewater Contractor Add. Task Order - Ops Site,Environment - Contract Management,5848 Severn Trent Serv Ops Uk Ltd,6629,628.26
"Department for Business, Energy and Industrial Strategy",The Coal Authority,02/11/2016,Minewater Contractor Add. Task Order - Ops Site,Environment - Contract Management,5848 Severn Trent Serv Ops Uk Ltd,6629,235.18
"Department for Business, Energy and Industrial Strategy",The Coal Authority,02/11/2016,Minewater Contractor Add. Task Order - Ops Site,Environment - Contract Management,5848 Severn Trent Serv Ops Uk Ltd,6629,738.49
"Department for Business, Energy and Industrial Strategy",The Coal Authority,02/11/2016,Minewater Contractor Add. Task Order - Ops Site,Environment - Contract Management,5848 Severn Trent Serv Ops Uk Ltd,6629,261.25
"Department for Business, Energy and Industrial Strategy",The Coal Authority,02/11/2016,Minewater Contractor Add. Task Order - Ops Site,Environment - Contract Management,5848 Severn Trent Serv Ops Uk Ltd,6629,76.74
"Department for Business, Energy and Industrial Strategy",The Coal Authority,02/11/2016,Minewater Contractor Add. Task Order - Ops Site,Environment - Contract Management,5848 Severn Trent Serv Ops Uk Ltd,6629,489.11
"Department for Business, Energy and Industrial Strategy",The Coal Authority,02/11/2016,Minewater Contractor Add. Task Order - Ops Site,Environment - Contract Management,5848 Severn Trent Serv Ops Uk Ltd,6629,290.94
"Department for Business, Energy and Industrial Strategy",The Coal Authority,02/11/2016,Minewater Contractor Add. Task Order - Ops Site,Environment - Contract Management,5848 Severn Trent Serv Ops Uk Ltd,6629,158.35
"Department for Business, Energy and Industrial Strategy",The Coal Authority,02/11/2016,Minewater Contractor Add. Task Order - Ops Site,Environment - Contract Management,5848 Severn Trent Serv Ops Uk Ltd,6629,19.56
"Department for Business, Energy and Industrial Strategy",The Coal Authority,02/11/2016,Minewater Contractor Add. Task Order - Ops Site,Environment - Contract Management,5848 Severn Trent Serv Ops Uk Ltd,6629,65.85
"Department for Business, Energy and Industrial Strategy",The Coal Authority,02/11/2016,Minewater Contractor Add. Task Order - Ops Site,Environment - Contract Management,5848 Severn Trent Serv Ops Uk Ltd,6629,16.3
"Department for Business, Energy and Industrial Strategy",The Coal Authority,02/11/2016,Minewater Contractor Add. Task Order - Ops Site,Environment - Contract Management,5848 Severn Trent Serv Ops Uk Ltd,6629,204.5
"Department for Business, Energy and Industrial Strategy",The Coal Authority,02/11/2016,Minewater Contractor Add. Task Order - Ops Site,Environment - Contract Management,5848 Severn Trent Serv Ops Uk Ltd,6629,13859.82
"Department for Business, Energy and Industrial Strategy",The Coal Authority,02/11/2016,Minewater Contractor Add. Task Order - Ops Site,Environment - Contract Management,5848 Severn Trent Serv Ops Uk Ltd,6629,7166.64
"Department for Business, Energy and Industrial Strategy",The Coal Authority,02/11/2016,Minewater Contractor Add. Task Order - Ops Site,Environment - Contract Management,5848 Severn Trent Serv Ops Uk Ltd,6629,4306.88
"Department for Business, Energy and Industrial Strategy",The Coal Authority,02/11/2016,Minewater Contractor Add. Task Order - Ops Site,Environment - Contract Management,5848 Severn Trent Serv Ops Uk Ltd,6629,6668.19
"Department for Business, Energy and Industrial Strategy",The Coal Authority,02/11/2016,Minewater Contractor Add. Task Order - Ops Site,Environment - Contract Management,5848 Severn Trent Serv Ops Uk Ltd,6629,8073.96
"Department for Business, Energy and Industrial Strategy",The Coal Authority,02/11/2016,Minewater Contractor Add. Task Order - Ops Site,Environment - Contract Management,5848 Severn Trent Serv Ops Uk Ltd,6629,3445.5
"Department for Business, Energy and Industrial Strategy",The Coal Authority,02/11/2016,Minewater Contractor Add. Task Order - Ops Site,Environment - Contract Management,5848 Severn Trent Serv Ops Uk Ltd,6629,3089.47
"Department for Business, Energy and Industrial Strategy",The Coal Authority,02/11/2016,Minewater Contractor Add. Task Order - Ops Site,Environment - Contract Management,5848 Severn Trent Serv Ops Uk Ltd,6629,798.21
"Department for Business, Energy and Industrial Strategy",The Coal Authority,02/11/2016,Minewater Contractor Add. Task Order - Ops Site,Environment - Contract Management,5848 Severn Trent Serv Ops Uk Ltd,6629,68.91
"Department for Business, Energy and Industrial Strategy",The Coal Authority,02/11/2016,Minewater Contractor Add. Task Order - Ops Site,Environment - Contract Management,5848 Severn Trent Serv Ops Uk Ltd,6629,16033.35
"Department for Business, Energy and Industrial Strategy",The Coal Authority,02/11/2016,Minewater Contractor Maint. Visits - Ops Site,Environment - Contract Management,5848 Severn Trent Serv Ops Uk Ltd,6629,-305.68
"Department for Business, Energy and Industrial Strategy",The Coal Authority,02/11/2016,Minewater Contractor Maint. Visits - Ops Site,Environment - Contract Management,5848 Severn Trent Serv Ops Uk Ltd,6629,687
"Department for Business, Energy and Industrial Strategy",The Coal Authority,02/11/2016,Minewater Contractor Maint. Visits - Ops Site,Environment - Contract Management,5848 Severn Trent Serv Ops Uk Ltd,6629,671.56
"Department for Business, Energy and Industrial Strategy",The Coal Authority,02/11/2016,Minewater Contractor Maint. Visits - Ops Site,Environment - Contract Management,5848 Severn Trent Serv Ops Uk Ltd,6629,45398.36
"Department for Business, Energy and Industrial Strategy",The Coal Authority,02/11/2016,Minewater Contractor Maint. Visits - Ops Site,Environment - Contract Management,5848 Severn Trent Serv Ops Uk Ltd,6629,972.65
"Department for Business, Energy and Industrial Strategy",The Coal Authority,02/11/2016,Minewater Contractor Maint. Visits - Ops Site,Environment - Contract Management,5848 Severn Trent Serv Ops Uk Ltd,6629,4223.03
"Department for Business, Energy and Industrial Strategy",The Coal Authority,02/11/2016,Minewater Contractor Maint. Visits - Ops Site,Environment - Contract Management,5848 Severn Trent Serv Ops Uk Ltd,6629,6708.1
"Department for Business, Energy and Industrial Strategy",The Coal Authority,02/11/2016,Minewater Contractor Maint. Visits - Ops Site,Environment - Contract Management,5848 Severn Trent Serv Ops Uk Ltd,6629,927.63
"Department for Business, Energy and Industrial Strategy",The Coal Authority,02/11/2016,Minewater Contractor Maint. Visits - Ops Site,Environment - Contract Management,5848 Severn Trent Serv Ops Uk Ltd,6629,677.05
"Department for Business, Energy and Industrial Strategy",The Coal Authority,02/11/2016,Minewater Contractor Maint. Visits - Ops Site,Environment - Contract Management,5848 Severn Trent Serv Ops Uk Ltd,6629,410.33
"Department for Business, Energy and Industrial Strategy",The Coal Authority,02/11/2016,Minewater Contractor Maint. Visits - Ops Site,Environment - Contract Management,5848 Severn Trent Serv Ops Uk Ltd,6629,459.6
"Department for Business, Energy and Industrial Strategy",The Coal Authority,02/11/2016,Minewater Contractor Maint. Visits - Ops Site,Environment - Contract Management,5848 Severn Trent Serv Ops Uk Ltd,6629,1313.2
"Department for Business, Energy and Industrial Strategy",The Coal Authority,02/11/2016,Minewater Contractor Maint. Visits - Ops Site,Environment - Contract Management,5848 Severn Trent Serv Ops Uk Ltd,6629,75.9
"Department for Business, Energy and Industrial Strategy",The Coal Authority,02/11/2016,Minewater Contractor Maint. Visits - Ops Site,Environment - Contract Management,5848 Severn Trent Serv Ops Uk Ltd,6629,1545.59
"Department for Business, Energy and Industrial Strategy",The Coal Authority,02/11/2016,Minewater Contractor Maint. Visits - Ops Site,Environment - Contract Management,5848 Severn Trent Serv Ops Uk Ltd,6629,355.87
"Department for Business, Energy and Industrial Strategy",The Coal Authority,02/11/2016,Minewater Contractor Maint. Visits - Ops Site,Environment - Contract Management,5848 Severn Trent Serv Ops Uk Ltd,6629,448.64
"Department for Business, Energy and Industrial Strategy",The Coal Authority,02/11/2016,Minewater Contractor Maint. Visits - Ops Site,Environment - Contract Management,5848 Severn Trent Serv Ops Uk Ltd,6629,491.64
"Department for Business, Energy and Industrial Strategy",The Coal Authority,02/11/2016,Minewater Contractor Maint. Visits - Ops Site,Environment - Contract Management,5848 Severn Trent Serv Ops Uk Ltd,6629,143.62
"Department for Business, Energy and Industrial Strategy",The Coal Authority,02/11/2016,Minewater Contractor Maint. Visits - Ops Site,Environment - Contract Management,5848 Severn Trent Serv Ops Uk Ltd,6629,247.93
"Department for Business, Energy and Industrial Strategy",The Coal Authority,02/11/2016,Minewater Contractor Maint. Visits - Ops Site,Environment - Contract Management,5848 Severn Trent Serv Ops Uk Ltd,6629,594.52
"Department for Business, Energy and Industrial Strategy",The Coal Authority,02/11/2016,Minewater Contractor Maint. Visits - Ops Site,Environment - Contract Management,5848 Severn Trent Serv Ops Uk Ltd,6629,33.73
"Department for Business, Energy and Industrial Strategy",The Coal Authority,02/11/2016,Minewater Contractor Maint. Visits - Ops Site,Environment - Contract Management,5848 Severn Trent Serv Ops Uk Ltd,6629,506.08
"Department for Business, Energy and Industrial Strategy",The Coal Authority,02/11/2016,Minewater Contractor Maint. Visits - Ops Site,Environment - Contract Management,5848 Severn Trent Serv Ops Uk Ltd,6629,123.1
"Department for Business, Energy and Industrial Strategy",The Coal Authority,02/11/2016,Minewater Contractor Maint. Visits - Ops Site,Environment - Contract Management,5848 Severn Trent Serv Ops Uk Ltd,6629,3208.82
"Department for Business, Energy and Industrial Strategy",The Coal Authority,02/11/2016,Minewater Contractor Maint. Visits - Ops Site,Environment - Contract Management,5848 Severn Trent Serv Ops Uk Ltd,6629,642.59
"Department for Business, Energy and Industrial Strategy",The Coal Authority,02/11/2016,Minewater Contractor Maint. Visits - Ops Site,Environment - Contract Management,5848 Severn Trent Serv Ops Uk Ltd,6629,400.57
"Department for Business, Energy and Industrial Strategy",The Coal Authority,02/11/2016,Minewater Contractor Maint. Visits - Ops Site,Environment - Contract Management,5848 Severn Trent Serv Ops Uk Ltd,6629,341.95
"Department for Business, Energy and Industrial Strategy",The Coal Authority,02/11/2016,Minewater Contractor Maint. Visits - Ops Site,Environment - Contract Management,5848 Severn Trent Serv Ops Uk Ltd,6629,806.99
"Department for Business, Energy and Industrial Strategy",The Coal Authority,02/11/2016,Minewater Contractor Maint. Visits - Ops Site,Environment - Contract Management,5848 Severn Trent Serv Ops Uk Ltd,6629,212.51
"Department for Business, Energy and Industrial Strategy",The Coal Authority,02/11/2016,Minewater Contractor Maint. Visits - Ops Site,Environment - Contract Management,5848 Severn Trent Serv Ops Uk Ltd,6629,75.05
"Department for Business, Energy and Industrial Strategy",The Coal Authority,02/11/2016,Minewater Contractor Maint. Visits - Ops Site,Environment - Contract Management,5848 Severn Trent Serv Ops Uk Ltd,6629,8909.71
"Department for Business, Energy and Industrial Strategy",The Coal Authority,02/11/2016,Minewater Contractor Maint. Visits - Ops Site,Environment - Contract Management,5848 Severn Trent Serv Ops Uk Ltd,6629,122.28
"Department for Business, Energy and Industrial Strategy",The Coal Authority,02/11/2016,Minewater Contractor Maint. Visits - Ops Site,Environment - Contract Management,5848 Severn Trent Serv Ops Uk Ltd,6629,574.47
"Department for Business, Energy and Industrial Strategy",The Coal Authority,02/11/2016,Minewater Contractor Maint. Visits - Ops Site,Environment - Contract Management,5848 Severn Trent Serv Ops Uk Ltd,6629,46.38
"Department for Business, Energy and Industrial Strategy",The Coal Authority,02/11/2016,Minewater Contractor Maint. Visits - Ops Site,Environment - Contract Management,5848 Severn Trent Serv Ops Uk Ltd,6629,493.33
"Department for Business, Energy and Industrial Strategy",The Coal Authority,02/11/2016,Minewater Contractor Maint. Visits - Ops Site,Environment - Contract Management,5848 Severn Trent Serv Ops Uk Ltd,6629,1823.26
"Department for Business, Energy and Industrial Strategy",The Coal Authority,02/11/2016,Minewater Contractor Maint. Visits - Ops Site,Environment - Contract Management,5848 Severn Trent Serv Ops Uk Ltd,6629,232.52
"Department for Business, Energy and Industrial Strategy",The Coal Authority,02/11/2016,Minewater Contractor Maint. Visits - Ops Site,Environment - Contract Management,5848 Severn Trent Serv Ops Uk Ltd,6629,712.61
"Department for Business, Energy and Industrial Strategy",The Coal Authority,02/11/2016,Minewater Contractor Maint. Visits - Ops Site,Environment - Contract Management,5848 Severn Trent Serv Ops Uk Ltd,6629,287.23
"Department for Business, Energy and Industrial Strategy",The Coal Authority,02/11/2016,Minewater Contractor Maint. Visits - Ops Site,Environment - Contract Management,5848 Severn Trent Serv Ops Uk Ltd,6629,136.78
"Department for Business, Energy and Industrial Strategy",The Coal Authority,02/11/2016,Minewater Contractor Maint. Visits - Ops Site,Environment - Contract Management,5848 Severn Trent Serv Ops Uk Ltd,6629,206.61
"Department for Business, Energy and Industrial Strategy",The Coal Authority,02/11/2016,Minewater Contractor Maint. Visits - Ops Site,Environment - Contract Management,5848 Severn Trent Serv Ops Uk Ltd,6629,252.99
"Department for Business, Energy and Industrial Strategy",The Coal Authority,02/11/2016,Minewater Contractor Maint. Visits - Ops Site,Environment - Contract Management,5848 Severn Trent Serv Ops Uk Ltd,6629,193.96
"Department for Business, Energy and Industrial Strategy",The Coal Authority,02/11/2016,Minewater Contractor Maint. Visits - Ops Site,Environment - Contract Management,5848 Severn Trent Serv Ops Uk Ltd,6629,338.16
"Department for Business, Energy and Industrial Strategy",The Coal Authority,02/11/2016,Minewater Contractor Maint. Visits - Ops Site,Environment - Contract Management,5848 Severn Trent Serv Ops Uk Ltd,6629,526.6
"Department for Business, Energy and Industrial Strategy",The Coal Authority,02/11/2016,Minewater Contractor Maint. Visits - Ops Site,Environment - Contract Management,5848 Severn Trent Serv Ops Uk Ltd,6629,1057.49
"Department for Business, Energy and Industrial Strategy",The Coal Authority,02/11/2016,Minewater Contractor Maint. Visits - Ops Site,Environment - Contract Management,5848 Severn Trent Serv Ops Uk Ltd,6629,636.02
"Department for Business, Energy and Industrial Strategy",The Coal Authority,02/11/2016,Minewater Contractor Maint. Visits - Ops Site,Environment - Contract Management,5848 Severn Trent Serv Ops Uk Ltd,6629,382.98
"Department for Business, Energy and Industrial Strategy",The Coal Authority,02/11/2016,Minewater Contractor Maint. Visits - Ops Site,Environment - Contract Management,5848 Severn Trent Serv Ops Uk Ltd,6629,412.52
"Department for Business, Energy and Industrial Strategy",The Coal Authority,02/11/2016,Minewater Contractor Maint. Visits - Ops Site,Environment - Contract Management,5848 Severn Trent Serv Ops Uk Ltd,6629,123.96
"Department for Business, Energy and Industrial Strategy",The Coal Authority,02/11/2016,Minewater Contractor Maint. Visits - Ops Site,Environment - Contract Management,5848 Severn Trent Serv Ops Uk Ltd,6629,133.24
"Department for Business, Energy and Industrial Strategy",The Coal Authority,02/11/2016,Minewater Contractor Maint. Visits - Ops Site,Environment - Contract Management,5848 Severn Trent Serv Ops Uk Ltd,6629,252.99
"Department for Business, Energy and Industrial Strategy",The Coal Authority,02/11/2016,Minewater Contractor Maint. Visits - Ops Site,Environment - Contract Management,5848 Severn Trent Serv Ops Uk Ltd,6629,13.68
"Department for Business, Energy and Industrial Strategy",The Coal Authority,02/11/2016,Minewater Contractor Maint. Visits - Ops Site,Environment - Contract Management,5848 Severn Trent Serv Ops Uk Ltd,6629,699.94
"Department for Business, Energy and Industrial Strategy",The Coal Authority,02/11/2016,Minewater Contractor Maint. Visits - Ops Site,Environment - Contract Management,5848 Severn Trent Serv Ops Uk Ltd,6629,425.87
"Department for Business, Energy and Industrial Strategy",The Coal Authority,02/11/2016,Minewater Contractor Maint. Visits - Ops Site,Environment - Contract Management,5848 Severn Trent Serv Ops Uk Ltd,6629,400.57
"Department for Business, Energy and Industrial Strategy",The Coal Authority,02/11/2016,Minewater Contractor Maint. Visits - Ops Site,Environment - Contract Management,5848 Severn Trent Serv Ops Uk Ltd,6629,285.88
"Department for Business, Energy and Industrial Strategy",The Coal Authority,02/11/2016,Minewater Contractor Maint. Visits - Ops Site,Environment - Contract Management,5848 Severn Trent Serv Ops Uk Ltd,6629,451.37
"Department for Business, Energy and Industrial Strategy",The Coal Authority,02/11/2016,Minewater Contractor Maint. Visits - Ops Site,Environment - Contract Management,5848 Severn Trent Serv Ops Uk Ltd,6629,320.45
"Department for Business, Energy and Industrial Strategy",The Coal Authority,02/11/2016,Minewater Contractor Maint. Visits - Ops Site,Environment - Contract Management,5848 Severn Trent Serv Ops Uk Ltd,6629,775.83
"Department for Business, Energy and Industrial Strategy",The Coal Authority,02/11/2016,Minewater Contractor Maint. Visits - Ops Site,Environment - Contract Management,5848 Severn Trent Serv Ops Uk Ltd,6629,6130.77
"Department for Business, Energy and Industrial Strategy",The Coal Authority,02/11/2016,Minewater Contractor Maint. Visits - Ops Site,Environment - Contract Management,5848 Severn Trent Serv Ops Uk Ltd,6629,70.84
"Department for Business, Energy and Industrial Strategy",The Coal Authority,02/11/2016,Minewater Contractor Maint. Visits - Ops Site,Environment - Contract Management,5848 Severn Trent Serv Ops Uk Ltd,6629,563.11
"Department for Business, Energy and Industrial Strategy",The Coal Authority,02/11/2016,Minewater Contractor Maint. Visits - Ops Site,Environment - Contract Management,5848 Severn Trent Serv Ops Uk Ltd,6629,136.78
"Department for Business, Energy and Industrial Strategy",The Coal Authority,02/11/2016,Minewater Contractor Maint. Visits - Ops Site,Environment - Contract Management,5848 Severn Trent Serv Ops Uk Ltd,6629,369.3
"Department for Business, Energy and Industrial Strategy",The Coal Authority,02/11/2016,Minewater Contractor Maint. Visits - Ops Site,Environment - Contract Management,5848 Severn Trent Serv Ops Uk Ltd,6629,364.48
"Department for Business, Energy and Industrial Strategy",The Coal Authority,02/11/2016,Minewater Contractor Maint. Visits - Ops Site,Environment - Contract Management,5848 Severn Trent Serv Ops Uk Ltd,6629,177.09
"Department for Business, Energy and Industrial Strategy",The Coal Authority,02/11/2016,Minewater Contractor Maint. Visits - Ops Site,Environment - Contract Management,5848 Severn Trent Serv Ops Uk Ltd,6629,151.79
"Department for Business, Energy and Industrial Strategy",The Coal Authority,29/09/2016,Minewater Contractor Maint. Visits - Ops Site,Environment - Contract Management,National Coal Mining Museum,6099,4950
"Department for Business, Energy and Industrial Strategy",The Coal Authority,30/09/2016,Minewater Contractor Maint. Visits - Ops Site,Environment - Contract Management,National Coal Mining Museum,6098,2505.13
"Department for Business, Energy and Industrial Strategy",The Coal Authority,30/09/2016,Minewater Land Agents (Acquisitions),Environment - Contract Management,Mark N Carey Limited,5818,975
"Department for Business, Energy and Industrial Strategy",The Coal Authority,30/09/2016,Minewater Land Agents (Acquisitions),Environment - Contract Management,Mark N Carey Limited,5835,682.5
"Department for Business, Energy and Industrial Strategy",The Coal Authority,30/09/2016,Minewater Land Option / Access Payments,Environment - Contract Management,Mark N Carey Limited,5819,312
"Department for Business, Energy and Industrial Strategy",The Coal Authority,02/11/2016,Minewater Landscaping,Environment - Contract Management,5848 Severn Trent Serv Ops Uk Ltd,6629,1575.51
"Department for Business, Energy and Industrial Strategy",The Coal Authority,02/11/2016,Minewater Landscaping,Environment - Contract Management,5848 Severn Trent Serv Ops Uk Ltd,6629,543.55
"Department for Business, Energy and Industrial Strategy",The Coal Authority,02/11/2016,Minewater Liability & Monitoring Sites - Maint.,Environment - Contract Management,5848 Severn Trent Serv Ops Uk Ltd,6629,11349.59
"Department for Business, Energy and Industrial Strategy",The Coal Authority,02/11/2016,Minewater Liability & Monitoring Sites - Maint.,Environment - Contract Management,5848 Severn Trent Serv Ops Uk Ltd,6629,13405.69
"Department for Business, Energy and Industrial Strategy",The Coal Authority,02/11/2016,Minewater Monitoring & Flow Measurement,Environment - Contract Management,5848 Severn Trent Serv Ops Uk Ltd,6629,503.07
"Department for Business, Energy and Industrial Strategy",The Coal Authority,02/11/2016,Minewater Monitoring & Flow Measurement,Environment - Contract Management,5848 Severn Trent Serv Ops Uk Ltd,6629,975.77
"Department for Business, Energy and Industrial Strategy",The Coal Authority,02/11/2016,Minewater Monitoring & Flow Measurement,Environment - Contract Management,5848 Severn Trent Serv Ops Uk Ltd,6629,182.27
"Department for Business, Energy and Industrial Strategy",The Coal Authority,02/11/2016,Minewater Monitoring & Flow Measurement,Environment - Contract Management,5848 Severn Trent Serv Ops Uk Ltd,6629,2613.99
"Department for Business, Energy and Industrial Strategy",The Coal Authority,02/11/2016,Minewater Monitoring & Flow Measurement,Environment - Contract Management,5848 Severn Trent Serv Ops Uk Ltd,6629,38304.06
"Department for Business, Energy and Industrial Strategy",The Coal Authority,02/11/2016,Minewater Monitoring & Flow Measurement,Environment - Contract Management,5848 Severn Trent Serv Ops Uk Ltd,6629,1177.21
"Department for Business, Energy and Industrial Strategy",The Coal Authority,02/11/2016,Minewater Monitoring & Flow Measurement,Environment - Contract Management,5848 Severn Trent Serv Ops Uk Ltd,6629,32.73
"Department for Business, Energy and Industrial Strategy",The Coal Authority,02/11/2016,Minewater Monitoring & Flow Measurement,Environment - Contract Management,5848 Severn Trent Serv Ops Uk Ltd,6629,23.15
"Department for Business, Energy and Industrial Strategy",The Coal Authority,02/11/2016,Minewater Monitoring & Flow Measurement,Environment - Contract Management,5848 Severn Trent Serv Ops Uk Ltd,6629,9.28
"Department for Business, Energy and Industrial Strategy",The Coal Authority,02/11/2016,Minewater Monitoring & Flow Measurement,Environment - Contract Management,5848 Severn Trent Serv Ops Uk Ltd,6629,44576.62
"Department for Business, Energy and Industrial Strategy",The Coal Authority,04/10/2016,Minewater Power Costs,Environment - Contract Management,British Gas Business,6053,258.21
"Department for Business, Energy and Industrial Strategy",The Coal Authority,04/10/2016,Minewater Power Costs,Environment - Contract Management,British Gas Business,6054,669.16
"Department for Business, Energy and Industrial Strategy",The Coal Authority,06/10/2016,Minewater Power Costs,Environment - Contract Management,British Gas Business,6051,840.12
"Department for Business, Energy and Industrial Strategy",The Coal Authority,11/10/2016,Minewater Power Costs,Environment - Contract Management,British Gas Business,6405,586.63
"Department for Business, Energy and Industrial Strategy",The Coal Authority,11/10/2016,Minewater Power Costs,Environment - Contract Management,British Gas Business,6407,925.36
"Department for Business, Energy and Industrial Strategy",The Coal Authority,11/10/2016,Minewater Power Costs,Environment - Contract Management,British Gas Business,6407,28.55
"Department for Business, Energy and Industrial Strategy",The Coal Authority,11/10/2016,Minewater Power Costs,Environment - Contract Management,British Gas Business,6407,1668.82
"Department for Business, Energy and Industrial Strategy",The Coal Authority,11/10/2016,Minewater Power Costs,Environment - Contract Management,British Gas Business,6407,604.71
"Department for Business, Energy and Industrial Strategy",The Coal Authority,11/10/2016,Minewater Power Costs,Environment - Contract Management,British Gas Business,6407,1827.22
"Department for Business, Energy and Industrial Strategy",The Coal Authority,11/10/2016,Minewater Power Costs,Environment - Contract Management,British Gas Business,6407,833.16
"Department for Business, Energy and Industrial Strategy",The Coal Authority,11/10/2016,Minewater Power Costs,Environment - Contract Management,British Gas Business,6407,2353.52
"Department for Business, Energy and Industrial Strategy",The Coal Authority,11/10/2016,Minewater Power Costs,Environment - Contract Management,British Gas Business,6407,2518.08
"Department for Business, Energy and Industrial Strategy",The Coal Authority,11/10/2016,Minewater Power Costs,Environment - Contract Management,British Gas Business,6407,2549.67
"Department for Business, Energy and Industrial Strategy",The Coal Authority,11/10/2016,Minewater Power Costs,Environment - Contract Management,British Gas Business,6407,327.56
"Department for Business, Energy and Industrial Strategy",The Coal Authority,11/10/2016,Minewater Power Costs,Environment - Contract Management,British Gas Business,6407,735.05
"Department for Business, Energy and Industrial Strategy",The Coal Authority,11/10/2016,Minewater Power Costs,Environment - Contract Management,British Gas Business,6407,296.15
"Department for Business, Energy and Industrial Strategy",The Coal Authority,11/10/2016,Minewater Power Costs,Environment - Contract Management,British Gas Business,6407,9.79
"Department for Business, Energy and Industrial Strategy",The Coal Authority,11/10/2016,Minewater Power Costs,Environment - Contract Management,British Gas Business,6407,8147.35
"Department for Business, Energy and Industrial Strategy",The Coal Authority,11/10/2016,Minewater Power Costs,Environment - Contract Management,British Gas Business,6407,459.89
"Department for Business, Energy and Industrial Strategy",The Coal Authority,11/10/2016,Minewater Power Costs,Environment - Contract Management,British Gas Business,6407,964.14
"Department for Business, Energy and Industrial Strategy",The Coal Authority,11/10/2016,Minewater Power Costs,Environment - Contract Management,British Gas Business,6407,1599.08
"Department for Business, Energy and Industrial Strategy",The Coal Authority,11/10/2016,Minewater Power Costs,Environment - Contract Management,British Gas Business,6407,724.4
"Department for Business, Energy and Industrial Strategy",The Coal Authority,11/10/2016,Minewater Power Costs,Environment - Contract Management,British Gas Business,6407,1228.67
"Department for Business, Energy and Industrial Strategy",The Coal Authority,11/10/2016,Minewater Power Costs,Environment - Contract Management,British Gas Business,6407,116.99
"Department for Business, Energy and Industrial Strategy",The Coal Authority,11/10/2016,Minewater Power Costs,Environment - Contract Management,British Gas Business,6407,490.89
"Department for Business, Energy and Industrial Strategy",The Coal Authority,11/10/2016,Minewater Power Costs,Environment - Contract Management,British Gas Business,6407,579.21
"Department for Business, Energy and Industrial Strategy",The Coal Authority,11/10/2016,Minewater Power Costs,Environment - Contract Management,British Gas Business,6407,691.69
"Department for Business, Energy and Industrial Strategy",The Coal Authority,11/10/2016,Minewater Power Costs,Environment - Contract Management,British Gas Business,6407,222.48
"Department for Business, Energy and Industrial Strategy",The Coal Authority,04/10/2016,Minewater Power Costs,Environment - Contract Management,Edf Energy,5843,780.48
"Department for Business, Energy and Industrial Strategy",The Coal Authority,04/10/2016,Minewater Power Costs,Environment - Contract Management,Edf Energy,5843,3647.17
"Department for Business, Energy and Industrial Strategy",The Coal Authority,04/10/2016,Minewater Power Costs,Environment - Contract Management,Edf Energy,5843,6823.02
"Department for Business, Energy and Industrial Strategy",The Coal Authority,04/10/2016,Minewater Power Costs,Environment - Contract Management,Edf Energy,5843,9004.78
"Department for Business, Energy and Industrial Strategy",The Coal Authority,04/10/2016,Minewater Power Costs,Environment - Contract Management,Edf Energy,5843,3109.73
"Department for Business, Energy and Industrial Strategy",The Coal Authority,04/10/2016,Minewater Power Costs,Environment - Contract Management,Edf Energy,5843,13978.02
"Department for Business, Energy and Industrial Strategy",The Coal Authority,04/10/2016,Minewater Power Costs,Environment - Contract Management,Edf Energy,5843,3582.73
"Department for Business, Energy and Industrial Strategy",The Coal Authority,04/10/2016,Minewater Power Costs,Environment - Contract Management,Edf Energy,5843,6129.88
"Department for Business, Energy and Industrial Strategy",The Coal Authority,04/10/2016,Minewater Power Costs,Environment - Contract Management,Edf Energy,5843,6717.94
"Department for Business, Energy and Industrial Strategy",The Coal Authority,04/10/2016,Minewater Power Costs,Environment - Contract Management,Edf Energy,5843,11106.57
"Department for Business, Energy and Industrial Strategy",The Coal Authority,04/10/2016,Minewater Power Costs,Environment - Contract Management,Edf Energy,5843,13629.74
"Department for Business, Energy and Industrial Strategy",The Coal Authority,04/10/2016,Minewater Power Costs,Environment - Contract Management,Edf Energy,5833,6432.52
"Department for Business, Energy and Industrial Strategy",The Coal Authority,04/10/2016,Minewater Power Costs,Environment - Contract Management,Edf Energy,5843,9469.89
"Department for Business, Energy and Industrial Strategy",The Coal Authority,04/10/2016,Minewater Power Costs,Environment - Contract Management,Edf Energy,5843,5200.29
"Department for Business, Energy and Industrial Strategy",The Coal Authority,04/10/2016,Minewater Power Costs,Environment - Contract Management,Edf Energy,5843,15534
"Department for Business, Energy and Industrial Strategy",The Coal Authority,04/10/2016,Minewater Power Costs,Environment - Contract Management,Edf Energy,5843,6480.1
"Department for Business, Energy and Industrial Strategy",The Coal Authority,04/10/2016,Minewater Power Costs,Environment - Contract Management,Edf Energy,5843,18839.94
"Department for Business, Energy and Industrial Strategy",The Coal Authority,04/10/2016,Minewater Power Costs,Environment - Contract Management,Edf Energy,5843,320.09
"Department for Business, Energy and Industrial Strategy",The Coal Authority,04/10/2016,Minewater Power Costs,Environment - Contract Management,Edf Energy,5843,366.85
"Department for Business, Energy and Industrial Strategy",The Coal Authority,04/10/2016,Minewater Power Costs,Environment - Contract Management,Edf Energy,5843,882
"Department for Business, Energy and Industrial Strategy",The Coal Authority,04/10/2016,Minewater Power Costs,Environment - Contract Management,Edf Energy,5843,787
"Department for Business, Energy and Industrial Strategy",The Coal Authority,04/10/2016,Minewater Power Costs,Environment - Contract Management,Edf Energy,5843,1063.36
"Department for Business, Energy and Industrial Strategy",The Coal Authority,04/10/2016,Minewater Power Costs,Environment - Contract Management,Edf Energy,5843,1097.54
"Department for Business, Energy and Industrial Strategy",The Coal Authority,04/10/2016,Minewater Power Costs,Environment - Contract Management,Edf Energy,5843,1054.78
"Department for Business, Energy and Industrial Strategy",The Coal Authority,04/10/2016,Minewater Power Costs,Environment - Contract Management,Edf Energy,5843,989.24
"Department for Business, Energy and Industrial Strategy",The Coal Authority,04/10/2016,Minewater Power Costs,Environment - Contract Management,Edf Energy,5843,1881.32
"Department for Business, Energy and Industrial Strategy",The Coal Authority,04/10/2016,Minewater Power Costs,Environment - Contract Management,Edf Energy Customers Plc,5832,564.77
"Department for Business, Energy and Industrial Strategy",The Coal Authority,06/10/2016,Minewater Power Costs,Environment - Contract Management,National Coal Mining Museum,6158,11211.48
"Department for Business, Energy and Industrial Strategy",The Coal Authority,02/11/2016,Minewater Pump Overhauls,Environment - Contract Management,5848 Severn Trent Serv Ops Uk Ltd,6629,18.81
"Department for Business, Energy and Industrial Strategy",The Coal Authority,02/11/2016,Minewater Pump Overhauls,Environment - Contract Management,5848 Severn Trent Serv Ops Uk Ltd,6629,545.54
"Department for Business, Energy and Industrial Strategy",The Coal Authority,02/11/2016,Minewater Pumping Tests,Environment - Contract Management,5848 Severn Trent Serv Ops Uk Ltd,6629,8309.86
"Department for Business, Energy and Industrial Strategy",The Coal Authority,02/11/2016,Minewater Pumping Tests,Environment - Contract Management,5848 Severn Trent Serv Ops Uk Ltd,6629,1205.93
"Department for Business, Energy and Industrial Strategy",The Coal Authority,29/09/2016,Minewater Rates,Environment - Contract Management,Cannock Chase District Council,5851,4800
"Department for Business, Energy and Industrial Strategy",The Coal Authority,29/09/2016,Minewater Rates,Environment - Contract Management,Cannock Chase District Council,5852,4840
"Department for Business, Energy and Industrial Strategy",The Coal Authority,29/09/2016,Minewater Rates,Environment - Contract Management,Wigan Council,5853,4800
"Department for Business, Energy and Industrial Strategy",The Coal Authority,29/09/2016,Minewater Rates,Environment - Contract Management,Wigan Council,5854,4840
"Department for Business, Energy and Industrial Strategy",The Coal Authority,30/09/2016,Minewater Rates,Environment - Contract Management,Wigan Council,6044,7200
"Department for Business, Energy and Industrial Strategy",The Coal Authority,30/09/2016,Minewater Rates,Environment - Contract Management,Wigan Council,6045,7260
"Department for Business, Energy and Industrial Strategy",The Coal Authority,02/11/2016,Minewater Remediation,Environment - Contract Management,5848 Severn Trent Serv Ops Uk Ltd,6629,56.44
"Department for Business, Energy and Industrial Strategy",The Coal Authority,02/11/2016,Minewater Remediation,Environment - Contract Management,5848 Severn Trent Serv Ops Uk Ltd,6629,219.26
"Department for Business, Energy and Industrial Strategy",The Coal Authority,02/11/2016,Minewater Remediation,Environment - Contract Management,5848 Severn Trent Serv Ops Uk Ltd,6629,1065.93
"Department for Business, Energy and Industrial Strategy",The Coal Authority,02/11/2016,Minewater Remediation,Environment - Contract Management,5848 Severn Trent Serv Ops Uk Ltd,6629,160.23
"Department for Business, Energy and Industrial Strategy",The Coal Authority,02/11/2016,Minewater Remediation,Environment - Contract Management,5848 Severn Trent Serv Ops Uk Ltd,6629,306.75
"Department for Business, Energy and Industrial Strategy",The Coal Authority,24/10/2016,Minewater Remediation,Environment - Contract Management,Compensation Payment,6375,25000
"Department for Business, Energy and Industrial Strategy",The Coal Authority,14/10/2016,Minewater Rent,Environment - Contract Management,Balgonie Estates Ltd,6515,150
"Department for Business, Energy and Industrial Strategy",The Coal Authority,03/10/2016,Minewater Rent,Environment - Contract Management,Harbour House Farm,5766,26380.59
"Department for Business, Energy and Industrial Strategy",The Coal Authority,04/10/2016,Minewater Rent,Environment - Contract Management,Rental Payment,5720,3000
"Department for Business, Energy and Industrial Strategy",The Coal Authority,04/10/2016,Minewater Rent,Environment - Contract Management,Rental Payment,5722,908.4
"Department for Business, Energy and Industrial Strategy",The Coal Authority,28/10/2016,Minewater Rent,Environment - Contract Management,Rental Payment,6472,495
"Department for Business, Energy and Industrial Strategy",The Coal Authority,04/10/2016,Minewater Rent,Environment - Contract Management,Rental Payment,5723,100
"Department for Business, Energy and Industrial Strategy",The Coal Authority,04/10/2016,Minewater Rent,Environment - Contract Management,Rental Payment,5721,2563.74
"Department for Business, Energy and Industrial Strategy",The Coal Authority,27/10/2016,Minewater Rent,Environment - Contract Management,Rental Payment,6442,100
"Department for Business, Energy and Industrial Strategy",The Coal Authority,04/10/2016,Minewater Rent,Environment - Contract Management,Tom Horsfield,5719,1057.56
"Department for Business, Energy and Industrial Strategy",The Coal Authority,02/11/2016,Minewater Sampling - Operational Sites,Environment - Contract Management,5848 Severn Trent Serv Ops Uk Ltd,6629,2099.18
"Department for Business, Energy and Industrial Strategy",The Coal Authority,02/11/2016,Minewater Sampling - Operational Sites,Environment - Contract Management,5848 Severn Trent Serv Ops Uk Ltd,6629,705.43
"Department for Business, Energy and Industrial Strategy",The Coal Authority,02/11/2016,Minewater Sampling - Operational Sites,Environment - Contract Management,5848 Severn Trent Serv Ops Uk Ltd,6629,86.6
"Department for Business, Energy and Industrial Strategy",The Coal Authority,02/11/2016,Minewater Sampling - Operational Sites,Environment - Contract Management,5848 Severn Trent Serv Ops Uk Ltd,6629,108.81
"Department for Business, Energy and Industrial Strategy",The Coal Authority,02/11/2016,Minewater Sampling - Operational Sites,Environment - Contract Management,5848 Severn Trent Serv Ops Uk Ltd,6629,82.28
"Department for Business, Energy and Industrial Strategy",The Coal Authority,02/11/2016,Minewater Sampling - Operational Sites,Environment - Contract Management,5848 Severn Trent Serv Ops Uk Ltd,6629,84.81
"Department for Business, Energy and Industrial Strategy",The Coal Authority,02/11/2016,Minewater Sampling - Operational Sites,Environment - Contract Management,5848 Severn Trent Serv Ops Uk Ltd,6629,91.28
"Department for Business, Energy and Industrial Strategy",The Coal Authority,02/11/2016,Minewater Sampling - Operational Sites,Environment - Contract Management,5848 Severn Trent Serv Ops Uk Ltd,6629,31.58
"Department for Business, Energy and Industrial Strategy",The Coal Authority,02/11/2016,Minewater Sampling - Operational Sites,Environment - Contract Management,5848 Severn Trent Serv Ops Uk Ltd,6629,81.91
"Department for Business, Energy and Industrial Strategy",The Coal Authority,02/11/2016,Minewater Sampling - Operational Sites,Environment - Contract Management,5848 Severn Trent Serv Ops Uk Ltd,6629,132.65
"Department for Business, Energy and Industrial Strategy",The Coal Authority,02/11/2016,Minewater Sampling - Operational Sites,Environment - Contract Management,5848 Severn Trent Serv Ops Uk Ltd,6629,189.5
"Department for Business, Energy and Industrial Strategy",The Coal Authority,02/11/2016,Minewater Sampling - Operational Sites,Environment - Contract Management,5848 Severn Trent Serv Ops Uk Ltd,6629,104.12
"Department for Business, Energy and Industrial Strategy",The Coal Authority,02/11/2016,Minewater Sampling - Operational Sites,Environment - Contract Management,5848 Severn Trent Serv Ops Uk Ltd,6629,202.37
"Department for Business, Energy and Industrial Strategy",The Coal Authority,02/11/2016,Minewater Sampling - Operational Sites,Environment - Contract Management,5848 Severn Trent Serv Ops Uk Ltd,6629,72.54
"Department for Business, Energy and Industrial Strategy",The Coal Authority,02/11/2016,Minewater Sampling - Operational Sites,Environment - Contract Management,5848 Severn Trent Serv Ops Uk Ltd,6629,31.58
"Department for Business, Energy and Industrial Strategy",The Coal Authority,02/11/2016,Minewater Sampling - Operational Sites,Environment - Contract Management,5848 Severn Trent Serv Ops Uk Ltd,6629,31.58
"Department for Business, Energy and Industrial Strategy",The Coal Authority,02/11/2016,Minewater Sampling - Operational Sites,Environment - Contract Management,5848 Severn Trent Serv Ops Uk Ltd,6629,63.17
"Department for Business, Energy and Industrial Strategy",The Coal Authority,02/11/2016,Minewater Sampling - Operational Sites,Environment - Contract Management,5848 Severn Trent Serv Ops Uk Ltd,6629,77.23
"Department for Business, Energy and Industrial Strategy",The Coal Authority,02/11/2016,Minewater Sampling - Operational Sites,Environment - Contract Management,5848 Severn Trent Serv Ops Uk Ltd,6629,31.58
"Department for Business, Energy and Industrial Strategy",The Coal Authority,02/11/2016,Minewater Sampling - Operational Sites,Environment - Contract Management,5848 Severn Trent Serv Ops Uk Ltd,6629,320.48
"Department for Business, Energy and Industrial Strategy",The Coal Authority,02/11/2016,Minewater Sampling - Operational Sites,Environment - Contract Management,5848 Severn Trent Serv Ops Uk Ltd,6629,31.58
"Department for Business, Energy and Industrial Strategy",The Coal Authority,02/11/2016,Minewater Sampling - Operational Sites,Environment - Contract Management,5848 Severn Trent Serv Ops Uk Ltd,6629,63.17
"Department for Business, Energy and Industrial Strategy",The Coal Authority,02/11/2016,Minewater Sampling - Operational Sites,Environment - Contract Management,5848 Severn Trent Serv Ops Uk Ltd,6629,335.09
"Department for Business, Energy and Industrial Strategy",The Coal Authority,02/11/2016,Minewater Sampling - Operational Sites,Environment - Contract Management,5848 Severn Trent Serv Ops Uk Ltd,6629,146.55
"Department for Business, Energy and Industrial Strategy",The Coal Authority,02/11/2016,Minewater Sampling - Operational Sites,Environment - Contract Management,5848 Severn Trent Serv Ops Uk Ltd,6629,135.71
"Department for Business, Energy and Industrial Strategy",The Coal Authority,02/11/2016,Minewater Sampling - Operational Sites,Environment - Contract Management,5848 Severn Trent Serv Ops Uk Ltd,6629,400.55
"Department for Business, Energy and Industrial Strategy",The Coal Authority,02/11/2016,Minewater Sampling - Operational Sites,Environment - Contract Management,5848 Severn Trent Serv Ops Uk Ltd,6629,94.75
"Department for Business, Energy and Industrial Strategy",The Coal Authority,02/11/2016,Minewater Sampling - Operational Sites,Environment - Contract Management,5848 Severn Trent Serv Ops Uk Ltd,6629,104.12
"Department for Business, Energy and Industrial Strategy",The Coal Authority,02/11/2016,Minewater Sampling - Operational Sites,Environment - Contract Management,5848 Severn Trent Serv Ops Uk Ltd,6629,163.27
"Department for Business, Energy and Industrial Strategy",The Coal Authority,02/11/2016,Minewater Sampling - Operational Sites,Environment - Contract Management,5848 Severn Trent Serv Ops Uk Ltd,6629,337.64
"Department for Business, Energy and Industrial Strategy",The Coal Authority,02/11/2016,Minewater Sampling - Operational Sites,Environment - Contract Management,5848 Severn Trent Serv Ops Uk Ltd,6629,70.38
"Department for Business, Energy and Industrial Strategy",The Coal Authority,02/11/2016,Minewater Sampling - Operational Sites,Environment - Contract Management,5848 Severn Trent Serv Ops Uk Ltd,6629,44.22
"Department for Business, Energy and Industrial Strategy",The Coal Authority,02/11/2016,Minewater Sampling - Operational Sites,Environment - Contract Management,5848 Severn Trent Serv Ops Uk Ltd,6629,3379.06
"Department for Business, Energy and Industrial Strategy",The Coal Authority,02/11/2016,Minewater Sampling - Operational Sites,Environment - Contract Management,5848 Severn Trent Serv Ops Uk Ltd,6629,1511.44
"Department for Business, Energy and Industrial Strategy",The Coal Authority,02/11/2016,Minewater Sampling - Operational Sites,Environment - Contract Management,5848 Severn Trent Serv Ops Uk Ltd,6629,841.9
"Department for Business, Energy and Industrial Strategy",The Coal Authority,02/11/2016,Minewater Sampling - Operational Sites,Environment - Contract Management,5848 Severn Trent Serv Ops Uk Ltd,6629,1433.33
"Department for Business, Energy and Industrial Strategy",The Coal Authority,02/11/2016,Minewater Sampling - Operational Sites,Environment - Contract Management,5848 Severn Trent Serv Ops Uk Ltd,6629,975.77
"Department for Business, Energy and Industrial Strategy",The Coal Authority,02/11/2016,Minewater Sludge Disposal,Environment - Contract Management,5848 Severn Trent Serv Ops Uk Ltd,6629,65.85
"Department for Business, Energy and Industrial Strategy",The Coal Authority,02/11/2016,Minewater Sludge Disposal,Environment - Contract Management,5848 Severn Trent Serv Ops Uk Ltd,6629,37.63
"Department for Business, Energy and Industrial Strategy",The Coal Authority,02/11/2016,Minewater Sludge Disposal,Environment - Contract Management,5848 Severn Trent Serv Ops Uk Ltd,6629,28.22
"Department for Business, Energy and Industrial Strategy",The Coal Authority,02/11/2016,Minewater Sludge Disposal,Environment - Contract Management,5848 Severn Trent Serv Ops Uk Ltd,6629,18.81
"Department for Business, Energy and Industrial Strategy",The Coal Authority,02/11/2016,Minewater Sludge Disposal,Environment - Contract Management,5848 Severn Trent Serv Ops Uk Ltd,6629,150.01
"Department for Business, Energy and Industrial Strategy",The Coal Authority,02/11/2016,Minewater Sludge Disposal,Environment - Contract Management,5848 Severn Trent Serv Ops Uk Ltd,6629,7663.48
"Department for Business, Energy and Industrial Strategy",The Coal Authority,02/11/2016,Minewater Sludge Disposal,Environment - Contract Management,5848 Severn Trent Serv Ops Uk Ltd,6629,5100.87
"Department for Business, Energy and Industrial Strategy",The Coal Authority,02/11/2016,Minewater Sludge Disposal,Environment - Contract Management,5848 Severn Trent Serv Ops Uk Ltd,6629,19809.19
"Department for Business, Energy and Industrial Strategy",The Coal Authority,02/11/2016,Minewater Sludge Disposal,Environment - Contract Management,5848 Severn Trent Serv Ops Uk Ltd,6629,5.83
"Department for Business, Energy and Industrial Strategy",The Coal Authority,02/11/2016,Minewater Sludge Disposal,Environment - Contract Management,5848 Severn Trent Serv Ops Uk Ltd,6629,2.87
"Department for Business, Energy and Industrial Strategy",The Coal Authority,05/10/2016,Minewater Sludge Disposal,Environment - Contract Management,Nal Plant Limited,5979,28967.86
"Department for Business, Energy and Industrial Strategy",The Coal Authority,02/11/2016,Minewater Telecoms & Telemetry,Environment - Contract Management,5848 Severn Trent Serv Ops Uk Ltd,6629,112.88
"Department for Business, Energy and Industrial Strategy",The Coal Authority,02/10/2016,Minewater Telecoms & Telemetry,Environment - Contract Management,British Telecommunications Plc,6160,69.84
"Department for Business, Energy and Industrial Strategy",The Coal Authority,02/10/2016,Minewater Telecoms & Telemetry,Environment - Contract Management,O2 (Uk) Limited,5820,12.5
"Department for Business, Energy and Industrial Strategy",The Coal Authority,02/10/2016,Minewater Telecoms & Telemetry,Environment - Contract Management,O2 (Uk) Limited,5821,12.5
"Department for Business, Energy and Industrial Strategy",The Coal Authority,02/10/2016,Minewater Telecoms & Telemetry,Environment - Contract Management,O2 (Uk) Limited,5822,12.5
"Department for Business, Energy and Industrial Strategy",The Coal Authority,19/10/2016,Minewater Telecoms & Telemetry,Environment - Contract Management,Wyless Plc,6514,50
"Department for Business, Energy and Industrial Strategy",The Coal Authority,26/10/2016,Software Support & Maintenance - SaaS,Environment - Contract Management,Aconex Services Limited,6506,71
"Department for Business, Energy and Industrial Strategy",The Coal Authority,02/11/2016,Subsidence Pumping Maintenance - Other,Environment - Contract Management,5848 Severn Trent Serv Ops Uk Ltd,6629,168.66
"Department for Business, Energy and Industrial Strategy",The Coal Authority,02/11/2016,Subsidence Pumping Maintenance - Other,Environment - Contract Management,5848 Severn Trent Serv Ops Uk Ltd,6629,84.33
"Department for Business, Energy and Industrial Strategy",The Coal Authority,02/11/2016,Subsidence Pumping Maintenance - Other,Environment - Contract Management,5848 Severn Trent Serv Ops Uk Ltd,6629,37.95
"Department for Business, Energy and Industrial Strategy",The Coal Authority,02/11/2016,Subsidence Pumping Maintenance - Other,Environment - Contract Management,5848 Severn Trent Serv Ops Uk Ltd,6629,84.33
"Department for Business, Energy and Industrial Strategy",The Coal Authority,02/11/2016,Subsidence Pumping Maintenance - Other,Environment - Contract Management,5848 Severn Trent Serv Ops Uk Ltd,6629,67.46
"Department for Business, Energy and Industrial Strategy",The Coal Authority,02/11/2016,Subsidence Pumping Maintenance - Other,Environment - Contract Management,5848 Severn Trent Serv Ops Uk Ltd,6629,101.2
"Department for Business, Energy and Industrial Strategy",The Coal Authority,08/08/2016,Subsidence Pumping Maintenance - Other,Environment - Contract Management,Jeremy Benn Associates Ltd,5636,4175.25
"Department for Business, Energy and Industrial Strategy",The Coal Authority,04/10/2016,Subsidence Pumping Maintenance - Other,Environment - Contract Management,Jeremy Benn Associates Ltd,5890,1092.5
"Department for Business, Energy and Industrial Strategy",The Coal Authority,04/10/2016,Subsidence Pumping Maintenance - Other,Environment - Contract Management,Jeremy Benn Associates Ltd,5891,8968.75
"Department for Business, Energy and Industrial Strategy",The Coal Authority,30/09/2016,Subsidence Pumping Maintenance - Other,Environment - Contract Management,Nal Plant Limited,5629,82743
"Department for Business, Energy and Industrial Strategy",The Coal Authority,11/10/2016,Subsidence Pumping Maintenance - Power,Environment - Contract Management,British Gas Business,6405,12.09
"Department for Business, Energy and Industrial Strategy",The Coal Authority,11/10/2016,Subsidence Pumping Maintenance - Power,Environment - Contract Management,British Gas Business,6405,25.19
"Department for Business, Energy and Industrial Strategy",The Coal Authority,11/10/2016,Subsidence Pumping Maintenance - Power,Environment - Contract Management,British Gas Business,6405,42.76
"Department for Business, Energy and Industrial Strategy",The Coal Authority,11/10/2016,Subsidence Pumping Maintenance - Power,Environment - Contract Management,British Gas Business,6405,10.35
"Department for Business, Energy and Industrial Strategy",The Coal Authority,11/10/2016,Subsidence Pumping Maintenance - Power,Environment - Contract Management,British Gas Business,6405,26.14
"Department for Business, Energy and Industrial Strategy",The Coal Authority,11/10/2016,Subsidence Pumping Maintenance - Power,Environment - Contract Management,British Gas Business,6405,153.28
"Department for Business, Energy and Industrial Strategy",The Coal Authority,11/10/2016,Subsidence Pumping Maintenance - Power,Environment - Contract Management,British Gas Business,6405,43.28
"Department for Business, Energy and Industrial Strategy",The Coal Authority,11/10/2016,Subsidence Pumping Maintenance - Power,Environment - Contract Management,British Gas Business,6407,8.19
"Department for Business, Energy and Industrial Strategy",The Coal Authority,11/10/2016,Subsidence Pumping Maintenance - Power,Environment - Contract Management,British Gas Business,6407,42.85
"Department for Business, Energy and Industrial Strategy",The Coal Authority,11/10/2016,Subsidence Pumping Maintenance - Power,Environment - Contract Management,British Gas Business,6407,64.55
"Department for Business, Energy and Industrial Strategy",The Coal Authority,11/10/2016,Subsidence Pumping Maintenance - Power,Environment - Contract Management,British Gas Business,6407,253.81
"Department for Business, Energy and Industrial Strategy",The Coal Authority,11/10/2016,Subsidence Pumping Maintenance - Power,Environment - Contract Management,British Gas Business,6407,42.29
"Department for Business, Energy and Industrial Strategy",The Coal Authority,11/10/2016,Subsidence Pumping Maintenance - Power,Environment - Contract Management,British Gas Business,6407,36.25
"Department for Business, Energy and Industrial Strategy",The Coal Authority,11/10/2016,Subsidence Pumping Maintenance - Power,Environment - Contract Management,British Gas Business,6407,440.33
"Department for Business, Energy and Industrial Strategy",The Coal Authority,11/10/2016,Subsidence Pumping Maintenance - Power,Environment - Contract Management,British Gas Business,6407,471.69
"Department for Business, Energy and Industrial Strategy",The Coal Authority,11/10/2016,Subsidence Pumping Maintenance - Power,Environment - Contract Management,British Gas Business,6407,91.81
"Department for Business, Energy and Industrial Strategy",The Coal Authority,11/10/2016,Subsidence Pumping Maintenance - Power,Environment - Contract Management,British Gas Business,6407,237.45
"Department for Business, Energy and Industrial Strategy",The Coal Authority,11/10/2016,Subsidence Pumping Maintenance - Power,Environment - Contract Management,British Gas Business,6407,243.46
"Department for Business, Energy and Industrial Strategy",The Coal Authority,11/10/2016,Subsidence Pumping Maintenance - Power,Environment - Contract Management,British Gas Business,6407,129.62
"Department for Business, Energy and Industrial Strategy",The Coal Authority,11/10/2016,Subsidence Pumping Maintenance - Power,Environment - Contract Management,British Gas Business,6407,140.5
"Department for Business, Energy and Industrial Strategy",The Coal Authority,11/10/2016,Subsidence Pumping Maintenance - Power,Environment - Contract Management,British Gas Business,6407,71.2
"Department for Business, Energy and Industrial Strategy",The Coal Authority,11/10/2016,Subsidence Pumping Maintenance - Power,Environment - Contract Management,British Gas Business,6407,43.61
"Department for Business, Energy and Industrial Strategy",The Coal Authority,04/10/2016,Subsidence Pumping Maintenance - Power,Environment - Contract Management,Edf Energy,5843,745.36
"Department for Business, Energy and Industrial Strategy",The Coal Authority,04/10/2016,Subsidence Pumping Maintenance - Power,Environment - Contract Management,Edf Energy,5843,346.37
"Department for Business, Energy and Industrial Strategy",The Coal Authority,04/10/2016,Subsidence Pumping Maintenance - Power,Environment - Contract Management,Edf Energy,5843,733.55
"Department for Business, Energy and Industrial Strategy",The Coal Authority,04/10/2016,Subsidence Pumping Maintenance - Power,Environment - Contract Management,Edf Energy,5843,342.07
"Department for Business, Energy and Industrial Strategy",The Coal Authority,04/10/2016,Subsidence Pumping Maintenance - Power,Environment - Contract Management,Edf Energy,5843,20.94
"Department for Business, Energy and Industrial Strategy",The Coal Authority,04/10/2016,Subsidence Pumping Maintenance - Power,Environment - Contract Management,Edf Energy,5843,152.27
"Department for Business, Energy and Industrial Strategy",The Coal Authority,04/10/2016,Subsidence Pumping Maintenance - Power,Environment - Contract Management,Edf Energy,5843,133.38
"Department for Business, Energy and Industrial Strategy",The Coal Authority,04/10/2016,Subsidence Pumping Maintenance - Power,Environment - Contract Management,Edf Energy,5843,137.82
"Department for Business, Energy and Industrial Strategy",The Coal Authority,04/10/2016,Subsidence Pumping Maintenance - Power,Environment - Contract Management,Edf Energy,5843,139.11
"Department for Business, Energy and Industrial Strategy",The Coal Authority,12/10/2016,Subsistence Allowances,Environment - Contract Management,Staff Expenses Control,6083,32.71
"Department for Business, Energy and Industrial Strategy",The Coal Authority,03/10/2016,Temporary Contractors,Environment - Contract Management,Huxley Associates,5671,2240
"Department for Business, Energy and Industrial Strategy",The Coal Authority,12/10/2016,Temporary Contractors,Environment - Contract Management,Huxley Associates,6129,2240
"Department for Business, Energy and Industrial Strategy",The Coal Authority,17/10/2016,Temporary Contractors,Environment - Contract Management,Huxley Associates,6204,2240
"Department for Business, Energy and Industrial Strategy",The Coal Authority,24/10/2016,Temporary Contractors,Environment - Contract Management,Huxley Associates,6499,2240
"Department for Business, Energy and Industrial Strategy",The Coal Authority,30/09/2016,Temporary Contractors,Environment - Contract Management,Mott Macdonald Ltd,5673,18829.86
"Department for Business, Energy and Industrial Strategy",The Coal Authority,26/10/2016,Temporary Contractors,Environment - Contract Management,Mott Macdonald Ltd,6421,18293.43
"Department for Business, Energy and Industrial Strategy",The Coal Authority,02/11/2016,CY - Minewater Scheme - Additions,Environment - DEFRA - EA Programme,5848 Severn Trent Serv Ops Uk Ltd,6629,19228.63
"Department for Business, Energy and Industrial Strategy",The Coal Authority,04/09/2016,CY - Non-coal Minewater - Additions,Environment - DEFRA - EA Programme,J N Bentley Limited,5691,-768.31
"Department for Business, Energy and Industrial Strategy",The Coal Authority,02/11/2016,Minewater Contractor Add. Task Order - Ops Site,Environment - DEFRA - EA Programme,5848 Severn Trent Serv Ops Uk Ltd,6629,17.69
"Department for Business, Energy and Industrial Strategy",The Coal Authority,26/10/2016,Minewater Contractor Add. Task Order - Ops Site,Environment - DEFRA - EA Programme,Veolia Water Ind Outsourcing L,6508,33096.74
"Department for Business, Energy and Industrial Strategy",The Coal Authority,02/11/2016,Minewater Contractor Maint. Visits - Ops Site,Environment - DEFRA - EA Programme,5848 Severn Trent Serv Ops Uk Ltd,6629,20.52
"Department for Business, Energy and Industrial Strategy",The Coal Authority,02/11/2016,Minewater Contractor Maint. Visits - Ops Site,Environment - DEFRA - EA Programme,5848 Severn Trent Serv Ops Uk Ltd,6629,1867.02
"Department for Business, Energy and Industrial Strategy",The Coal Authority,02/11/2016,Minewater Contractor Maint. Visits - Ops Site,Environment - DEFRA - EA Programme,5848 Severn Trent Serv Ops Uk Ltd,6629,41.03
"Department for Business, Energy and Industrial Strategy",The Coal Authority,02/11/2016,Minewater Contractor Maint. Visits - Ops Site,Environment - DEFRA - EA Programme,5848 Severn Trent Serv Ops Uk Ltd,6629,1599.23
"Department for Business, Energy and Industrial Strategy",The Coal Authority,02/11/2016,Minewater Contractor Maint. Visits - Ops Site,Environment - DEFRA - EA Programme,5848 Severn Trent Serv Ops Uk Ltd,6629,156.85
"Department for Business, Energy and Industrial Strategy",The Coal Authority,02/11/2016,Minewater Contractor Maint. Visits - Ops Site,Environment - DEFRA - EA Programme,5848 Severn Trent Serv Ops Uk Ltd,6629,41.03
"Department for Business, Energy and Industrial Strategy",The Coal Authority,03/11/2016,Minewater Contractor Maint. Visits - Ops Site,Environment - DEFRA - EA Programme,5848 Severn Trent Serv Ops Uk Ltd,6661,-1599.23
"Department for Business, Energy and Industrial Strategy",The Coal Authority,03/11/2016,Minewater Contractor Maint. Visits - Ops Site,Environment - DEFRA - EA Programme,5848 Severn Trent Serv Ops Uk Ltd,6661,1599.23
"Department for Business, Energy and Industrial Strategy",The Coal Authority,18/10/2016,Minewater Feasibility / Scoping,Environment - DEFRA - EA Programme,Atkins Limited,6437,75
"Department for Business, Energy and Industrial Strategy",The Coal Authority,18/10/2016,Minewater Feasibility / Scoping,Environment - DEFRA - EA Programme,Atkins Limited,6438,187.5
"Department for Business, Energy and Industrial Strategy",The Coal Authority,18/10/2016,Minewater Feasibility / Scoping,Environment - DEFRA - EA Programme,Atkins Limited,6439,75
"Department for Business, Energy and Industrial Strategy",The Coal Authority,30/09/2016,Minewater Land Agents (Acquisitions),Environment - DEFRA - EA Programme,Mark N Carey Limited,5815,539.5
"Department for Business, Energy and Industrial Strategy",The Coal Authority,30/09/2016,Minewater Land Agents (Acquisitions),Environment - DEFRA - EA Programme,Mark N Carey Limited,5834,396.5
"Department for Business, Energy and Industrial Strategy",The Coal Authority,09/09/2016,Minewater Monitoring & Flow Measurement,Environment - DEFRA - EA Programme,Llettyshenkin Cons Co Ltd,5865,1925.5
"Department for Business, Energy and Industrial Strategy",The Coal Authority,04/10/2016,Minewater Power Costs,Environment - DEFRA - EA Programme,Edf Energy,5843,19909.76
"Department for Business, Energy and Industrial Strategy",The Coal Authority,04/10/2016,Minewater Power Costs,Environment - DEFRA - EA Programme,Edf Energy,5843,2480.25
"Department for Business, Energy and Industrial Strategy",The Coal Authority,26/10/2016,Minewater Power Costs,Environment - DEFRA - EA Programme,Veolia Water Ind Outsourcing L,6507,-3212.23
"Department for Business, Energy and Industrial Strategy",The Coal Authority,26/10/2016,Minewater Power Costs,Environment - DEFRA - EA Programme,Veolia Water Ind Outsourcing L,6508,262.24
"Department for Business, Energy and Industrial Strategy",The Coal Authority,05/10/2016,Minewater Pump Overhauls,Environment - DEFRA - EA Programme,Wharton Estates,6096,7075.39
"Department for Business, Energy and Industrial Strategy",The Coal Authority,05/10/2016,Minewater Rent,Environment - DEFRA - EA Programme,Wharton Estates,6097,866.25
"Department for Business, Energy and Industrial Strategy",The Coal Authority,02/11/2016,Minewater Sampling - Operational Sites,Environment - DEFRA - EA Programme,5848 Severn Trent Serv Ops Uk Ltd,6629,674.32
"Department for Business, Energy and Industrial Strategy",The Coal Authority,03/11/2016,Minewater Sampling - Operational Sites,Environment - DEFRA - EA Programme,5848 Severn Trent Serv Ops Uk Ltd,6661,-674.32
"Department for Business, Energy and Industrial Strategy",The Coal Authority,03/11/2016,Minewater Sampling - Operational Sites,Environment - DEFRA - EA Programme,5848 Severn Trent Serv Ops Uk Ltd,6661,674.32
"Department for Business, Energy and Industrial Strategy",The Coal Authority,26/10/2016,Minewater Sludge Disposal,Environment - DEFRA - EA Programme,Veolia Water Ind Outsourcing L,6508,27083.34
"Department for Business, Energy and Industrial Strategy",The Coal Authority,26/10/2016,Minewater Sludge Disposal,Environment - DEFRA - EA Programme,Veolia Water Ind Outsourcing L,6508,10674.71
"Department for Business, Energy and Industrial Strategy",The Coal Authority,06/10/2016,Business Meetings,Environment - DEFRA - LEP Programme,Nnthead Village Hall,5864,153
"Department for Business, Energy and Industrial Strategy",The Coal Authority,03/11/2016,CY - Non-coal Minewater - Additions,Environment - DEFRA - LEP Programme,5539 AECOM INFRASTRUCTURE,6648,19042.94
"Department for Business, Energy and Industrial Strategy",The Coal Authority,04/09/2016,CY - Non-coal Minewater - Additions,Environment - DEFRA - LEP Programme,J N Bentley Limited,5694,519.59
"Department for Business, Energy and Industrial Strategy",The Coal Authority,04/09/2016,CY - Non-coal Minewater - Additions,Environment - DEFRA - LEP Programme,J N Bentley Limited,5695,2659.98
"Department for Business, Energy and Industrial Strategy",The Coal Authority,04/09/2016,CY - Non-coal Minewater - Additions,Environment - DEFRA - LEP Programme,J N Bentley Limited,5698,22624.88
"Department for Business, Energy and Industrial Strategy",The Coal Authority,02/10/2016,CY - Non-coal Minewater - Additions,Environment - DEFRA - LEP Programme,J N Bentley Limited,6426,604.39
"Department for Business, Energy and Industrial Strategy",The Coal Authority,02/10/2016,CY - Non-coal Minewater - Additions,Environment - DEFRA - LEP Programme,J N Bentley Limited,6414,5128.65
"Department for Business, Energy and Industrial Strategy",The Coal Authority,02/11/2016,Minewater Contractor Add. Task Order - Ops Site,Environment - DEFRA - LEP Programme,5848 Severn Trent Serv Ops Uk Ltd,6629,18.81
"Department for Business, Energy and Industrial Strategy",The Coal Authority,03/11/2016,Minewater Feasibility / Scoping,Environment - DEFRA - LEP Programme,5539 AECOM INFRASTRUCTURE,6648,-19042.94
"Department for Business, Energy and Industrial Strategy",The Coal Authority,04/10/2016,Minewater Feasibility / Scoping,Environment - DEFRA - LEP Programme,Whitfield with Ninebanks PCC,5718,25
"Department for Business, Energy and Industrial Strategy",The Coal Authority,17/10/2016,Minewater Investigation Studies,Environment - DEFRA - LEP Programme,Wrc Plc,6516,5000
"Department for Business, Energy and Industrial Strategy",The Coal Authority,30/09/2016,Minewater Land Agents (Acquisitions),Environment - DEFRA - LEP Programme,Mark N Carey Limited,5816,585
"Department for Business, Energy and Industrial Strategy",The Coal Authority,30/09/2016,Minewater Land Agents (Acquisitions),Environment - DEFRA - LEP Programme,Mark N Carey Limited,5817,1248
"Department for Business, Energy and Industrial Strategy",The Coal Authority,13/10/2016,Minewater Rent,Environment - DEFRA - LEP Programme,Ayle Colliery Co Ltd,6123,250
"Department for Business, Energy and Industrial Strategy",The Coal Authority,15/10/2016,Minewater Site Surveys,Environment - DEFRA - LEP Programme,Pmc Surveys,6504,2883.01
"Department for Business, Energy and Industrial Strategy",The Coal Authority,29/09/2016,Software Support & Maintenance - SaaS,Environment - DEFRA - LEP Programme,Aconex Services Limited,5855,155
"Department for Business, Energy and Industrial Strategy",The Coal Authority,12/10/2016,Subsistence Allowances,Environment - DEFRA - LEP Programme,Staff Expenses Control,6085,61.05
"Department for Business, Energy and Industrial Strategy",The Coal Authority,12/10/2016,Subsistence Allowances,Environment - DEFRA - LEP Programme,Staff Expenses Control,6085,4.4
"Department for Business, Energy and Industrial Strategy",The Coal Authority,12/10/2016,Subsistence Allowances,Environment - DEFRA - LEP Programme,Staff Expenses Control,6086,9.55
"Department for Business, Energy and Industrial Strategy",The Coal Authority,12/10/2016,Subsistence Allowances,Environment - DEFRA - LEP Programme,Staff Expenses Control,6086,5.35
"Department for Business, Energy and Industrial Strategy",The Coal Authority,02/11/2016,Minewater Contractor Maint. Visits - Ops Site,Environment - Innovation Concept & Feasibility,5848 Severn Trent Serv Ops Uk Ltd,6629,8504.87
"Department for Business, Energy and Industrial Strategy",The Coal Authority,30/09/2016,Fares - Rail,Environment - Innovation Programme Delivery,Redfern Travel Ltd,6008,634.1
"Department for Business, Energy and Industrial Strategy",The Coal Authority,30/09/2016,Hotel & Accommodation,Environment - Innovation Programme Delivery,Redfern Travel Ltd,6008,1
"Department for Business, Energy and Industrial Strategy",The Coal Authority,30/09/2016,Innovation Costs,Environment - Innovation Programme Delivery,4Recycling Ltd,5871,5750
"Department for Business, Energy and Industrial Strategy",The Coal Authority,19/10/2016,Innovation Costs,Environment - Innovation Programme Delivery,Burnley Borough Council,6271,2310
"Department for Business, Energy and Industrial Strategy",The Coal Authority,19/10/2016,Innovation Costs,Environment - Innovation Programme Delivery,Cannock Chase District Council,6273,1925
"Department for Business, Energy and Industrial Strategy",The Coal Authority,30/09/2016,Innovation Costs,Environment - Innovation Programme Delivery,Carter Jonas,6047,10367.8
"Department for Business, Energy and Industrial Strategy",The Coal Authority,30/09/2016,Innovation Costs,Environment - Innovation Programme Delivery,Carter Jonas,6048,1928.5
"Department for Business, Energy and Industrial Strategy",The Coal Authority,19/10/2016,Innovation Costs,Environment - Innovation Programme Delivery,Durham County Council,6270,385
"Department for Business, Energy and Industrial Strategy",The Coal Authority,30/09/2016,Innovation Costs,Environment - Innovation Programme Delivery,Environmental Scientifics Grp,6117,388.82
"Department for Business, Energy and Industrial Strategy",The Coal Authority,30/09/2016,Innovation Costs,Environment - Innovation Programme Delivery,Environmental Scientifics Grp,6118,425.7
"Department for Business, Energy and Industrial Strategy",The Coal Authority,19/10/2016,Innovation Costs,Environment - Innovation Programme Delivery,Staff Expenses Control,6274,45.34
"Department for Business, Energy and Industrial Strategy",The Coal Authority,19/10/2016,Innovation Costs,Environment - Innovation Programme Delivery,Wakefield Metropolitan District Council,6272,4235
"Department for Business, Energy and Industrial Strategy",The Coal Authority,20/10/2016,Mileage Payments,Environment - Innovation Programme Delivery,Staff Expenses Control,6294,62.1
"Department for Business, Energy and Industrial Strategy",The Coal Authority,24/10/2016,Mileage Payments,Environment - Innovation Programme Delivery,Staff Expenses Control,6347,18
"Department for Business, Energy and Industrial Strategy",The Coal Authority,17/10/2016,Research & Development,Environment - Innovation Programme Delivery,Environmental Scientifics Grp,6502,761.8
"Department for Business, Energy and Industrial Strategy",The Coal Authority,20/10/2016,Subsistence Allowances,Environment - Innovation Programme Delivery,Staff Expenses Control,6294,88.15
"Department for Business, Energy and Industrial Strategy",The Coal Authority,24/10/2016,Subsistence Allowances,Environment - Innovation Programme Delivery,Staff Expenses Control,6347,25.3
"Department for Business, Energy and Industrial Strategy",The Coal Authority,10/10/2016,Temporary Contractors,Environment - Innovation Programme Delivery,Huxley Associates,6041,1728
"Department for Business, Energy and Industrial Strategy",The Coal Authority,17/10/2016,Temporary Contractors,Environment - Innovation Programme Delivery,Huxley Associates,6205,1728
"Department for Business, Energy and Industrial Strategy",The Coal Authority,23/10/2016,Temporary Contractors,Environment - Innovation Programme Delivery,Huxley Associates,6366,2160
"Department for Business, Energy and Industrial Strategy",The Coal Authority,26/08/2016,Training & Education,Environment - Innovation Programme Delivery,Faversham House Ltd,6340,890
"Department for Business, Energy and Industrial Strategy",The Coal Authority,30/09/2016,Fares - Air,Environment - Management,Redfern Travel Ltd,6008,256.14
"Department for Business, Energy and Industrial Strategy",The Coal Authority,03/09/2016,Fares - Public Transport,Environment - Management,RBS GPC Aug 2016,6526,21.19
"Department for Business, Energy and Industrial Strategy",The Coal Authority,30/09/2016,Fares - Rail,Environment - Management,Redfern Travel Ltd,6008,645.2
"Department for Business, Energy and Industrial Strategy",The Coal Authority,30/09/2016,Hotel & Accommodation,Environment - Management,Redfern Travel Ltd,6008,230.88
"Department for Business, Energy and Industrial Strategy",The Coal Authority,03/09/2016,Subsistence Allowances,Environment - Management,RBS GPC Aug 2016,6526,2.52
"Department for Business, Energy and Industrial Strategy",The Coal Authority,03/09/2016,Subsistence Allowances,Environment - Management,RBS GPC Aug 2016,6526,5.28
"Department for Business, Energy and Industrial Strategy",The Coal Authority,12/10/2016,Fares - Public Transport,Environment - Metal Mine Build,Staff Expenses Control,6070,20.3
"Department for Business, Energy and Industrial Strategy",The Coal Authority,30/09/2016,Fares - Rail,Environment - Metal Mine Build,Redfern Travel Ltd,6008,227.8
"Department for Business, Energy and Industrial Strategy",The Coal Authority,12/10/2016,Fuel (Vehicle),Environment - Metal Mine Build,Staff Expenses Control,6084,46.47
"Department for Business, Energy and Industrial Strategy",The Coal Authority,21/10/2016,Fuel (Vehicle),Environment - Metal Mine Build,Staff Expenses Control,6326,115.85
"Department for Business, Energy and Industrial Strategy",The Coal Authority,03/09/2016,Hardware Equipment & Support,Environment - Metal Mine Build,RBS GPC Aug 2016,6526,44.99
"Department for Business, Energy and Industrial Strategy",The Coal Authority,30/09/2016,Hotel & Accommodation,Environment - Metal Mine Build,Redfern Travel Ltd,6008,482.83
"Department for Business, Energy and Industrial Strategy",The Coal Authority,03/09/2016,Incidentals,Environment - Metal Mine Build,RBS GPC Aug 2016,6526,8
"Department for Business, Energy and Industrial Strategy",The Coal Authority,21/10/2016,Incidentals,Environment - Metal Mine Build,Staff Expenses Control,6326,27.5
"Department for Business, Energy and Industrial Strategy",The Coal Authority,12/10/2016,Mileage Payments,Environment - Metal Mine Build,Staff Expenses Control,6084,665.55
"Department for Business, Energy and Industrial Strategy",The Coal Authority,21/10/2016,Mileage Payments,Environment - Metal Mine Build,Staff Expenses Control,6326,363.15
"Department for Business, Energy and Industrial Strategy",The Coal Authority,03/09/2016,Networking / Cabling,Environment - Metal Mine Build,RBS GPC Aug 2016,6526,7.07
"Department for Business, Energy and Industrial Strategy",The Coal Authority,03/09/2016,Subsistence Allowances,Environment - Metal Mine Build,RBS GPC Aug 2016,6526,108.13
"Department for Business, Energy and Industrial Strategy",The Coal Authority,03/09/2016,Subsistence Allowances,Environment - Metal Mine Build,RBS GPC Aug 2016,6526,5
"Department for Business, Energy and Industrial Strategy",The Coal Authority,12/10/2016,Subsistence Allowances,Environment - Metal Mine Build,Staff Expenses Control,6070,2.67
"Department for Business, Energy and Industrial Strategy",The Coal Authority,21/10/2016,Subsistence Allowances,Environment - Metal Mine Build,Staff Expenses Control,6326,306.59
"Department for Business, Energy and Industrial Strategy",The Coal Authority,03/09/2016,Fares - Air,Environment - Technical,RBS GPC Aug 2016,6526,59.99
"Department for Business, Energy and Industrial Strategy",The Coal Authority,05/10/2016,Fares - Public Transport,Environment - Technical,5775 - Ace of Mansfield,6586,6.6
"Department for Business, Energy and Industrial Strategy",The Coal Authority,30/09/2016,Fares - Rail,Environment - Technical,Redfern Travel Ltd,6008,1146.4
"Department for Business, Energy and Industrial Strategy",The Coal Authority,30/09/2016,Hotel & Accommodation,Environment - Technical,Redfern Travel Ltd,6008,678.5
"Department for Business, Energy and Industrial Strategy",The Coal Authority,08/08/2016,Hotel & Accommodation,Environment - Technical,Staff Expenses Control,6260,429.01
"Department for Business, Energy and Industrial Strategy",The Coal Authority,03/09/2016,Incidentals,Environment - Technical,RBS GPC Aug 2016,6526,7
"Department for Business, Energy and Industrial Strategy",The Coal Authority,03/09/2016,Incidentals,Environment - Technical,RBS GPC Aug 2016,6526,10
"Department for Business, Energy and Industrial Strategy",The Coal Authority,12/10/2016,Incidentals,Environment - Technical,Staff Expenses Control,6081,5.83
"Department for Business, Energy and Industrial Strategy",The Coal Authority,30/08/2016,Legal - General,Environment - Technical,Walker Morris,6327,425.45
"Department for Business, Energy and Industrial Strategy",The Coal Authority,07/10/2016,Legal - General,Environment - Technical,Walker Morris,6328,793.5
"Department for Business, Energy and Industrial Strategy",The Coal Authority,14/10/2016,Minewater Feasibility / Scoping,Environment - Technical,Intertek,6517,11019.25
"Department for Business, Energy and Industrial Strategy",The Coal Authority,30/09/2016,Minewater Land Agents (Acquisitions),Environment - Technical,Jmc Engineering Uk Ltd,5825,236.8
"Department for Business, Energy and Industrial Strategy",The Coal Authority,30/09/2016,Minewater Land Agents (Acquisitions),Environment - Technical,Jmc Engineering Uk Ltd,5826,614.2
"Department for Business, Energy and Industrial Strategy",The Coal Authority,30/09/2016,Minewater Land Agents (Acquisitions),Environment - Technical,Jmc Engineering Uk Ltd,5828,74
"Department for Business, Energy and Industrial Strategy",The Coal Authority,30/09/2016,Minewater Land Agents (Acquisitions),Environment - Technical,Mark N Carey Limited,5812,240.5
"Department for Business, Energy and Industrial Strategy",The Coal Authority,30/09/2016,Minewater Landscaping Supervision,Environment - Technical,Jmc Engineering Uk Ltd,5827,111
"Department for Business, Energy and Industrial Strategy",The Coal Authority,30/09/2016,Minewater Liability & Monitoring Sites - Ad-hoc,Environment - Technical,Nal Plant Limited,5632,11643.24
"Department for Business, Energy and Industrial Strategy",The Coal Authority,05/10/2016,Stationery,Environment - Technical,5775 - Ace of Mansfield,6586,-6.6
"Department for Business, Energy and Industrial Strategy",The Coal Authority,30/09/2016,Stationery,Environment - Technical,Ace Of Mansfield Ltd,5775,6.6
"Department for Business, Energy and Industrial Strategy",The Coal Authority,12/10/2016,Subsistence Allowances,Environment - Technical,Staff Expenses Control,6078,29.17
"Department for Business, Energy and Industrial Strategy",The Coal Authority,12/10/2016,Subsistence Allowances,Environment - Technical,Staff Expenses Control,6081,10.32
"Department for Business, Energy and Industrial Strategy",The Coal Authority,18/10/2016,Temporary Contractors,Environment - Technical,Atkins Limited,6436,4400
"Department for Business, Energy and Industrial Strategy",The Coal Authority,30/09/2016,Temporary Contractors,Environment - Technical,Huxley Associates,5657,1880
"Department for Business, Energy and Industrial Strategy",The Coal Authority,10/10/2016,Temporary Contractors,Environment - Technical,Huxley Associates,6206,344.35
"Department for Business, Energy and Industrial Strategy",The Coal Authority,10/10/2016,Temporary Contractors,Environment - Technical,Huxley Associates,6040,1880
"Department for Business, Energy and Industrial Strategy",The Coal Authority,18/10/2016,Temporary Contractors,Environment - Technical,Huxley Associates,6203,1880
"Department for Business, Energy and Industrial Strategy",The Coal Authority,23/10/2016,Temporary Contractors,Environment - Technical,Huxley Associates,6367,1880
"Department for Business, Energy and Industrial Strategy",The Coal Authority,12/10/2016,Business Entertainment / Hospitality,Executive,Staff Expenses Control,6071,29.98
"Department for Business, Energy and Industrial Strategy",The Coal Authority,03/09/2016,Business Meetings,Executive,RBS GPC Aug 2016,6526,9.01
"Department for Business, Energy and Industrial Strategy",The Coal Authority,30/09/2016,Fares - Air,Executive,Redfern Travel Ltd,6008,193.93
"Department for Business, Energy and Industrial Strategy",The Coal Authority,05/10/2016,Fares - Public Transport,Executive,5775 - Ace of Mansfield,6586,219.9
"Department for Business, Energy and Industrial Strategy",The Coal Authority,12/10/2016,Fares - Public Transport,Executive,Staff Expenses Control,6071,16
"Department for Business, Energy and Industrial Strategy",The Coal Authority,12/10/2016,Fares - Public Transport,Executive,Staff Expenses Control,6069,4.85
"Department for Business, Energy and Industrial Strategy",The Coal Authority,30/09/2016,Fares - Rail,Executive,Redfern Travel Ltd,6008,1350.1
"Department for Business, Energy and Industrial Strategy",The Coal Authority,12/10/2016,Fares - Rail,Executive,Staff Expenses Control,6071,64.4
"Department for Business, Energy and Industrial Strategy",The Coal Authority,30/09/2016,Hotel & Accommodation,Executive,Redfern Travel Ltd,6008,804.5
"Department for Business, Energy and Industrial Strategy",The Coal Authority,03/09/2016,Incidentals,Executive,RBS GPC Aug 2016,6526,30.66
"Department for Business, Energy and Industrial Strategy",The Coal Authority,12/10/2016,Incidentals,Executive,Staff Expenses Control,6071,53.32
"Department for Business, Energy and Industrial Strategy",The Coal Authority,12/10/2016,Mileage Payments,Executive,Staff Expenses Control,6071,28.7
"Department for Business, Energy and Industrial Strategy",The Coal Authority,12/10/2016,Mileage Payments,Executive,Staff Expenses Control,6080,27.72
"Department for Business, Energy and Industrial Strategy",The Coal Authority,03/09/2016,Professional Subscriptions,Executive,RBS GPC Aug 2016,6526,405
"Department for Business, Energy and Industrial Strategy",The Coal Authority,06/10/2016,Professional Subscriptions,Executive,The Geological Society,5859,246
"Department for Business, Energy and Industrial Strategy",The Coal Authority,03/09/2016,Staff Events,Executive,RBS GPC Aug 2016,6526,492.1
"Department for Business, Energy and Industrial Strategy",The Coal Authority,05/10/2016,Stationery,Executive,5775 - Ace of Mansfield,6586,-219.9
"Department for Business, Energy and Industrial Strategy",The Coal Authority,30/09/2016,Stationery,Executive,Ace Of Mansfield Ltd,5775,219.9
"Department for Business, Energy and Industrial Strategy",The Coal Authority,03/09/2016,Subsistence Allowances,Executive,RBS GPC Aug 2016,6526,2.97
"Department for Business, Energy and Industrial Strategy",The Coal Authority,03/09/2016,Subsistence Allowances,Executive,RBS GPC Aug 2016,6526,2.53
"Department for Business, Energy and Industrial Strategy",The Coal Authority,12/10/2016,Subsistence Allowances,Executive,Staff Expenses Control,6071,15.44
"Department for Business, Energy and Industrial Strategy",The Coal Authority,20/10/2016,Subsistence Allowances,Executive,Staff Expenses Control,6300,12.17
"Department for Business, Energy and Industrial Strategy",The Coal Authority,13/10/2016,Training & Education,Executive,Association Of Chief Execs,6341,180
"Department for Business, Energy and Industrial Strategy",The Coal Authority,03/09/2016,Training & Education,Executive,RBS GPC Aug 2016,6526,676.95
"Department for Business, Energy and Industrial Strategy",The Coal Authority,30/09/2016,Business Entertainment / Hospitality,Facilities,S P Foods,5872,386.3
"Department for Business, Energy and Industrial Strategy",The Coal Authority,25/08/2016,Canteen Equipment,Facilities,All Shires Foods Ltd,6244,17.1
"Department for Business, Energy and Industrial Strategy",The Coal Authority,30/08/2016,Canteen Equipment,Facilities,All Shires Foods Ltd,6245,17.1
"Department for Business, Energy and Industrial Strategy",The Coal Authority,01/09/2016,Canteen Equipment,Facilities,All Shires Foods Ltd,6246,17.1
"Department for Business, Energy and Industrial Strategy",The Coal Authority,06/09/2016,Canteen Equipment,Facilities,All Shires Foods Ltd,6247,17.1
"Department for Business, Energy and Industrial Strategy",The Coal Authority,08/09/2016,Canteen Equipment,Facilities,All Shires Foods Ltd,6248,17.1
"Department for Business, Energy and Industrial Strategy",The Coal Authority,13/09/2016,Canteen Equipment,Facilities,All Shires Foods Ltd,6249,17.1
"Department for Business, Energy and Industrial Strategy",The Coal Authority,15/09/2016,Canteen Equipment,Facilities,All Shires Foods Ltd,6250,17.1
"Department for Business, Energy and Industrial Strategy",The Coal Authority,20/09/2016,Canteen Equipment,Facilities,All Shires Foods Ltd,6257,17.1
"Department for Business, Energy and Industrial Strategy",The Coal Authority,22/09/2016,Canteen Equipment,Facilities,All Shires Foods Ltd,6258,17.1
"Department for Business, Energy and Industrial Strategy",The Coal Authority,27/09/2016,Canteen Equipment,Facilities,All Shires Foods Ltd,6259,130.85
"Department for Business, Energy and Industrial Strategy",The Coal Authority,29/09/2016,Canteen Equipment,Facilities,All Shires Foods Ltd,6251,17.1
"Department for Business, Energy and Industrial Strategy",The Coal Authority,04/10/2016,Canteen Equipment,Facilities,All Shires Foods Ltd,6252,18.18
"Department for Business, Energy and Industrial Strategy",The Coal Authority,06/10/2016,Canteen Equipment,Facilities,All Shires Foods Ltd,6253,18.18
"Department for Business, Energy and Industrial Strategy",The Coal Authority,11/10/2016,Canteen Equipment,Facilities,All Shires Foods Ltd,6254,18.18
"Department for Business, Energy and Industrial Strategy",The Coal Authority,13/10/2016,Canteen Equipment,Facilities,All Shires Foods Ltd,6255,364.33
"Department for Business, Energy and Industrial Strategy",The Coal Authority,18/10/2016,Canteen Equipment,Facilities,All Shires Foods Ltd,6256,18.18
"Department for Business, Energy and Industrial Strategy",The Coal Authority,12/10/2016,Canteen Equipment,Facilities,ITN Plus,6128,97.5
"Department for Business, Energy and Industrial Strategy",The Coal Authority,09/10/2016,Cleaning Materials,Facilities,Floorbrite Cleaning & Facilities Services,6126,958.75
"Department for Business, Energy and Industrial Strategy",The Coal Authority,01/10/2016,Contract Hire Vehicles,Facilities,Alphabet Uk Fleet Man Ltd,6156,2869.2
"Department for Business, Energy and Industrial Strategy",The Coal Authority,30/09/2016,Contract Hire Vehicles,Facilities,Auto Smart Valeting Ltd,6355,351
"Department for Business, Energy and Industrial Strategy",The Coal Authority,28/09/2016,Contract Hire Vehicles,Facilities,Pentagon,5665,721.83
"Department for Business, Energy and Industrial Strategy",The Coal Authority,30/09/2016,Contract Hire Vehicles,Facilities,Pentagon,5849,21.15
"Department for Business, Energy and Industrial Strategy",The Coal Authority,30/09/2016,Contract Hire Vehicles,Facilities,Pentagon,5850,21.15
"Department for Business, Energy and Industrial Strategy",The Coal Authority,03/10/2016,Contract Hire Vehicles,Facilities,Pentagon,5666,21.15
"Department for Business, Energy and Industrial Strategy",The Coal Authority,04/10/2016,Contract Hire Vehicles,Facilities,Pentagon,5773,21.15
"Department for Business, Energy and Industrial Strategy",The Coal Authority,07/10/2016,Contract Hire Vehicles,Facilities,Pentagon,6023,21.15
"Department for Business, Energy and Industrial Strategy",The Coal Authority,07/10/2016,Contract Hire Vehicles,Facilities,Pentagon,6024,21.15
"Department for Business, Energy and Industrial Strategy",The Coal Authority,11/10/2016,Contract Hire Vehicles,Facilities,Pentagon,6090,21.15
"Department for Business, Energy and Industrial Strategy",The Coal Authority,11/10/2016,Contract Hire Vehicles,Facilities,Pentagon,6121,21.15
"Department for Business, Energy and Industrial Strategy",The Coal Authority,04/10/2016,Electricity Usage,Facilities,Edf Energy,5843,10563.72
"Department for Business, Energy and Industrial Strategy",The Coal Authority,05/10/2016,Fuel (Vehicle),Facilities,Allstar Business Solutions Ltd,5877,83.09
"Department for Business, Energy and Industrial Strategy",The Coal Authority,05/10/2016,Fuel (Vehicle),Facilities,Allstar Business Solutions Ltd,5878,23.06
"Department for Business, Energy and Industrial Strategy",The Coal Authority,05/10/2016,Fuel (Vehicle),Facilities,Allstar Business Solutions Ltd,5879,14.61
"Department for Business, Energy and Industrial Strategy",The Coal Authority,05/10/2016,Fuel (Vehicle),Facilities,Allstar Business Solutions Ltd,5880,58.89
"Department for Business, Energy and Industrial Strategy",The Coal Authority,12/10/2016,Fuel (Vehicle),Facilities,Allstar Business Solutions Ltd,6209,67.54
"Department for Business, Energy and Industrial Strategy",The Coal Authority,12/10/2016,Fuel (Vehicle),Facilities,Allstar Business Solutions Ltd,6210,95.74
"Department for Business, Energy and Industrial Strategy",The Coal Authority,12/10/2016,Fuel (Vehicle),Facilities,Allstar Business Solutions Ltd,6211,21.9
"Department for Business, Energy and Industrial Strategy",The Coal Authority,12/10/2016,Fuel (Vehicle),Facilities,Allstar Business Solutions Ltd,6212,51.64
"Department for Business, Energy and Industrial Strategy",The Coal Authority,12/10/2016,Fuel (Vehicle),Facilities,Allstar Business Solutions Ltd,6213,50.99
"Department for Business, Energy and Industrial Strategy",The Coal Authority,12/10/2016,Fuel (Vehicle),Facilities,Allstar Business Solutions Ltd,6214,18.11
"Department for Business, Energy and Industrial Strategy",The Coal Authority,12/10/2016,Fuel (Vehicle),Facilities,Allstar Business Solutions Ltd,6215,38.23
"Department for Business, Energy and Industrial Strategy",The Coal Authority,19/10/2016,Fuel (Vehicle),Facilities,Allstar Business Solutions Ltd,6313,177.81
"Department for Business, Energy and Industrial Strategy",The Coal Authority,19/10/2016,Fuel (Vehicle),Facilities,Allstar Business Solutions Ltd,6314,71.14
"Department for Business, Energy and Industrial Strategy",The Coal Authority,19/10/2016,Fuel (Vehicle),Facilities,Allstar Business Solutions Ltd,6315,55.31
"Department for Business, Energy and Industrial Strategy",The Coal Authority,19/10/2016,Fuel (Vehicle),Facilities,Allstar Business Solutions Ltd,6316,76.39
"Department for Business, Energy and Industrial Strategy",The Coal Authority,19/10/2016,Fuel (Vehicle),Facilities,Allstar Business Solutions Ltd,6317,75.75
"Department for Business, Energy and Industrial Strategy",The Coal Authority,02/11/2016,Minewater Contractor Maint. Visits - Ops Site,Facilities,5848 Severn Trent Serv Ops Uk Ltd,6629,24807.6
"Department for Business, Energy and Industrial Strategy",The Coal Authority,01/10/2016,Outsourced Cleaning Staff,Facilities,Floorbrite Cleaning & Facilities Services,6022,3861.52
"Department for Business, Energy and Industrial Strategy",The Coal Authority,18/10/2016,Plant Maintenance,Facilities,Dakro Environmental Ltd,6370,280
"Department for Business, Energy and Industrial Strategy",The Coal Authority,14/10/2016,Plant Maintenance,Facilities,Mansfield Refrigeration & Air Conditioning Co Ltd,6371,283.2
"Department for Business, Energy and Industrial Strategy",The Coal Authority,19/10/2016,Plant Maintenance,Facilities,Mansfield Refrigeration & Air Conditioning Co Ltd,6369,180.6
"Department for Business, Energy and Industrial Strategy",The Coal Authority,18/10/2016,Plant Maintenance,Facilities,MCL Energy Ltd,6500,198
"Department for Business, Energy and Industrial Strategy",The Coal Authority,01/10/2016,Plant Maintenance,Facilities,Stannah lift Services Limited,5777,30
"Department for Business, Energy and Industrial Strategy",The Coal Authority,05/10/2016,Plant Maintenance,Facilities,Stannah lift Services Limited,5776,188.58
"Department for Business, Energy and Industrial Strategy",The Coal Authority,30/09/2016,Site Repairs & Maintenance,Facilities,D J Allen (Builders) Ltd,5772,1205.5
"Department for Business, Energy and Industrial Strategy",The Coal Authority,29/06/2016,Site Repairs & Maintenance,Facilities,Powerstar Max,6487,250
"Department for Business, Energy and Industrial Strategy",The Coal Authority,30/09/2016,Site Repairs & Maintenance,Facilities,Ulyett Landscapes Ltd,5664,749.16
"Department for Business, Energy and Industrial Strategy",The Coal Authority,12/08/2016,Site Repairs & Maintenance,Facilities,Williams LEC Limited,6501,440
"Department for Business, Energy and Industrial Strategy",The Coal Authority,23/09/2016,Site Repairs & Maintenance,Facilities,Williams LEC Limited,5660,-100
"Department for Business, Energy and Industrial Strategy",The Coal Authority,21/10/2016,Site Repairs & Maintenance,Facilities,Williams LEC Limited,6356,4260.74
"Department for Business, Energy and Industrial Strategy",The Coal Authority,21/10/2016,Site Repairs & Maintenance,Facilities,Williams LEC Limited,6357,459.3
"Department for Business, Energy and Industrial Strategy",The Coal Authority,21/10/2016,Site Repairs & Maintenance,Facilities,Williams LEC Limited,6359,65
"Department for Business, Energy and Industrial Strategy",The Coal Authority,21/10/2016,Site Repairs & Maintenance,Facilities,Williams LEC Limited,6360,180
"Department for Business, Energy and Industrial Strategy",The Coal Authority,21/10/2016,Site Repairs & Maintenance,Facilities,Williams LEC Limited,6361,64
"Department for Business, Energy and Industrial Strategy",The Coal Authority,21/10/2016,Site Repairs & Maintenance,Facilities,Williams LEC Limited,6362,72
"Department for Business, Energy and Industrial Strategy",The Coal Authority,21/09/2016,Site Services,Facilities,Allen Vending Services,5770,60
"Department for Business, Energy and Industrial Strategy",The Coal Authority,30/09/2016,Site Services,Facilities,Banner Business Solutions,5868,51.3
"Department for Business, Energy and Industrial Strategy",The Coal Authority,21/10/2016,Site Services,Facilities,Biffa Waste Services Ltd,6481,358.24
"Department for Business, Energy and Industrial Strategy",The Coal Authority,01/10/2016,Site Services,Facilities,Key West Pest Control Limited,5678,625
"Department for Business, Energy and Industrial Strategy",The Coal Authority,03/09/2016,Site Services,Facilities,RBS GPC Aug 2016,6526,178.8
"Department for Business, Energy and Industrial Strategy",The Coal Authority,13/07/2016,Works Projects,Facilities,Gresham Office Furniture,6036,15
"Department for Business, Energy and Industrial Strategy",The Coal Authority,30/09/2016,Bank Charges,Finance Projects & Business Planning,National Westminster Bank Plc,5756,71.06
"Department for Business, Energy and Industrial Strategy",The Coal Authority,30/09/2016,Bank Charges,Finance Projects & Business Planning,National Westminster Bank Plc,6120,25
"Department for Business, Energy and Industrial Strategy",The Coal Authority,30/09/2016,Fares - Rail,Finance Projects & Business Planning,Redfern Travel Ltd,6008,53.7
"Department for Business, Energy and Industrial Strategy",The Coal Authority,30/09/2016,Payroll Processing Fees,Finance Projects & Business Planning,Cgi It Uk Ltd,5680,1017.26
"Department for Business, Energy and Industrial Strategy",The Coal Authority,01/10/2016,Postage & Couriers,Finance Projects & Business Planning,Security Plus Limited,5663,46
"Department for Business, Energy and Industrial Strategy",The Coal Authority,06/10/2016,Software Licenses - On Premise,Finance Projects & Business Planning,Sapphire Systems Plc,6030,1324
"Department for Business, Energy and Industrial Strategy",The Coal Authority,06/10/2016,Software Support & Maintenance - On Premise,Finance Projects & Business Planning,Sapphire Systems Plc,6030,390.65
"Department for Business, Energy and Industrial Strategy",The Coal Authority,30/09/2016,Software Support & Maintenance - SaaS,Finance Projects & Business Planning,Bottomline Technologies,5831,91.84
"Department for Business, Energy and Industrial Strategy",The Coal Authority,03/09/2016,Training & Education,Finance Projects & Business Planning,RBS GPC Aug 2016,6526,794.68
"Department for Business, Energy and Industrial Strategy",The Coal Authority,03/10/2016,External Agency / Introduction Fees,HR & OD,Cherry Professional Ltd,5667,8000
"Department for Business, Energy and Industrial Strategy",The Coal Authority,10/10/2016,External Agency / Introduction Fees,HR & OD,Distinct Recruitment,6037,5250
"Department for Business, Energy and Industrial Strategy",The Coal Authority,13/10/2016,External Agency / Introduction Fees,HR & OD,Hays,6519,7050
"Department for Business, Energy and Industrial Strategy",The Coal Authority,09/09/2016,Legal - General,HR & OD,Dla Piper Uk Llp,5681,90
"Department for Business, Energy and Industrial Strategy",The Coal Authority,30/09/2016,Membership Subscriptions,HR & OD,Redactive Publishing,5857,712.5
"Department for Business, Energy and Industrial Strategy",The Coal Authority,19/10/2016,Recruitment Advertising,HR & OD,Croner Group Limited,6473,2277
"Department for Business, Energy and Industrial Strategy",The Coal Authority,19/09/2016,Staff Events,HR & OD,Chimp Manangement Limited,6490,969.7
"Department for Business, Energy and Industrial Strategy",The Coal Authority,23/09/2016,Staff Medicals,HR & OD,Bupa Wellness Finance,5662,569
"Department for Business, Energy and Industrial Strategy",The Coal Authority,03/09/2016,Sundry Office Expenses,HR & OD,RBS GPC Aug 2016,6526,36
"Department for Business, Energy and Industrial Strategy",The Coal Authority,03/09/2016,Training & Education,HR & OD,RBS GPC Aug 2016,6526,50
"Department for Business, Energy and Industrial Strategy",The Coal Authority,30/09/2016,Hotel & Accommodation,ICT Management,Redfern Travel Ltd,6008,280.5
"Department for Business, Energy and Industrial Strategy",The Coal Authority,20/10/2016,Incidentals,ICT Management,Staff Expenses Control,6300,30
"Department for Business, Energy and Industrial Strategy",The Coal Authority,20/10/2016,Mileage Payments,ICT Management,Staff Expenses Control,6300,25.65
"Department for Business, Energy and Industrial Strategy",The Coal Authority,20/10/2016,Subsistence Allowances,ICT Management,Staff Expenses Control,6300,38.47
"Department for Business, Energy and Industrial Strategy",The Coal Authority,30/09/2016,Temporary Contractors,ICT Management,Equal Experts UK Ltd,5846,30750
"Department for Business, Energy and Industrial Strategy",The Coal Authority,23/09/2016,CY - Intangible IT - Additions,Infrastructure Management,Bytes Software,5709,14180.4
"Department for Business, Energy and Industrial Strategy",The Coal Authority,16/09/2016,CY - Tangible IT - Additions,Infrastructure Management,Atos It Services Uk Ltd,5759,5431.34
"Department for Business, Energy and Industrial Strategy",The Coal Authority,30/09/2016,Fares - Rail,Infrastructure Management,Redfern Travel Ltd,6008,146.6
"Department for Business, Energy and Industrial Strategy",The Coal Authority,14/10/2016,Hardware Equipment & Support,Infrastructure Management,PMD Magnetics,6491,3832.5
"Department for Business, Energy and Industrial Strategy",The Coal Authority,03/09/2016,Hardware Equipment & Support,Infrastructure Management,RBS GPC Aug 2016,6526,874.7
"Department for Business, Energy and Industrial Strategy",The Coal Authority,03/09/2016,Networking / Cabling,Infrastructure Management,RBS GPC Aug 2016,6526,160.73
"Department for Business, Energy and Industrial Strategy",The Coal Authority,03/09/2016,Peripherals / Consumables (MEP),Infrastructure Management,RBS GPC Aug 2016,6526,505.67
"Department for Business, Energy and Industrial Strategy",The Coal Authority,23/09/2016,Software Support & Maintenance - On Premise,Infrastructure Management,Bytes Software,5709,9969.6
"Department for Business, Energy and Industrial Strategy",The Coal Authority,05/10/2016,Software Support & Maintenance - On Premise,Infrastructure Management,Oracle,6489,17425.23
"Department for Business, Energy and Industrial Strategy",The Coal Authority,01/10/2016,Temporary Contractors,Infrastructure Management,Playcool Limited,5679,7480
"Department for Business, Energy and Industrial Strategy",The Coal Authority,17/10/2016,Training & Education,Infrastructure Management,The Open University,6344,5572
"Department for Business, Energy and Industrial Strategy",The Coal Authority,09/09/2016,Applications Consultancy,Mining Information,Scisys Uk Ltd,5760,1756.94
"Department for Business, Energy and Industrial Strategy",The Coal Authority,09/09/2016,Applications Consultancy,Mining Information,Scisys Uk Ltd,5760,509.34
"Department for Business, Energy and Industrial Strategy",The Coal Authority,09/09/2016,Applications Consultancy,Mining Information,Scisys Uk Ltd,5760,240.32
"Department for Business, Energy and Industrial Strategy",The Coal Authority,06/10/2016,Applications Consultancy,Mining Information,Scisys Uk Ltd,6336,2377.54
"Department for Business, Energy and Industrial Strategy",The Coal Authority,06/10/2016,Applications Consultancy,Mining Information,Scisys Uk Ltd,6336,280.5
"Department for Business, Energy and Industrial Strategy",The Coal Authority,06/10/2016,Applications Consultancy,Mining Information,Scisys Uk Ltd,6336,1060.79
"Department for Business, Energy and Industrial Strategy",The Coal Authority,09/09/2016,CY - Intangible IT - Additions,Mining Information,Scisys Uk Ltd,5760,2391.98
"Department for Business, Energy and Industrial Strategy",The Coal Authority,06/10/2016,CY - Intangible IT - Additions,Mining Information,Scisys Uk Ltd,6336,11924.13
"Department for Business, Energy and Industrial Strategy",The Coal Authority,16/09/2016,CY - Tangible IT - Additions,Mining Information,Atos It Services Uk Ltd,5759,12220.55
"Department for Business, Energy and Industrial Strategy",The Coal Authority,30/09/2016,Fares - Rail,Mining Information,Redfern Travel Ltd,6008,292
"Department for Business, Energy and Industrial Strategy",The Coal Authority,12/10/2016,Mileage Payments,Mining Information,Staff Expenses Control,6077,12.6
"Department for Business, Energy and Industrial Strategy",The Coal Authority,09/09/2016,Requests For Change,Mining Information,Scisys Uk Ltd,5760,1099.43
"Department for Business, Energy and Industrial Strategy",The Coal Authority,09/09/2016,Requests For Change,Mining Information,Scisys Uk Ltd,5760,694.38
"Department for Business, Energy and Industrial Strategy",The Coal Authority,06/10/2016,Requests For Change,Mining Information,Scisys Uk Ltd,6336,498.54
"Department for Business, Energy and Industrial Strategy",The Coal Authority,06/10/2016,Requests For Change,Mining Information,Scisys Uk Ltd,6336,307.35
"Department for Business, Energy and Industrial Strategy",The Coal Authority,29/09/2016,Software Support & Maintenance - On Premise,Mining Information,1Spatial Group Ltd,5710,975
"Department for Business, Energy and Industrial Strategy",The Coal Authority,09/09/2016,Software Support & Maintenance - On Premise,Mining Information,Scisys Uk Ltd,5760,5554.43
"Department for Business, Energy and Industrial Strategy",The Coal Authority,06/10/2016,Software Support & Maintenance - On Premise,Mining Information,Scisys Uk Ltd,6336,5753.9
"Department for Business, Energy and Industrial Strategy",The Coal Authority,03/09/2016,Subsistence Allowances,Mining Information,RBS GPC Aug 2016,6526,2.97
"Department for Business, Energy and Industrial Strategy",The Coal Authority,09/09/2016,Applications Consultancy,Mining Reports Retail,Scisys Uk Ltd,5760,240.32
"Department for Business, Energy and Industrial Strategy",The Coal Authority,09/09/2016,Applications Consultancy,Mining Reports Retail,Scisys Uk Ltd,5760,509.34
"Department for Business, Energy and Industrial Strategy",The Coal Authority,09/09/2016,Applications Consultancy,Mining Reports Retail,Scisys Uk Ltd,5760,1756.94
"Department for Business, Energy and Industrial Strategy",The Coal Authority,06/10/2016,Applications Consultancy,Mining Reports Retail,Scisys Uk Ltd,6336,1060.79
"Department for Business, Energy and Industrial Strategy",The Coal Authority,06/10/2016,Applications Consultancy,Mining Reports Retail,Scisys Uk Ltd,6336,2377.54
"Department for Business, Energy and Industrial Strategy",The Coal Authority,06/10/2016,Applications Consultancy,Mining Reports Retail,Scisys Uk Ltd,6336,280.5
"Department for Business, Energy and Industrial Strategy",The Coal Authority,06/10/2016,BGS Royalty,Mining Reports Retail,Nerc,6029,11076.75
"Department for Business, Energy and Industrial Strategy",The Coal Authority,03/09/2016,Business Entertainment / Hospitality,Mining Reports Retail,RBS GPC Aug 2016,6526,173
"Department for Business, Energy and Industrial Strategy",The Coal Authority,25/10/2016,Cheshire Brine Search Services,Mining Reports Retail,Cheshire Brine Subsidence Comp,6471,21582
"Department for Business, Energy and Industrial Strategy",The Coal Authority,09/09/2016,CY - Intangible IT - Additions,Mining Reports Retail,Scisys Uk Ltd,5760,60441.87
"Department for Business, Energy and Industrial Strategy",The Coal Authority,09/09/2016,CY - Intangible IT - Additions,Mining Reports Retail,Scisys Uk Ltd,5760,2391.98
"Department for Business, Energy and Industrial Strategy",The Coal Authority,06/10/2016,CY - Intangible IT - Additions,Mining Reports Retail,Scisys Uk Ltd,6336,16134.23
"Department for Business, Energy and Industrial Strategy",The Coal Authority,06/10/2016,CY - Intangible IT - Additions,Mining Reports Retail,Scisys Uk Ltd,6336,11924.13
"Department for Business, Energy and Industrial Strategy",The Coal Authority,16/09/2016,CY - Tangible IT - Additions,Mining Reports Retail,Atos It Services Uk Ltd,5759,12220.55
"Department for Business, Energy and Industrial Strategy",The Coal Authority,01/10/2016,eCommerce Commission Charges,Mining Reports Retail,Worldpay,6056,1389.98
"Department for Business, Energy and Industrial Strategy",The Coal Authority,04/10/2016,eCommerce Commission Charges,Mining Reports Retail,Worldpay Limited,5764,830.69
"Department for Business, Energy and Industrial Strategy",The Coal Authority,05/10/2016,Fares - Public Transport,Mining Reports Retail,5775 - Ace of Mansfield,6586,57.6
"Department for Business, Energy and Industrial Strategy",The Coal Authority,30/09/2016,Fares - Rail,Mining Reports Retail,Redfern Travel Ltd,6009,-101
"Department for Business, Energy and Industrial Strategy",The Coal Authority,30/09/2016,Groundsure Royalty,Mining Reports Retail,Groundsure Limited,5769,49464
"Department for Business, Energy and Industrial Strategy",The Coal Authority,03/09/2016,Incidentals,Mining Reports Retail,RBS GPC Aug 2016,6526,9.17
"Department for Business, Energy and Industrial Strategy",The Coal Authority,30/09/2016,Insurance Premiums,Mining Reports Retail,Aviva,6104,71591.3
"Department for Business, Energy and Industrial Strategy",The Coal Authority,04/11/2016,Ordance Survey Map Charges,Mining Reports Retail,6475 - Ordnance Survey,6693,24968.42
"Department for Business, Energy and Industrial Strategy",The Coal Authority,04/11/2016,Ordance Survey Map Charges,Mining Reports Retail,6476 - Ordnance Survey,6693,-33148
"Department for Business, Energy and Industrial Strategy",The Coal Authority,04/11/2016,Ordance Survey Map Charges,Mining Reports Retail,6476 - Ordnance Survey - VAT,6700,6629.6
"Department for Business, Energy and Industrial Strategy",The Coal Authority,04/11/2016,Ordance Survey Map Charges,Mining Reports Retail,6476 - Ordnance Survey - VAT,6693,-6629.6
"Department for Business, Energy and Industrial Strategy",The Coal Authority,12/10/2016,Ordance Survey Map Charges,Mining Reports Retail,Ordnance Survey,6476,33148
"Department for Business, Energy and Industrial Strategy",The Coal Authority,11/10/2016,Other Hosting / IaaS,Mining Reports Retail,Bytemark Limited,6042,124
"Department for Business, Energy and Industrial Strategy",The Coal Authority,01/10/2016,Postage & Couriers,Mining Reports Retail,Security Plus Limited,5663,46
"Department for Business, Energy and Industrial Strategy",The Coal Authority,09/09/2016,Requests For Change,Mining Reports Retail,Scisys Uk Ltd,5760,694.38
"Department for Business, Energy and Industrial Strategy",The Coal Authority,09/09/2016,Requests For Change,Mining Reports Retail,Scisys Uk Ltd,5760,1099.43
"Department for Business, Energy and Industrial Strategy",The Coal Authority,06/10/2016,Requests For Change,Mining Reports Retail,Scisys Uk Ltd,6336,307.35
"Department for Business, Energy and Industrial Strategy",The Coal Authority,06/10/2016,Requests For Change,Mining Reports Retail,Scisys Uk Ltd,6336,498.54
"Department for Business, Energy and Industrial Strategy",The Coal Authority,04/11/2016,Site Repairs & Maintenance,Mining Reports Retail,6475 - Ordnance Survey,6693,-24968.42
"Department for Business, Energy and Industrial Strategy",The Coal Authority,12/10/2016,Site Repairs & Maintenance,Mining Reports Retail,Ordnance Survey,6475,24968.42
"Department for Business, Energy and Industrial Strategy",The Coal Authority,09/09/2016,Software Support & Maintenance - On Premise,Mining Reports Retail,Scisys Uk Ltd,5760,5554.43
"Department for Business, Energy and Industrial Strategy",The Coal Authority,06/10/2016,Software Support & Maintenance - On Premise,Mining Reports Retail,Scisys Uk Ltd,6336,5753.9
"Department for Business, Energy and Industrial Strategy",The Coal Authority,05/10/2016,Stationery,Mining Reports Retail,5775 - Ace of Mansfield,6586,-57.6
"Department for Business, Energy and Industrial Strategy",The Coal Authority,30/09/2016,Stationery,Mining Reports Retail,Ace Of Mansfield Ltd,5775,57.6
"Department for Business, Energy and Industrial Strategy",The Coal Authority,03/09/2016,Subsistence Allowances,Mining Reports Retail,RBS GPC Aug 2016,6526,23.94
"Department for Business, Energy and Industrial Strategy",The Coal Authority,30/09/2016,Temporary Contractors,Mining Reports Retail,Key Personnel Solutions Ltd,5670,167.62
"Department for Business, Energy and Industrial Strategy",The Coal Authority,30/09/2016,Temporary Contractors,Mining Reports Retail,Key Personnel Solutions Ltd,5668,267.32
"Department for Business, Energy and Industrial Strategy",The Coal Authority,30/09/2016,Temporary Contractors,Mining Reports Retail,Key Personnel Solutions Ltd,5668,400.55
"Department for Business, Energy and Industrial Strategy",The Coal Authority,07/10/2016,Temporary Contractors,Mining Reports Retail,Key Personnel Solutions Ltd,6034,302.36
"Department for Business, Energy and Industrial Strategy",The Coal Authority,07/10/2016,Temporary Contractors,Mining Reports Retail,Key Personnel Solutions Ltd,6034,197.68
"Department for Business, Energy and Industrial Strategy",The Coal Authority,07/10/2016,Temporary Contractors,Mining Reports Retail,Key Personnel Solutions Ltd,6033,346.8
"Department for Business, Energy and Industrial Strategy",The Coal Authority,14/10/2016,Temporary Contractors,Mining Reports Retail,Key Personnel Solutions Ltd,6208,320.45
"Department for Business, Energy and Industrial Strategy",The Coal Authority,14/10/2016,Temporary Contractors,Mining Reports Retail,Key Personnel Solutions Ltd,6207,433.5
"Department for Business, Energy and Industrial Strategy",The Coal Authority,21/10/2016,Temporary Contractors,Mining Reports Retail,Key Personnel Solutions Ltd,6479,427.72
"Department for Business, Energy and Industrial Strategy",The Coal Authority,03/09/2016,Business Publications,Procurement,RBS GPC Aug 2016,6526,31.65
"Department for Business, Energy and Industrial Strategy",The Coal Authority,25/10/2016,Fares - Public Transport,Procurement,Staff Expenses Control,6393,46.5
"Department for Business, Energy and Industrial Strategy",The Coal Authority,30/09/2016,Fares - Rail,Procurement,Redfern Travel Ltd,6008,38.4
"Department for Business, Energy and Industrial Strategy",The Coal Authority,30/09/2016,Hotel & Accommodation,Procurement,Redfern Travel Ltd,6008,1
"Department for Business, Energy and Industrial Strategy",The Coal Authority,25/10/2016,Incidentals,Procurement,Staff Expenses Control,6393,20
"Department for Business, Energy and Industrial Strategy",The Coal Authority,25/10/2016,Mileage Payments,Procurement,Staff Expenses Control,6393,16.2
"Department for Business, Energy and Industrial Strategy",The Coal Authority,25/10/2016,Staff Events,Procurement,Staff Expenses Control,6393,94.55
"Department for Business, Energy and Industrial Strategy",The Coal Authority,25/10/2016,Subsistence Allowances,Procurement,Staff Expenses Control,6393,4.7
"Department for Business, Energy and Industrial Strategy",The Coal Authority,03/09/2016,Training & Education,Procurement,RBS GPC Aug 2016,6526,96.03
"Department for Business, Energy and Industrial Strategy",The Coal Authority,27/10/2016,Surface Hazards - Contractor & Claim Costs,PS&S - Commercial,Soil Engineering Geoservices L,6455,4118.33
"Department for Business, Energy and Industrial Strategy",The Coal Authority,09/09/2016,Applications Consultancy,PS&S - Commercial Delivery,Scisys Uk Ltd,5760,127.33
"Department for Business, Energy and Industrial Strategy",The Coal Authority,09/09/2016,Applications Consultancy,PS&S - Commercial Delivery,Scisys Uk Ltd,5760,439.24
"Department for Business, Energy and Industrial Strategy",The Coal Authority,09/09/2016,Applications Consultancy,PS&S - Commercial Delivery,Scisys Uk Ltd,5760,60.08
"Department for Business, Energy and Industrial Strategy",The Coal Authority,06/10/2016,Applications Consultancy,PS&S - Commercial Delivery,Scisys Uk Ltd,6336,265.2
"Department for Business, Energy and Industrial Strategy",The Coal Authority,06/10/2016,Applications Consultancy,PS&S - Commercial Delivery,Scisys Uk Ltd,6336,594.39
"Department for Business, Energy and Industrial Strategy",The Coal Authority,06/10/2016,Applications Consultancy,PS&S - Commercial Delivery,Scisys Uk Ltd,6336,70.13
"Department for Business, Energy and Industrial Strategy",The Coal Authority,09/09/2016,CY - Intangible IT - Additions,PS&S - Commercial Delivery,Scisys Uk Ltd,5760,598
"Department for Business, Energy and Industrial Strategy",The Coal Authority,06/10/2016,CY - Intangible IT - Additions,PS&S - Commercial Delivery,Scisys Uk Ltd,6336,2981.03
"Department for Business, Energy and Industrial Strategy",The Coal Authority,16/09/2016,CY - Tangible IT - Additions,PS&S - Commercial Delivery,Atos It Services Uk Ltd,5759,3055.14
"Department for Business, Energy and Industrial Strategy",The Coal Authority,05/10/2016,Fares - Public Transport,PS&S - Commercial Delivery,5775 - Ace of Mansfield,6586,29
"Department for Business, Energy and Industrial Strategy",The Coal Authority,05/10/2016,Fuel (Vehicle),PS&S - Commercial Delivery,Allstar Business Solutions Ltd,5884,138.1
"Department for Business, Energy and Industrial Strategy",The Coal Authority,12/10/2016,Fuel (Vehicle),PS&S - Commercial Delivery,Allstar Business Solutions Ltd,6222,59.82
"Department for Business, Energy and Industrial Strategy",The Coal Authority,19/10/2016,Fuel (Vehicle),PS&S - Commercial Delivery,Allstar Business Solutions Ltd,6318,90.11
"Department for Business, Energy and Industrial Strategy",The Coal Authority,30/09/2016,Fuel (Vehicle),PS&S - Commercial Delivery,VAT reclaimed on business mileage,6403,-166.02
"Department for Business, Energy and Industrial Strategy",The Coal Authority,30/09/2016,Hotel & Accommodation,PS&S - Commercial Delivery,Redfern Travel Ltd,6008,486.93
"Department for Business, Energy and Industrial Strategy",The Coal Authority,12/10/2016,Incidentals,PS&S - Commercial Delivery,Staff Expenses Control,6064,4
"Department for Business, Energy and Industrial Strategy",The Coal Authority,20/10/2016,Incidentals,PS&S - Commercial Delivery,Staff Expenses Control,6302,4.59
"Department for Business, Energy and Industrial Strategy",The Coal Authority,20/10/2016,Mileage Payments,PS&S - Commercial Delivery,Staff Expenses Control,6302,210.15
"Department for Business, Energy and Industrial Strategy",The Coal Authority,02/11/2016,Mine Entry Inspection - Contractor & Claim Costs,PS&S - Commercial Delivery,169- PMC Surveys,6611,-800
"Department for Business, Energy and Industrial Strategy",The Coal Authority,02/11/2016,Mine Entry Inspection - Contractor & Claim Costs,PS&S - Commercial Delivery,4644- Ayle Collery Co Ltd,6611,2000
"Department for Business, Energy and Industrial Strategy",The Coal Authority,06/10/2016,Mine Entry Inspection - Contractor & Claim Costs,PS&S - Commercial Delivery,5641 Llettyshenkin Cons Co Ltd,6446,680
"Department for Business, Energy and Industrial Strategy",The Coal Authority,06/10/2016,Mine Entry Inspection - Contractor & Claim Costs,PS&S - Commercial Delivery,5642 Llettyshenkin Cons Co Ltd,6446,767.5
"Department for Business, Energy and Industrial Strategy",The Coal Authority,06/10/2016,Mine Entry Inspection - Contractor & Claim Costs,PS&S - Commercial Delivery,5643 Llettyshenkin Cons Co Ltd,6446,312.5
"Department for Business, Energy and Industrial Strategy",The Coal Authority,06/10/2016,Mine Entry Inspection - Contractor & Claim Costs,PS&S - Commercial Delivery,5645 Llettyshenkin Cons Co Ltd,6446,332.5
"Department for Business, Energy and Industrial Strategy",The Coal Authority,02/11/2016,Mine Entry Inspection - Contractor & Claim Costs,PS&S - Commercial Delivery,5646 - Lletyshenkin Cons Co Ltd,6611,2771.29
"Department for Business, Energy and Industrial Strategy",The Coal Authority,06/10/2016,Mine Entry Inspection - Contractor & Claim Costs,PS&S - Commercial Delivery,5873 Alliance Contracting Solutions Ltd,6446,15000
"Department for Business, Energy and Industrial Strategy",The Coal Authority,02/09/2016,Mine Entry Inspection - Contractor & Claim Costs,PS&S - Commercial Delivery,Balfour Beatty Civil Eng Ltd,6482,1595.54
"Department for Business, Energy and Industrial Strategy",The Coal Authority,05/10/2016,Mine Entry Inspection - Contractor & Claim Costs,PS&S - Commercial Delivery,Balfour Beatty Civil Eng Ltd,5970,278.7
"Department for Business, Energy and Industrial Strategy",The Coal Authority,05/10/2016,Mine Entry Inspection - Contractor & Claim Costs,PS&S - Commercial Delivery,Balfour Beatty Civil Eng Ltd,5972,6216.14
"Department for Business, Energy and Industrial Strategy",The Coal Authority,05/10/2016,Mine Entry Inspection - Contractor & Claim Costs,PS&S - Commercial Delivery,Balfour Beatty Civil Eng Ltd,5973,1759.92
"Department for Business, Energy and Industrial Strategy",The Coal Authority,05/10/2016,Mine Entry Inspection - Contractor & Claim Costs,PS&S - Commercial Delivery,Balfour Beatty Civil Eng Ltd,5974,837.36
"Department for Business, Energy and Industrial Strategy",The Coal Authority,05/10/2016,Mine Entry Inspection - Contractor & Claim Costs,PS&S - Commercial Delivery,Balfour Beatty Civil Eng Ltd,5975,660.96
"Department for Business, Energy and Industrial Strategy",The Coal Authority,05/10/2016,Mine Entry Inspection - Contractor & Claim Costs,PS&S - Commercial Delivery,Balfour Beatty Civil Eng Ltd,5976,706.76
"Department for Business, Energy and Industrial Strategy",The Coal Authority,05/10/2016,Mine Entry Inspection - Contractor & Claim Costs,PS&S - Commercial Delivery,Balfour Beatty Civil Eng Ltd,5977,146.4
"Department for Business, Energy and Industrial Strategy",The Coal Authority,19/10/2016,Mine Entry Inspection - Contractor & Claim Costs,PS&S - Commercial Delivery,Compensation Payment,6268,1479.67
"Department for Business, Energy and Industrial Strategy",The Coal Authority,11/10/2016,Mine Entry Inspection - Contractor & Claim Costs,PS&S - Commercial Delivery,Llettyshenkin Cons Co Ltd,6059,530
"Department for Business, Energy and Industrial Strategy",The Coal Authority,11/10/2016,Mine Entry Inspection - Contractor & Claim Costs,PS&S - Commercial Delivery,Llettyshenkin Cons Co Ltd,6061,332.5
"Department for Business, Energy and Industrial Strategy",The Coal Authority,14/10/2016,Mine Entry Inspection - Contractor & Claim Costs,PS&S - Commercial Delivery,Llettyshenkin Cons Co Ltd,6178,19540.94
"Department for Business, Energy and Industrial Strategy",The Coal Authority,17/10/2016,Mine Entry Inspection - Contractor & Claim Costs,PS&S - Commercial Delivery,Llettyshenkin Cons Co Ltd,6181,553.5
"Department for Business, Energy and Industrial Strategy",The Coal Authority,17/10/2016,Mine Entry Inspection - Contractor & Claim Costs,PS&S - Commercial Delivery,Llettyshenkin Cons Co Ltd,6182,411
"Department for Business, Energy and Industrial Strategy",The Coal Authority,17/10/2016,Mine Entry Inspection - Contractor & Claim Costs,PS&S - Commercial Delivery,Llettyshenkin Cons Co Ltd,6183,715.6
"Department for Business, Energy and Industrial Strategy",The Coal Authority,17/10/2016,Mine Entry Inspection - Contractor & Claim Costs,PS&S - Commercial Delivery,Llettyshenkin Cons Co Ltd,6184,465
"Department for Business, Energy and Industrial Strategy",The Coal Authority,17/10/2016,Mine Entry Inspection - Contractor & Claim Costs,PS&S - Commercial Delivery,Llettyshenkin Cons Co Ltd,6185,363.5
"Department for Business, Energy and Industrial Strategy",The Coal Authority,12/10/2016,Mine Entry Inspection - Contractor & Claim Costs,PS&S - Commercial Delivery,Nal Plant Limited,6190,990.26
"Department for Business, Energy and Industrial Strategy",The Coal Authority,27/10/2016,Mine Entry Inspection - Contractor & Claim Costs,PS&S - Commercial Delivery,Soil Engineering Geoservices L,6456,1300
"Department for Business, Energy and Industrial Strategy",The Coal Authority,30/09/2016,Mine Entry Inspection - Outsourced Management,PS&S - Commercial Delivery,Interlock Surveys,5674,7231.25
"Department for Business, Energy and Industrial Strategy",The Coal Authority,30/09/2016,Mine Entry Inspection - Outsourced Management,PS&S - Commercial Delivery,Interlock Surveys,5675,6630.75
"Department for Business, Energy and Industrial Strategy",The Coal Authority,05/10/2016,Mine Entry Inspection - Outsourced Management,PS&S - Commercial Delivery,Mines Rescue Service Limited,5861,18648
"Department for Business, Energy and Industrial Strategy",The Coal Authority,02/11/2016,Minewater Sampling - Operational Sites,PS&S - Commercial Delivery,5848 Severn Trent Serv Ops Uk Ltd,6629,162.97
"Department for Business, Energy and Industrial Strategy",The Coal Authority,09/09/2016,Requests For Change,PS&S - Commercial Delivery,Scisys Uk Ltd,5760,173.6
"Department for Business, Energy and Industrial Strategy",The Coal Authority,09/09/2016,Requests For Change,PS&S - Commercial Delivery,Scisys Uk Ltd,5760,274.86
"Department for Business, Energy and Industrial Strategy",The Coal Authority,06/10/2016,Requests For Change,PS&S - Commercial Delivery,Scisys Uk Ltd,6336,76.84
"Department for Business, Energy and Industrial Strategy",The Coal Authority,06/10/2016,Requests For Change,PS&S - Commercial Delivery,Scisys Uk Ltd,6336,124.64
"Department for Business, Energy and Industrial Strategy",The Coal Authority,05/10/2016,Research & Development,PS&S - Commercial Delivery,2473 - ITM Monitoring,6724,8400
"Department for Business, Energy and Industrial Strategy",The Coal Authority,09/09/2016,Software Support & Maintenance - On Premise,PS&S - Commercial Delivery,Scisys Uk Ltd,5760,1388.61
"Department for Business, Energy and Industrial Strategy",The Coal Authority,06/10/2016,Software Support & Maintenance - On Premise,PS&S - Commercial Delivery,Scisys Uk Ltd,6336,1438.48
"Department for Business, Energy and Industrial Strategy",The Coal Authority,05/10/2016,Stationery,PS&S - Commercial Delivery,5775 - Ace of Mansfield,6586,-29
"Department for Business, Energy and Industrial Strategy",The Coal Authority,30/09/2016,Stationery,PS&S - Commercial Delivery,Ace Of Mansfield Ltd,5775,29
"Department for Business, Energy and Industrial Strategy",The Coal Authority,03/09/2016,Stationery,PS&S - Commercial Delivery,RBS GPC Aug 2016,6526,33.05
"Department for Business, Energy and Industrial Strategy",The Coal Authority,03/09/2016,Subsistence Allowances,PS&S - Commercial Delivery,RBS GPC Aug 2016,6526,19.13
"Department for Business, Energy and Industrial Strategy",The Coal Authority,20/10/2016,Subsistence Allowances,PS&S - Commercial Delivery,Staff Expenses Control,6302,41.77
"Department for Business, Energy and Industrial Strategy",The Coal Authority,24/10/2016,Tips - Maintenance,PS&S - Commercial Delivery,Halcrow Group Limited,6470,869.33
"Department for Business, Energy and Industrial Strategy",The Coal Authority,11/10/2016,Tips - Maintenance,PS&S - Commercial Delivery,Jim Davies Civil Engineering,6134,19173.06
"Department for Business, Energy and Industrial Strategy",The Coal Authority,11/10/2016,Tips - Maintenance,PS&S - Commercial Delivery,Jim Davies Civil Engineering,6135,1133.2
"Department for Business, Energy and Industrial Strategy",The Coal Authority,02/11/2016,Tips - Monitoring & Equipment,PS&S - Commercial Delivery,5848 Severn Trent Serv Ops Uk Ltd,6629,109.64
"Department for Business, Energy and Industrial Strategy",The Coal Authority,02/11/2016,Tips - Monitoring & Equipment,PS&S - Commercial Delivery,5848 Severn Trent Serv Ops Uk Ltd,6629,451.17
"Department for Business, Energy and Industrial Strategy",The Coal Authority,02/11/2016,Tips - Monitoring & Equipment,PS&S - Commercial Delivery,5848 Severn Trent Serv Ops Uk Ltd,6629,1036.41
"Department for Business, Energy and Industrial Strategy",The Coal Authority,03/09/2016,Training & Education,PS&S - Commercial Delivery,RBS GPC Aug 2016,6526,312.5
"Department for Business, Energy and Industrial Strategy",The Coal Authority,07/10/2016,Legal - General,PS&S - Daw Mill,Dla Piper Uk Llp,5999,360
"Department for Business, Energy and Industrial Strategy",The Coal Authority,19/10/2016,Subsidence - Contractor & Claim Costs,PS&S - Daw Mill,Paxton Brown Ltd,6265,2411.28
"Department for Business, Energy and Industrial Strategy",The Coal Authority,19/10/2016,Subsidence - Contractor & Claim Costs,PS&S - Daw Mill,Priority Builders Ltd,6309,15504.1
"Department for Business, Energy and Industrial Strategy",The Coal Authority,24/10/2016,Subsidence - Contractor & Claim Costs,PS&S - Daw Mill,Priority Builders Ltd,6468,2442
"Department for Business, Energy and Industrial Strategy",The Coal Authority,21/09/2016,Subsidence - Contractor & Claim Costs,PS&S - Daw Mill,Valuation Office Agency,5870,750
"Department for Business, Energy and Industrial Strategy",The Coal Authority,21/10/2016,Subsidence - Contractor & Claim Costs,PS&S - Daw Mill,Valuation Office Agency,6368,82.59
"Department for Business, Energy and Industrial Strategy",The Coal Authority,21/10/2016,Subsidence - Contractor & Claim Costs,PS&S - Daw Mill,Valuation Office Agency,6462,125.71
"Department for Business, Energy and Industrial Strategy",The Coal Authority,30/09/2016,Central Training,PS&S - Engineering,Symmons Madge Associates Llp,6039,699.65
"Department for Business, Energy and Industrial Strategy",The Coal Authority,03/09/2016,Incidentals,PS&S - Engineering,RBS GPC Aug 2016,6526,8
"Department for Business, Energy and Industrial Strategy",The Coal Authority,21/10/2016,Incidentals,PS&S - Engineering,Staff Expenses Control,6345,36
"Department for Business, Energy and Industrial Strategy",The Coal Authority,21/10/2016,Mileage Payments,PS&S - Engineering,Staff Expenses Control,6345,22.5
"Department for Business, Energy and Industrial Strategy",The Coal Authority,05/10/2016,Research & Development,PS&S - Engineering,2473 - ITM Monitoring,6724,-8400
"Department for Business, Energy and Industrial Strategy",The Coal Authority,07/09/2016,Software Licenses - On Premise,PS&S - Engineering,Causeway Technologies Ltd,6038,1039.66
"Department for Business, Energy and Industrial Strategy",The Coal Authority,03/09/2016,Staff Events,PS&S - Engineering,RBS GPC Aug 2016,6526,59.64
"Department for Business, Energy and Industrial Strategy",The Coal Authority,03/09/2016,Subsidence - Contractor & Claim Costs,PS&S - Engineering,RBS GPC Aug 2016,6526,372.5
"Department for Business, Energy and Industrial Strategy",The Coal Authority,03/09/2016,Subsistence Allowances,PS&S - Engineering,RBS GPC Aug 2016,6526,138.23
"Department for Business, Energy and Industrial Strategy",The Coal Authority,21/10/2016,Subsistence Allowances,PS&S - Engineering,Staff Expenses Control,6345,60.92
"Department for Business, Energy and Industrial Strategy",The Coal Authority,02/10/2016,Temporary Contractors,PS&S - Engineering,Venture Finance Plc,5847,1036.49
"Department for Business, Energy and Industrial Strategy",The Coal Authority,09/10/2016,Temporary Contractors,PS&S - Engineering,Venture Finance Plc,6142,1036.49
"Department for Business, Energy and Industrial Strategy",The Coal Authority,16/10/2016,Temporary Contractors,PS&S - Engineering,Venture Finance Plc,6365,1067.43
"Department for Business, Energy and Industrial Strategy",The Coal Authority,23/10/2016,Temporary Contractors,PS&S - Engineering,Venture Finance Plc,6509,1224.5
"Department for Business, Energy and Industrial Strategy",The Coal Authority,09/09/2016,Applications Consultancy,PS&S - General Claims,Scisys Uk Ltd,5760,60.08
"Department for Business, Energy and Industrial Strategy",The Coal Authority,09/09/2016,Applications Consultancy,PS&S - General Claims,Scisys Uk Ltd,5760,439.23
"Department for Business, Energy and Industrial Strategy",The Coal Authority,09/09/2016,Applications Consultancy,PS&S - General Claims,Scisys Uk Ltd,5760,127.33
"Department for Business, Energy and Industrial Strategy",The Coal Authority,06/10/2016,Applications Consultancy,PS&S - General Claims,Scisys Uk Ltd,6336,70.13
"Department for Business, Energy and Industrial Strategy",The Coal Authority,06/10/2016,Applications Consultancy,PS&S - General Claims,Scisys Uk Ltd,6336,594.39
"Department for Business, Energy and Industrial Strategy",The Coal Authority,06/10/2016,Applications Consultancy,PS&S - General Claims,Scisys Uk Ltd,6336,265.2
"Department for Business, Energy and Industrial Strategy",The Coal Authority,05/10/2016,Bridgewater - Contractor & Claim Costs,PS&S - General Claims,The Bridgewater Canal Co Ltd,5763,3223.66
"Department for Business, Energy and Industrial Strategy",The Coal Authority,12/10/2016,Bridgewater - Contractor & Claim Costs,PS&S - General Claims,The Bridgewater Canal Co Ltd,6127,10981.75
"Department for Business, Energy and Industrial Strategy",The Coal Authority,03/09/2016,Business Entertainment / Hospitality,PS&S - General Claims,RBS GPC Aug 2016,6526,60
"Department for Business, Energy and Industrial Strategy",The Coal Authority,01/10/2016,Contract Hire Vehicles,PS&S - General Claims,Alphabet Uk Fleet Man Ltd,6025,5
"Department for Business, Energy and Industrial Strategy",The Coal Authority,07/10/2016,Contract Hire Vehicles,PS&S - General Claims,Lex Autolease Ltd,6161,3280.22
"Department for Business, Energy and Industrial Strategy",The Coal Authority,03/09/2016,Contract Hire Vehicles,PS&S - General Claims,RBS GPC Aug 2016,6526,5.99
"Department for Business, Energy and Industrial Strategy",The Coal Authority,09/09/2016,CY - Intangible IT - Additions,PS&S - General Claims,Scisys Uk Ltd,5760,598
"Department for Business, Energy and Industrial Strategy",The Coal Authority,06/10/2016,CY - Intangible IT - Additions,PS&S - General Claims,Scisys Uk Ltd,6336,2981.03
"Department for Business, Energy and Industrial Strategy",The Coal Authority,16/09/2016,CY - Tangible IT - Additions,PS&S - General Claims,Atos It Services Uk Ltd,5759,3055.14
"Department for Business, Energy and Industrial Strategy",The Coal Authority,03/09/2016,Fares - Air,PS&S - General Claims,RBS GPC Aug 2016,6526,12.19
"Department for Business, Energy and Industrial Strategy",The Coal Authority,03/09/2016,Fares - Rail,PS&S - General Claims,RBS GPC Aug 2016,6526,6.4
"Department for Business, Energy and Industrial Strategy",The Coal Authority,04/10/2016,Fuel (Vehicle),PS&S - General Claims,5256-Allstar Business Sltn,5736,-2
"Department for Business, Energy and Industrial Strategy",The Coal Authority,05/10/2016,Fuel (Vehicle),PS&S - General Claims,Allstar Business Solutions Ltd,5886,51.78
"Department for Business, Energy and Industrial Strategy",The Coal Authority,05/10/2016,Fuel (Vehicle),PS&S - General Claims,Allstar Business Solutions Ltd,5888,53.02
"Department for Business, Energy and Industrial Strategy",The Coal Authority,05/10/2016,Fuel (Vehicle),PS&S - General Claims,Allstar Business Solutions Ltd,5889,69.12
"Department for Business, Energy and Industrial Strategy",The Coal Authority,05/10/2016,Fuel (Vehicle),PS&S - General Claims,Allstar Business Solutions Ltd,5898,68.31
"Department for Business, Energy and Industrial Strategy",The Coal Authority,05/10/2016,Fuel (Vehicle),PS&S - General Claims,Allstar Business Solutions Ltd,5881,76.99
"Department for Business, Energy and Industrial Strategy",The Coal Authority,05/10/2016,Fuel (Vehicle),PS&S - General Claims,Allstar Business Solutions Ltd,5882,58.78
"Department for Business, Energy and Industrial Strategy",The Coal Authority,05/10/2016,Fuel (Vehicle),PS&S - General Claims,Allstar Business Solutions Ltd,5883,74.58
"Department for Business, Energy and Industrial Strategy",The Coal Authority,12/10/2016,Fuel (Vehicle),PS&S - General Claims,Allstar Business Solutions Ltd,6223,71.7
"Department for Business, Energy and Industrial Strategy",The Coal Authority,12/10/2016,Fuel (Vehicle),PS&S - General Claims,Allstar Business Solutions Ltd,6224,60.3
"Department for Business, Energy and Industrial Strategy",The Coal Authority,12/10/2016,Fuel (Vehicle),PS&S - General Claims,Allstar Business Solutions Ltd,6225,42.28
"Department for Business, Energy and Industrial Strategy",The Coal Authority,12/10/2016,Fuel (Vehicle),PS&S - General Claims,Allstar Business Solutions Ltd,6220,59.63
"Department for Business, Energy and Industrial Strategy",The Coal Authority,12/10/2016,Fuel (Vehicle),PS&S - General Claims,Allstar Business Solutions Ltd,6221,58.28
"Department for Business, Energy and Industrial Strategy",The Coal Authority,12/10/2016,Fuel (Vehicle),PS&S - General Claims,Allstar Business Solutions Ltd,6216,59.36
"Department for Business, Energy and Industrial Strategy",The Coal Authority,12/10/2016,Fuel (Vehicle),PS&S - General Claims,Allstar Business Solutions Ltd,6217,60.06
"Department for Business, Energy and Industrial Strategy",The Coal Authority,12/10/2016,Fuel (Vehicle),PS&S - General Claims,Allstar Business Solutions Ltd,6218,70.7
"Department for Business, Energy and Industrial Strategy",The Coal Authority,19/10/2016,Fuel (Vehicle),PS&S - General Claims,Allstar Business Solutions Ltd,6323,40.67
"Department for Business, Energy and Industrial Strategy",The Coal Authority,19/10/2016,Fuel (Vehicle),PS&S - General Claims,Allstar Business Solutions Ltd,6324,47.84
"Department for Business, Energy and Industrial Strategy",The Coal Authority,19/10/2016,Fuel (Vehicle),PS&S - General Claims,Allstar Business Solutions Ltd,6325,64.56
"Department for Business, Energy and Industrial Strategy",The Coal Authority,03/09/2016,Fuel (Vehicle),PS&S - General Claims,RBS GPC Aug 2016,6526,30.83
"Department for Business, Energy and Industrial Strategy",The Coal Authority,12/10/2016,Fuel (Vehicle),PS&S - General Claims,Staff Expenses Control,6067,62.42
"Department for Business, Energy and Industrial Strategy",The Coal Authority,12/10/2016,Fuel (Vehicle),PS&S - General Claims,Staff Expenses Control,6082,75.01
"Department for Business, Energy and Industrial Strategy",The Coal Authority,30/09/2016,Fuel (Vehicle),PS&S - General Claims,VAT reclaimed on business mileage,6403,-182.33
"Department for Business, Energy and Industrial Strategy",The Coal Authority,03/09/2016,Hardware Equipment & Support,PS&S - General Claims,RBS GPC Aug 2016,6526,15.2
"Department for Business, Energy and Industrial Strategy",The Coal Authority,30/09/2016,Hotel & Accommodation,PS&S - General Claims,Redfern Travel Ltd,6008,692.62
"Department for Business, Energy and Industrial Strategy",The Coal Authority,03/09/2016,Incidentals,PS&S - General Claims,RBS GPC Aug 2016,6526,88.28
"Department for Business, Energy and Industrial Strategy",The Coal Authority,12/10/2016,Incidentals,PS&S - General Claims,Staff Expenses Control,6068,3
"Department for Business, Energy and Industrial Strategy",The Coal Authority,09/09/2016,Legal - General,PS&S - General Claims,Dla Piper Uk Llp,5681,1704
"Department for Business, Energy and Industrial Strategy",The Coal Authority,07/10/2016,Legal - General,PS&S - General Claims,Dla Piper Uk Llp,5999,11874.46
"Department for Business, Energy and Industrial Strategy",The Coal Authority,20/10/2016,Mileage Payments,PS&S - General Claims,Staff Expenses Control,6298,3.2
"Department for Business, Energy and Industrial Strategy",The Coal Authority,06/10/2016,Mine Entry Inspection - Contractor & Claim Costs,PS&S - General Claims,5641 Llettyshenkin Cons Co Ltd,6446,-680
"Department for Business, Energy and Industrial Strategy",The Coal Authority,06/10/2016,Mine Entry Inspection - Contractor & Claim Costs,PS&S - General Claims,5642 Llettyshenkin Cons Co Ltd,6446,-767.5
"Department for Business, Energy and Industrial Strategy",The Coal Authority,06/10/2016,Mine Entry Inspection - Contractor & Claim Costs,PS&S - General Claims,5643 Llettyshenkin Cons Co Ltd,6446,-312.5
"Department for Business, Energy and Industrial Strategy",The Coal Authority,06/10/2016,Mine Entry Inspection - Contractor & Claim Costs,PS&S - General Claims,5645 Llettyshenkin Cons Co Ltd,6446,-332.5
"Department for Business, Energy and Industrial Strategy",The Coal Authority,06/10/2016,Mine Entry Inspection - Contractor & Claim Costs,PS&S - General Claims,5873 Alliance Contracting Solutions Ltd,6446,-15000
"Department for Business, Energy and Industrial Strategy",The Coal Authority,31/08/2016,Mine Entry Inspection - Contractor & Claim Costs,PS&S - General Claims,Alliance Contracting Solutions Ltd,5873,15000
"Department for Business, Energy and Industrial Strategy",The Coal Authority,01/10/2016,Mine Entry Inspection - Contractor & Claim Costs,PS&S - General Claims,Llettyshenkin Cons Co Ltd,5641,680
"Department for Business, Energy and Industrial Strategy",The Coal Authority,01/10/2016,Mine Entry Inspection - Contractor & Claim Costs,PS&S - General Claims,Llettyshenkin Cons Co Ltd,5642,767.5
"Department for Business, Energy and Industrial Strategy",The Coal Authority,01/10/2016,Mine Entry Inspection - Contractor & Claim Costs,PS&S - General Claims,Llettyshenkin Cons Co Ltd,5643,312.5
"Department for Business, Energy and Industrial Strategy",The Coal Authority,01/10/2016,Mine Entry Inspection - Contractor & Claim Costs,PS&S - General Claims,Llettyshenkin Cons Co Ltd,5645,332.5
"Department for Business, Energy and Industrial Strategy",The Coal Authority,03/09/2016,Office Furniture,PS&S - General Claims,RBS GPC Aug 2016,6526,675.01
"Department for Business, Energy and Industrial Strategy",The Coal Authority,30/09/2016,Office Machinery - Purchase,PS&S - General Claims,Environmental Scientifics Grp,5767,1256.85
"Department for Business, Energy and Industrial Strategy",The Coal Authority,03/09/2016,Office Printing Services,PS&S - General Claims,RBS GPC Aug 2016,6526,34.4
"Department for Business, Energy and Industrial Strategy",The Coal Authority,03/09/2016,Office Telephony - Line Rent,PS&S - General Claims,RBS GPC Aug 2016,6526,79.01
"Department for Business, Energy and Industrial Strategy",The Coal Authority,07/11/2017,Property Rates Payable,PS&S - General Claims,5432 - Simple Storage Solutions,6730,-45.83
"Department for Business, Energy and Industrial Strategy",The Coal Authority,06/10/2016,Property Rates Payable,PS&S - General Claims,6239 - Simple Storage Solutions,6512,-45.83
"Department for Business, Energy and Industrial Strategy",The Coal Authority,17/10/2016,Property Rates Payable,PS&S - General Claims,Simple Storage Solutions T/A Gateshead,6239,45.83
"Department for Business, Energy and Industrial Strategy",The Coal Authority,09/09/2016,Requests For Change,PS&S - General Claims,Scisys Uk Ltd,5760,274.86
"Department for Business, Energy and Industrial Strategy",The Coal Authority,09/09/2016,Requests For Change,PS&S - General Claims,Scisys Uk Ltd,5760,173.6
"Department for Business, Energy and Industrial Strategy",The Coal Authority,06/10/2016,Requests For Change,PS&S - General Claims,Scisys Uk Ltd,6336,124.64
"Department for Business, Energy and Industrial Strategy",The Coal Authority,06/10/2016,Requests For Change,PS&S - General Claims,Scisys Uk Ltd,6336,76.84
"Department for Business, Energy and Industrial Strategy",The Coal Authority,09/09/2016,Software Support & Maintenance - On Premise,PS&S - General Claims,Scisys Uk Ltd,5760,1388.61
"Department for Business, Energy and Industrial Strategy",The Coal Authority,06/10/2016,Software Support & Maintenance - On Premise,PS&S - General Claims,Scisys Uk Ltd,6336,1438.48
"Department for Business, Energy and Industrial Strategy",The Coal Authority,03/09/2016,Stationery,PS&S - General Claims,RBS GPC Aug 2016,6526,39.5
"Department for Business, Energy and Industrial Strategy",The Coal Authority,02/11/2016,Subsidence - Consultancy,PS&S - General Claims,5724 - Rettie & Company Ltd,6612,-7200
"Department for Business, Energy and Industrial Strategy",The Coal Authority,02/11/2016,Subsidence - Consultancy,PS&S - General Claims,6263 - James McIntyre & Sons,6611,-600
"Department for Business, Energy and Industrial Strategy",The Coal Authority,02/11/2016,Subsidence - Consultancy,PS&S - General Claims,6494 - Land Registry,6611,-3
"Department for Business, Energy and Industrial Strategy",The Coal Authority,24/10/2016,Subsidence - Consultancy,PS&S - General Claims,Compensation Payment,6389,822.98
"Department for Business, Energy and Industrial Strategy",The Coal Authority,19/10/2016,Subsidence - Consultancy,PS&S - General Claims,James McIntyre & Sons Limited,6263,600
"Department for Business, Energy and Industrial Strategy",The Coal Authority,21/10/2016,Subsidence - Consultancy,PS&S - General Claims,Land Registry,6494,3
"Department for Business, Energy and Industrial Strategy",The Coal Authority,04/10/2016,Subsidence - Consultancy,PS&S - General Claims,Rettie & Company Limited,5724,7200
"Department for Business, Energy and Industrial Strategy",The Coal Authority,07/11/2017,Subsidence - Contractor & Claim Costs,PS&S - General Claims,5432 - Simple Storage Solutions,6730,45.83
"Department for Business, Energy and Industrial Strategy",The Coal Authority,02/11/2016,Subsidence - Contractor & Claim Costs,PS&S - General Claims,5724 - Rettie & Company Ltd,6612,7200
"Department for Business, Energy and Industrial Strategy",The Coal Authority,06/10/2016,Subsidence - Contractor & Claim Costs,PS&S - General Claims,6239 - Simple Storage Solutions,6512,45.83
"Department for Business, Energy and Industrial Strategy",The Coal Authority,02/11/2016,Subsidence - Contractor & Claim Costs,PS&S - General Claims,6263 - James McIntyre & Sons,6611,600
"Department for Business, Energy and Industrial Strategy",The Coal Authority,02/11/2016,Subsidence - Contractor & Claim Costs,PS&S - General Claims,6494 - Land Registry,6611,3
"Department for Business, Energy and Industrial Strategy",The Coal Authority,04/10/2016,Subsidence - Contractor & Claim Costs,PS&S - General Claims,Abode Residential Surveyors,5727,600
"Department for Business, Energy and Industrial Strategy",The Coal Authority,14/10/2016,Subsidence - Contractor & Claim Costs,PS&S - General Claims,Alliance Contracting Solutions Ltd,6174,3898.05
"Department for Business, Energy and Industrial Strategy",The Coal Authority,19/10/2016,Subsidence - Contractor & Claim Costs,PS&S - General Claims,Alliance Contracting Solutions Ltd,6278,47.5
"Department for Business, Energy and Industrial Strategy",The Coal Authority,19/10/2016,Subsidence - Contractor & Claim Costs,PS&S - General Claims,Alliance Contracting Solutions Ltd,6279,818.04
"Department for Business, Energy and Industrial Strategy",The Coal Authority,19/10/2016,Subsidence - Contractor & Claim Costs,PS&S - General Claims,Alliance Contracting Solutions Ltd,6284,55.35
"Department for Business, Energy and Industrial Strategy",The Coal Authority,30/09/2016,Subsidence - Contractor & Claim Costs,PS&S - General Claims,Balfour Beatty Civil Eng Ltd,5647,439.12
"Department for Business, Energy and Industrial Strategy",The Coal Authority,30/09/2016,Subsidence - Contractor & Claim Costs,PS&S - General Claims,Balfour Beatty Civil Eng Ltd,5648,2571.49
"Department for Business, Energy and Industrial Strategy",The Coal Authority,30/09/2016,Subsidence - Contractor & Claim Costs,PS&S - General Claims,Balfour Beatty Civil Eng Ltd,5649,4289.9
"Department for Business, Energy and Industrial Strategy",The Coal Authority,30/09/2016,Subsidence - Contractor & Claim Costs,PS&S - General Claims,Balfour Beatty Civil Eng Ltd,5651,14472.79
"Department for Business, Energy and Industrial Strategy",The Coal Authority,12/10/2016,Subsidence - Contractor & Claim Costs,PS&S - General Claims,C A Neal,6105,540.98
"Department for Business, Energy and Industrial Strategy",The Coal Authority,13/10/2016,Subsidence - Contractor & Claim Costs,PS&S - General Claims,C A Neal,6116,827.86
"Department for Business, Energy and Industrial Strategy",The Coal Authority,04/10/2016,Subsidence - Contractor & Claim Costs,PS&S - General Claims,Compensation Payment,5714,1580
"Department for Business, Energy and Industrial Strategy",The Coal Authority,04/10/2016,Subsidence - Contractor & Claim Costs,PS&S - General Claims,Compensation Payment,5715,419.94
"Department for Business, Energy and Industrial Strategy",The Coal Authority,04/10/2016,Subsidence - Contractor & Claim Costs,PS&S - General Claims,Compensation Payment,5716,160
"Department for Business, Energy and Industrial Strategy",The Coal Authority,04/10/2016,Subsidence - Contractor & Claim Costs,PS&S - General Claims,Compensation Payment,5717,250
"Department for Business, Energy and Industrial Strategy",The Coal Authority,04/10/2016,Subsidence - Contractor & Claim Costs,PS&S - General Claims,Compensation Payment,5725,3450
"Department for Business, Energy and Industrial Strategy",The Coal Authority,04/10/2016,Subsidence - Contractor & Claim Costs,PS&S - General Claims,Compensation Payment,5726,7200
"Department for Business, Energy and Industrial Strategy",The Coal Authority,06/10/2016,Subsidence - Contractor & Claim Costs,PS&S - General Claims,Compensation Payment,5893,19.98
"Department for Business, Energy and Industrial Strategy",The Coal Authority,06/10/2016,Subsidence - Contractor & Claim Costs,PS&S - General Claims,Compensation Payment,5894,38
"Department for Business, Energy and Industrial Strategy",The Coal Authority,13/10/2016,Subsidence - Contractor & Claim Costs,PS&S - General Claims,Compensation Payment,6141,44.98
"Department for Business, Energy and Industrial Strategy",The Coal Authority,27/10/2016,Subsidence - Contractor & Claim Costs,PS&S - General Claims,Compensation Payment,6440,25
"Department for Business, Energy and Industrial Strategy",The Coal Authority,27/10/2016,Subsidence - Contractor & Claim Costs,PS&S - General Claims,Compensation Payment,6441,29.99
"Department for Business, Energy and Industrial Strategy",The Coal Authority,10/10/2016,Subsidence - Contractor & Claim Costs,PS&S - General Claims,Cornerstone  Projects Ltd,5964,317.7
"Department for Business, Energy and Industrial Strategy",The Coal Authority,21/10/2016,Subsidence - Contractor & Claim Costs,PS&S - General Claims,Dao Construction Ltd,6349,3133
"Department for Business, Energy and Industrial Strategy",The Coal Authority,13/10/2016,Subsidence - Contractor & Claim Costs,PS&S - General Claims,Dominic & Sons,6237,1240
"Department for Business, Energy and Industrial Strategy",The Coal Authority,30/09/2016,Subsidence - Contractor & Claim Costs,PS&S - General Claims,Edf Energy,5892,13.76
"Department for Business, Energy and Industrial Strategy",The Coal Authority,10/10/2016,Subsidence - Contractor & Claim Costs,PS&S - General Claims,Irent,5992,910
"Department for Business, Energy and Industrial Strategy",The Coal Authority,30/09/2016,Subsidence - Contractor & Claim Costs,PS&S - General Claims,Jim Hastings Limited,5633,139.99
"Department for Business, Energy and Industrial Strategy",The Coal Authority,30/09/2016,Subsidence - Contractor & Claim Costs,PS&S - General Claims,Jim Hastings Limited,5634,176.93
"Department for Business, Energy and Industrial Strategy",The Coal Authority,18/10/2016,Subsidence - Contractor & Claim Costs,PS&S - General Claims,Jim Hastings Limited,6312,15549.97
"Department for Business, Energy and Industrial Strategy",The Coal Authority,10/10/2016,Subsidence - Contractor & Claim Costs,PS&S - General Claims,Luxer Estates Ltd,5989,1050
"Department for Business, Energy and Industrial Strategy",The Coal Authority,10/10/2016,Subsidence - Contractor & Claim Costs,PS&S - General Claims,Luxer Estates Ltd,5990,950
"Department for Business, Energy and Industrial Strategy",The Coal Authority,25/10/2016,Subsidence - Contractor & Claim Costs,PS&S - General Claims,Mason Land Surveys Ltd,6466,869.52
"Department for Business, Energy and Industrial Strategy",The Coal Authority,10/10/2016,Subsidence - Contractor & Claim Costs,PS&S - General Claims,Compensation Payment,5991,100
"Department for Business, Energy and Industrial Strategy",The Coal Authority,14/10/2016,Subsidence - Contractor & Claim Costs,PS&S - General Claims,Nal Plant Limited,6186,892.26
"Department for Business, Energy and Industrial Strategy",The Coal Authority,10/10/2016,Subsidence - Contractor & Claim Costs,PS&S - General Claims,North East Derbyshire District Council,5995,666
"Department for Business, Energy and Industrial Strategy",The Coal Authority,12/10/2016,Subsidence - Contractor & Claim Costs,PS&S - General Claims,Pmc Surveys,6133,30785.58
"Department for Business, Energy and Industrial Strategy",The Coal Authority,03/09/2016,Subsidence - Contractor & Claim Costs,PS&S - General Claims,RBS GPC Aug 2016,6526,20
"Department for Business, Energy and Industrial Strategy",The Coal Authority,19/10/2016,Subsidence - Contractor & Claim Costs,PS&S - General Claims,Sarah Mains Residential Ltd,6262,675
"Department for Business, Energy and Industrial Strategy",The Coal Authority,04/10/2016,Subsidence - Contractor & Claim Costs,PS&S - General Claims,Scottish Woodlands Ltd,5713,240
"Department for Business, Energy and Industrial Strategy",The Coal Authority,27/10/2016,Subsidence - Contractor & Claim Costs,PS&S - General Claims,Soil Engineering Geoservices L,6457,90680.45
"Department for Business, Energy and Industrial Strategy",The Coal Authority,30/09/2016,Subsidence - Contractor & Claim Costs,PS&S - General Claims,Studio-G Architecture Llp,5998,7476
"Department for Business, Energy and Industrial Strategy",The Coal Authority,14/10/2016,Subsidence Pumping Carbon Reduction Commitments,PS&S - General Claims,Soil Engineering Geoservices L,6165,71175.66
"Department for Business, Energy and Industrial Strategy",The Coal Authority,03/09/2016,Subsistence Allowances,PS&S - General Claims,RBS GPC Aug 2016,6526,61.24
"Department for Business, Energy and Industrial Strategy",The Coal Authority,12/10/2016,Subsistence Allowances,PS&S - General Claims,Staff Expenses Control,6072,5
"Department for Business, Energy and Industrial Strategy",The Coal Authority,12/10/2016,Subsistence Allowances,PS&S - General Claims,Staff Expenses Control,6082,5.9
"Department for Business, Energy and Industrial Strategy",The Coal Authority,17/10/2016,Surface Hazards - Consultancy,PS&S - General Claims,Mott Macdonald Ltd,6305,7568
"Department for Business, Energy and Industrial Strategy",The Coal Authority,02/11/2016,Surface Hazards - Contractor & Claim Costs,PS&S - General Claims,169- PMC Surveys,6611,800
"Department for Business, Energy and Industrial Strategy",The Coal Authority,02/11/2016,Surface Hazards - Contractor & Claim Costs,PS&S - General Claims,4644- Ayle Collery Co Ltd,6611,-2000
"Department for Business, Energy and Industrial Strategy",The Coal Authority,02/11/2016,Surface Hazards - Contractor & Claim Costs,PS&S - General Claims,5646 - Lletyshenkin Cons Co Ltd,6611,-2771.29
"Department for Business, Energy and Industrial Strategy",The Coal Authority,31/08/2016,Surface Hazards - Contractor & Claim Costs,PS&S - General Claims,Alliance Contracting Solutions Ltd,5875,13000
"Department for Business, Energy and Industrial Strategy",The Coal Authority,14/10/2016,Surface Hazards - Contractor & Claim Costs,PS&S - General Claims,Alliance Contracting Solutions Ltd,6171,1009.04
"Department for Business, Energy and Industrial Strategy",The Coal Authority,14/10/2016,Surface Hazards - Contractor & Claim Costs,PS&S - General Claims,Alliance Contracting Solutions Ltd,6172,1748.75
"Department for Business, Energy and Industrial Strategy",The Coal Authority,14/10/2016,Surface Hazards - Contractor & Claim Costs,PS&S - General Claims,Alliance Contracting Solutions Ltd,6173,3659.27
"Department for Business, Energy and Industrial Strategy",The Coal Authority,14/10/2016,Surface Hazards - Contractor & Claim Costs,PS&S - General Claims,Alliance Contracting Solutions Ltd,6175,989.26
"Department for Business, Energy and Industrial Strategy",The Coal Authority,19/10/2016,Surface Hazards - Contractor & Claim Costs,PS&S - General Claims,Alliance Contracting Solutions Ltd,6275,1930.05
"Department for Business, Energy and Industrial Strategy",The Coal Authority,19/10/2016,Surface Hazards - Contractor & Claim Costs,PS&S - General Claims,Alliance Contracting Solutions Ltd,6277,3048.91
"Department for Business, Energy and Industrial Strategy",The Coal Authority,19/10/2016,Surface Hazards - Contractor & Claim Costs,PS&S - General Claims,Alliance Contracting Solutions Ltd,6280,4976.69
"Department for Business, Energy and Industrial Strategy",The Coal Authority,19/10/2016,Surface Hazards - Contractor & Claim Costs,PS&S - General Claims,Alliance Contracting Solutions Ltd,6281,2159.29
"Department for Business, Energy and Industrial Strategy",The Coal Authority,19/10/2016,Surface Hazards - Contractor & Claim Costs,PS&S - General Claims,Alliance Contracting Solutions Ltd,6282,410
"Department for Business, Energy and Industrial Strategy",The Coal Authority,19/10/2016,Surface Hazards - Contractor & Claim Costs,PS&S - General Claims,Alliance Contracting Solutions Ltd,6283,200
"Department for Business, Energy and Industrial Strategy",The Coal Authority,30/09/2016,Surface Hazards - Contractor & Claim Costs,PS&S - General Claims,Balfour Beatty Civil Eng Ltd,5652,3658.72
"Department for Business, Energy and Industrial Strategy",The Coal Authority,30/09/2016,Surface Hazards - Contractor & Claim Costs,PS&S - General Claims,Balfour Beatty Civil Eng Ltd,5653,3426.97
"Department for Business, Energy and Industrial Strategy",The Coal Authority,30/09/2016,Surface Hazards - Contractor & Claim Costs,PS&S - General Claims,Balfour Beatty Civil Eng Ltd,5654,8110.99
"Department for Business, Energy and Industrial Strategy",The Coal Authority,30/09/2016,Surface Hazards - Contractor & Claim Costs,PS&S - General Claims,Balfour Beatty Civil Eng Ltd,5655,6776.72
"Department for Business, Energy and Industrial Strategy",The Coal Authority,05/10/2016,Surface Hazards - Contractor & Claim Costs,PS&S - General Claims,Balfour Beatty Civil Eng Ltd,5971,5275.61
"Department for Business, Energy and Industrial Strategy",The Coal Authority,05/10/2016,Surface Hazards - Contractor & Claim Costs,PS&S - General Claims,Balfour Beatty Civil Eng Ltd,5978,623.16
"Department for Business, Energy and Industrial Strategy",The Coal Authority,17/10/2016,Surface Hazards - Contractor & Claim Costs,PS&S - General Claims,Compensation Payment,6155,51.8
"Department for Business, Energy and Industrial Strategy",The Coal Authority,27/10/2016,Surface Hazards - Contractor & Claim Costs,PS&S - General Claims,Compensation Payment,6443,1000
"Department for Business, Energy and Industrial Strategy",The Coal Authority,09/09/2016,Surface Hazards - Contractor & Claim Costs,PS&S - General Claims,Cornerstone  Projects Ltd,6138,58
"Department for Business, Energy and Industrial Strategy",The Coal Authority,29/09/2016,Surface Hazards - Contractor & Claim Costs,PS&S - General Claims,Cornerstone  Projects Ltd,5761,272.7
"Department for Business, Energy and Industrial Strategy",The Coal Authority,10/10/2016,Surface Hazards - Contractor & Claim Costs,PS&S - General Claims,Cornerstone  Projects Ltd,5965,63
"Department for Business, Energy and Industrial Strategy",The Coal Authority,10/10/2016,Surface Hazards - Contractor & Claim Costs,PS&S - General Claims,Cornerstone  Projects Ltd,5967,108
"Department for Business, Energy and Industrial Strategy",The Coal Authority,10/10/2016,Surface Hazards - Contractor & Claim Costs,PS&S - General Claims,Cornerstone  Projects Ltd,5968,227.2
"Department for Business, Energy and Industrial Strategy",The Coal Authority,14/10/2016,Surface Hazards - Contractor & Claim Costs,PS&S - General Claims,Cornerstone  Projects Ltd,6168,158
"Department for Business, Energy and Industrial Strategy",The Coal Authority,17/10/2016,Surface Hazards - Contractor & Claim Costs,PS&S - General Claims,Cornerstone  Projects Ltd,6166,314.7
"Department for Business, Energy and Industrial Strategy",The Coal Authority,17/10/2016,Surface Hazards - Contractor & Claim Costs,PS&S - General Claims,Cornerstone  Projects Ltd,6167,158
"Department for Business, Energy and Industrial Strategy",The Coal Authority,26/10/2016,Surface Hazards - Contractor & Claim Costs,PS&S - General Claims,Cornerstone  Projects Ltd,6469,-58
"Department for Business, Energy and Industrial Strategy",The Coal Authority,20/09/2016,Surface Hazards - Contractor & Claim Costs,PS&S - General Claims,Dsi Drilltek Ltd,5869,9245
